Workbook

Sheet PLANILHA
B3: OBRA: RECONSTRUÇÃO GALPÃO DE DESTINAÇÃO DE LIXO
B4: LOCAL: BAIRRO BANANEIRAS-VENDA NOVA DO IMIGRANTE/ES
B5: PROPRIETÁRIO: PREFEITURA MUNICIPAL DE VENDA NOVA DO IMIGRANTE
B6: DATA: 24/12/2021
B7: REFERENCIAL DE PREÇOS: IOPES / SINAPI
B8: DATA BASE: SETEMBRO/2021
M9: 0.22
B10: PLANILHA ORÇAMENTÁRIA
B12: ITEM | C12: FONTE | D12: CÓDIGO | E12: DESCRIÇÃO ORÇAMENTÁRIA | F12: UNIDADE | G12: QTDE | H12: CUSTO UNITÁRIO | I12: PREÇO UNITÁRIO PMVNI | J12: PREÇO TOTAL PMVNI | K12: PREÇO UNITÁRIO EMPRESA | L12: PREÇO TOTAL EMPRESA
B13: 1 | C13: CANTEIRO DE OBRAS
B14: 1.1 | C14: IOPES | D14: 020305 | E14: PLACA DE OBRA NAS DIMENSÕES DE 1,5 X 2,5 M, PADRÃO IOPES | F14: =IF($C14="IOPES",UPPER(VLOOKUP($D14,'IOPES 09.2021'!$A$2:$G$2000,4,0)),VLOOKUP($D14,'SINAPI 09.2021'!$A$3:$E$8000,3,0)) -> M2 | G14: =VLOOKUP(B14,'MEMORIAL DE CALCULO'!$B$11:$H$99,6,0) -> 3.75 | H14: =IF($C14="IOPES",UPPER(VLOOKUP($D14,'IOPES 09.2021'!$A$2:$G$2000,6,0)),VLOOKUP($D14,'SINAPI 09.2021'!$A$3:$E$8000,5,0)) -> 286,43 | I14: =ROUND(H14*(1+$M$9),2) -> 349.44 | J14: =ROUND(I14*G14,2) -> 1310.4 | L14: =G14*K14 -> 0
I15: SUBTOTAL | J15: =SUM(J14:J14) -> 1310.4 | L15: =SUM(L14:L14) -> 0
B16: 2 | C16: DEMOLIÇÃO E RETIRADA
B17: 2.1 | C17: SINAPI | D17: 97647 | E17: =IF($C17="IOPES",UPPER(VLOOKUP($D17,'IOPES 09.2021'!$A$2:$G$2000,3,0)),LEFT(VLOOKUP($D17,'SINAPI 09.2021'!$A$3:$E$8000,2,0),IFERROR(SEARCH("AF_",VLOOKUP($D17,'SINAPI 09.2021'!$A$3:$E$8000,2,0))-1,LEN(VLOOKUP($D17,'SINAPI 09.2021'!$A$3:$E$8000,2,0))))) -> REMOÇÃO DE TELHAS, DE FIBROCIMENTO, METÁLICA E CERÂMICA, DE FORMA MANUAL, SEM REAPROVEITAMENTO. | F17: =IF($C17="IOPES",UPPER(VLOOKUP($D17,'IOPES 09.2021'!$A$2:$G$2000,4,0)),VLOOKUP($D17,'SINAPI 09.2021'!$A$3:$E$8000,3,0)) -> M2 | G17: =VLOOKUP(B17,'MEMORIAL DE CALCULO'!$B$11:$H$99,6,0) -> 328.25 | H17: =IF($C17="IOPES",UPPER(VLOOKUP($D17,'IOPES 09.2021'!$A$2:$G$2000,6,0)),VLOOKUP($D17,'SINAPI 09.2021'!$A$3:$E$8000,5,0)) -> 2,50 | I17: =ROUND(H17*(1+$M$9),2) -> 3.05 | J17: =ROUND(I17*G17,2) -> 1001.16 | L17: =G17*K17 -> 0
B18: 2.2 | C18: COMP.01 | E18: =COMPOSIÇÃO!D10 -> REMOÇÃO DE POSTE DE CONCRETO DUPLO T | F18: =COMPOSIÇÃO!J10 -> UND | G18: =VLOOKUP(B18,'MEMORIAL DE CALCULO'!$B$11:$H$99,6,0) -> 3 | H18: =COMPOSIÇÃO!J20 -> 61.164 | I18: 74.62 | J18: 223.86 | L18: 0
B19: 2.3 | C19: COMP.02 | E19: =COMPOSIÇÃO!D22 -> REMOÇÃO DE POSTE DE MADEIRA DN 150 ATÉ 300 MM H=5M | F19: =COMPOSIÇÃO!J22 -> UND | G19: =VLOOKUP(B19,'MEMORIAL DE CALCULO'!$B$11:$H$99,6,0) -> 3 | H19: =COMPOSIÇÃO!J32 -> 42.24572 | I19: 51.54 | J19: 154.62 | L19: 0
B20: 2.4 | C20: SINAPI | D20: 97655 | E20: =IF($C20="IOPES",UPPER(VLOOKUP($D20,'IOPES 09.2021'!$A$2:$G$2000,3,0)),LEFT(VLOOKUP($D20,'SINAPI 09.2021'!$A$3:$E$8000,2,0),IFERROR(SEARCH("AF_",VLOOKUP($D20,'SINAPI 09.2021'!$A$3:$E$8000,2,0))-1,LEN(VLOOKUP($D20,'SINAPI 09.2021'!$A$3:$E$8000,2,0))))) -> REMOÇÃO DE TRAMA METÁLICA PARA COBERTURA, DE FORMA MANUAL, SEM REAPROVEITAMENTO. | F20: =IF($C20="IOPES",UPPER(VLOOKUP($D20,'IOPES 09.2021'!$A$2:$G$2000,4,0)),VLOOKUP($D20,'SINAPI 09.2021'!$A$3:$E$8000,3,0)) -> M2 | G20: =VLOOKUP(B20,'MEMORIAL DE CALCULO'!$B$11:$H$99,6,0) -> 171 | H20: =IF($C20="IOPES",UPPER(VLOOKUP($D20,'IOPES 09.2021'!$A$2:$G$2000,6,0)),VLOOKUP($D20,'SINAPI 09.2021'!$A$3:$E$8000,5,0)) -> 16,50 | I20: 20.13 | J20: 3442.23 | L20: 0
B21: 2.5 | C21: SINAPI | D21: 97656 | E21: =IF($C21="IOPES",UPPER(VLOOKUP($D21,'IOPES 09.2021'!$A$2:$G$2000,3,0)),LEFT(VLOOKUP($D21,'SINAPI 09.2021'!$A$3:$E$8000,2,0),IFERROR(SEARCH("AF_",VLOOKUP($D21,'SINAPI 09.2021'!$A$3:$E$8000,2,0))-1,LEN(VLOOKUP($D21,'SINAPI 09.2021'!$A$3:$E$8000,2,0))))) -> REMOÇÃO DE TESOURAS METÁLICAS, COM VÃO MENOR QUE 8M, DE FORMA MANUAL, SEM REAPROVEITAMENTO. | F21: =IF($C21="IOPES",UPPER(VLOOKUP($D21,'IOPES 09.2021'!$A$2:$G$2000,4,0)),VLOOKUP($D21,'SINAPI 09.2021'!$A$3:$E$8000,3,0)) -> UN | G21: =VLOOKUP(B21,'MEMORIAL DE CALCULO'!$B$11:$H$99,6,0) -> 4 | H21: =IF($C21="IOPES",UPPER(VLOOKUP($D21,'IOPES 09.2021'!$A$2:$G$2000,6,0)),VLOOKUP($D21,'SINAPI 09.2021'!$A$3:$E$8000,5,0)) -> 163,20 | I21: 199.1 | J21: 796.4 | L21: 0
B22: 2.6 | C22: IOPES | D22: 030304 | E22: =IF($C22="IOPES",UPPER(VLOOKUP($D22,'IOPES 09.2021'!$A$2:$G$2000,3,0)),LEFT(VLOOKUP($D22,'SINAPI 09.2021'!$A$3:$E$8000,2,0),IFERROR(SEARCH("AF_",VLOOKUP($D22,'SINAPI 09.2021'!$A$3:$E$8000,2,0))-1,LEN(VLOOKUP($D22,'SINAPI 09.2021'!$A$3:$E$8000,2,0))))) -> ÍNDICE DE PREÇO PARA REMOÇÃO DE ENTULHO DECORRENTE DA EXECUÇÃO DE OBRAS (CLASSE A CONAMA - NBR 10.004 - CLASSE II-B), INCLUINDO ALUGUEL DA CAÇAMBA, CARGA, TRANSPORTE E DESCARGA EM ÁREA LICENCIADA | F22: =IF($C22="IOPES",UPPER(VLOOKUP($D22,'IOPES 09.2021'!$A$2:$G$2000,4,0)),VLOOKUP($D22,'SINAPI 09.2021'!$A$3:$E$8000,3,0)) -> M3 | G22: =VLOOKUP(B22,'MEMORIAL DE CALCULO'!$B$11:$H$99,6,0) -> 54.5 | H22: =IF($C22="IOPES",UPPER(VLOOKUP($D22,'IOPES 09.2021'!$A$2:$G$2000,6,0)),VLOOKUP($D22,'SINAPI 09.2021'!$A$3:$E$8000,5,0)) -> 48,85 | I22: 59.6 | J22: 3248.2 | L22: 0
I23: SUBTOTAL | J23: =SUM(J17:J22) -> 8866.47 | L23: =SUM(L17:L22) -> 0
B24: 3 | C24: ESCAVAÇÃO
B25: 3.1 | C25: SINAPI | D25: 96527 | E25: =IF($C25="IOPES",UPPER(VLOOKUP($D25,'IOPES 09.2021'!$A$2:$G$2000,3,0)),LEFT(VLOOKUP($D25,'SINAPI 09.2021'!$A$3:$E$8000,2,0),IFERROR(SEARCH("AF_",VLOOKUP($D25,'SINAPI 09.2021'!$A$3:$E$8000,2,0))-1,LEN(VLOOKUP($D25,'SINAPI 09.2021'!$A$3:$E$8000,2,0))))) -> ESCAVAÇÃO MANUAL DE VALA PARA VIGA BALDRAME (INCLUINDO ESCAVAÇÃO PARA COLOCAÇÃO DE FÔRMAS). | F25: =IF($C25="IOPES",UPPER(VLOOKUP($D25,'IOPES 09.2021'!$A$2:$G$2000,4,0)),VLOOKUP($D25,'SINAPI 09.2021'!$A$3:$E$8000,3,0)) -> M3 | G25: =VLOOKUP(B25,'MEMORIAL DE CALCULO'!$B$11:$H$99,6,0) -> 4.23 | H25: =IF($C25="IOPES",UPPER(VLOOKUP($D25,'IOPES 09.2021'!$A$2:$G$2000,6,0)),VLOOKUP($D25,'SINAPI 09.2021'!$A$3:$E$8000,5,0)) -> 96,66 | I25: =ROUND(H25*(1+$M$9),2) -> 117.93 | J25: =ROUND(I25*G25,2) -> 498.84 | L25: =G25*K25 -> 0
B26: 3.2 | C26: SINAPI | D26: 96522 | E26: =IF($C26="IOPES",UPPER(VLOOKUP($D26,'IOPES 09.2021'!$A$2:$G$2000,3,0)),LEFT(VLOOKUP($D26,'SINAPI 09.2021'!$A$3:$E$8000,2,0),IFERROR(SEARCH("AF_",VLOOKUP($D26,'SINAPI 09.2021'!$A$3:$E$8000,2,0))-1,LEN(VLOOKUP($D26,'SINAPI 09.2021'!$A$3:$E$8000,2,0))))) -> ESCAVAÇÃO MANUAL PARA BLOCO DE COROAMENTO OU SAPATA (SEM ESCAVAÇÃO PARA COLOCAÇÃO DE FÔRMAS). | F26: =IF($C26="IOPES",UPPER(VLOOKUP($D26,'IOPES 09.2021'!$A$2:$G$2000,4,0)),VLOOKUP($D26,'SINAPI 09.2021'!$A$3:$E$8000,3,0)) -> M3 | G26: =VLOOKUP(B26,'MEMORIAL DE CALCULO'!$B$11:$H$99,6,0) -> 3.61 | H26: =IF($C26="IOPES",UPPER(VLOOKUP($D26,'IOPES 09.2021'!$A$2:$G$2000,6,0)),VLOOKUP($D26,'SINAPI 09.2021'!$A$3:$E$8000,5,0)) -> 116,50 | I26: =ROUND(H26*(1+$M$9),2) -> 142.13 | J26: =ROUND(I26*G26,2) -> 513.09 | L26: =G26*K26 -> 0
I27: SUBTOTAL | J27: =SUM(J25:J26) -> 1011.93 | L27: =SUM(L25:L26) -> 0
B28: 4 | C28: FUNDAÇÕES
B29: 4.1 | C29: SINAPI | D29: 96536 | E29: =IF($C29="IOPES",UPPER(VLOOKUP($D29,'IOPES 09.2021'!$A$2:$G$2000,3,0)),LEFT(VLOOKUP($D29,'SINAPI 09.2021'!$A$3:$E$8000,2,0),IFERROR(SEARCH("AF_",VLOOKUP($D29,'SINAPI 09.2021'!$A$3:$E$8000,2,0))-1,LEN(VLOOKUP($D29,'SINAPI 09.2021'!$A$3:$E$8000,2,0))))) -> FABRICAÇÃO, MONTAGEM E DESMONTAGEM DE FÔRMA PARA VIGA BALDRAME, EM MADEIRA SERRADA, E=25 MM, 4 UTILIZAÇÕES. | F29: =IF($C29="IOPES",UPPER(VLOOKUP($D29,'IOPES 09.2021'!$A$2:$G$2000,4,0)),VLOOKUP($D29,'SINAPI 09.2021'!$A$3:$E$8000,3,0)) -> M2 | G29: =VLOOKUP(B29,'MEMORIAL DE CALCULO'!$B$11:$H$99,6,0) -> 19 | H29: =IF($C29="IOPES",UPPER(VLOOKUP($D29,'IOPES 09.2021'!$A$2:$G$2000,6,0)),VLOOKUP($D29,'SINAPI 09.2021'!$A$3:$E$8000,5,0)) -> 70,49 | I29: =ROUND(H29*(1+$M$9),2) -> 86 | J29: =ROUND(I29*G29,2) -> 1634 | L29: =G29*K29 -> 0
B30: 4.2 | C30: SINAPI | D30: 96535 | E30: =IF($C30="IOPES",UPPER(VLOOKUP($D30,'IOPES 09.2021'!$A$2:$G$2000,3,0)),LEFT(VLOOKUP($D30,'SINAPI 09.2021'!$A$3:$E$8000,2,0),IFERROR(SEARCH("AF_",VLOOKUP($D30,'SINAPI 09.2021'!$A$3:$E$8000,2,0))-1,LEN(VLOOKUP($D30,'SINAPI 09.2021'!$A$3:$E$8000,2,0))))) -> FABRICAÇÃO, MONTAGEM E DESMONTAGEM DE FÔRMA PARA SAPATA, EM MADEIRA SERRADA, E=25 MM, 4 UTILIZAÇÕES. | F30: =IF($C30="IOPES",UPPER(VLOOKUP($D30,'IOPES 09.2021'!$A$2:$G$2000,4,0)),VLOOKUP($D30,'SINAPI 09.2021'!$A$3:$E$8000,3,0)) -> M2 | G30: =VLOOKUP(B30,'MEMORIAL DE CALCULO'!$B$11:$H$99,6,0) -> 34.2 | H30: =IF($C30="IOPES",UPPER(VLOOKUP($D30,'IOPES 09.2021'!$A$2:$G$2000,6,0)),VLOOKUP($D30,'SINAPI 09.2021'!$A$3:$E$8000,5,0)) -> 133,10 | I30: =ROUND(H30*(1+$M$9),2) -> 162.38 | J30: =ROUND(I30*G30,2) -> 5553.4 | L30: =G30*K30 -> 0
B31: 4.3 | C31: SINAPI | D31: 96544 | E31: =IF($C31="IOPES",UPPER(VLOOKUP($D31,'IOPES 09.2021'!$A$2:$G$2000,3,0)),LEFT(VLOOKUP($D31,'SINAPI 09.2021'!$A$3:$E$8000,2,0),IFERROR(SEARCH("AF_",VLOOKUP($D31,'SINAPI 09.2021'!$A$3:$E$8000,2,0))-1,LEN(VLOOKUP($D31,'SINAPI 09.2021'!$A$3:$E$8000,2,0))))) -> ARMAÇÃO DE BLOCO, VIGA BALDRAME OU SAPATA UTILIZANDO AÇO CA-50 DE 6,3 MM - MONTAGEM. | F31: =IF($C31="IOPES",UPPER(VLOOKUP($D31,'IOPES 09.2021'!$A$2:$G$2000,4,0)),VLOOKUP($D31,'SINAPI 09.2021'!$A$3:$E$8000,3,0)) -> KG | G31: =VLOOKUP(B31,'MEMORIAL DE CALCULO'!$B$11:$H$99,6,0) -> 58.6 | H31: =IF($C31="IOPES",UPPER(VLOOKUP($D31,'IOPES 09.2021'!$A$2:$G$2000,6,0)),VLOOKUP($D31,'SINAPI 09.2021'!$A$3:$E$8000,5,0)) -> 19,28 | I31: =ROUND(H31*(1+$M$9),2) -> 23.52 | J31: =ROUND(I31*G31,2) -> 1378.27 | L31: =G31*K31 -> 0
B32: 4.4 | C32: SINAPI | D32: 96546 | E32: =IF($C32="IOPES",UPPER(VLOOKUP($D32,'IOPES 09.2021'!$A$2:$G$2000,3,0)),LEFT(VLOOKUP($D32,'SINAPI 09.2021'!$A$3:$E$8000,2,0),IFERROR(SEARCH("AF_",VLOOKUP($D32,'SINAPI 09.2021'!$A$3:$E$8000,2,0))-1,LEN(VLOOKUP($D32,'SINAPI 09.2021'!$A$3:$E$8000,2,0))))) -> ARMAÇÃO DE BLOCO, VIGA BALDRAME OU SAPATA UTILIZANDO AÇO CA-50 DE 10 MM - MONTAGEM. | F32: =IF($C32="IOPES",UPPER(VLOOKUP($D32,'IOPES 09.2021'!$A$2:$G$2000,4,0)),VLOOKUP($D32,'SINAPI 09.2021'!$A$3:$E$8000,3,0)) -> KG | G32: =VLOOKUP(B32,'MEMORIAL DE CALCULO'!$B$11:$H$99,6,0) -> 165.06 | H32: =IF($C32="IOPES",UPPER(VLOOKUP($D32,'IOPES 09.2021'!$A$2:$G$2000,6,0)),VLOOKUP($D32,'SINAPI 09.2021'!$A$3:$E$8000,5,0)) -> 16,54 | I32: =ROUND(H32*(1+$M$9),2) -> 20.18 | J32: =ROUND(I32*G32,2) -> 3330.91 | L32: =G32*K32 -> 0
B33: 4.5 | C33: SINAPI | D33: 94965 | E33: =IF($C33="IOPES",UPPER(VLOOKUP($D33,'IOPES 09.2021'!$A$2:$G$2000,3,0)),LEFT(VLOOKUP($D33,'SINAPI 09.2021'!$A$3:$E$8000,2,0),IFERROR(SEARCH("AF_",VLOOKUP($D33,'SINAPI 09.2021'!$A$3:$E$8000,2,0))-1,LEN(VLOOKUP($D33,'SINAPI 09.2021'!$A$3:$E$8000,2,0))))) -> CONCRETO FCK = 25MPA, TRAÇO 1:2,3:2,7 (EM MASSA SECA DE CIMENTO/ AREIA MÉDIA/ BRITA 1) - PREPARO MECÂNICO COM BETONEIRA 400 L. | F33: =IF($C33="IOPES",UPPER(VLOOKUP($D33,'IOPES 09.2021'!$A$2:$G$2000,4,0)),VLOOKUP($D33,'SINAPI 09.2021'!$A$3:$E$8000,3,0)) -> M3 | G33: =VLOOKUP(B33,'MEMORIAL DE CALCULO'!$B$11:$H$99,6,0) -> 9.28 | H33: =IF($C33="IOPES",UPPER(VLOOKUP($D33,'IOPES 09.2021'!$A$2:$G$2000,6,0)),VLOOKUP($D33,'SINAPI 09.2021'!$A$3:$E$8000,5,0)) -> 347,88 | I33: =ROUND(H33*(1+$M$9),2) -> 424.41 | J33: =ROUND(I33*G33,2) -> 3938.52 | L33: =G33*K33 -> 0
I34: SUBTOTAL | J34: =SUM(J29:J33) -> 15835.1 | L34: =SUM(L29:L33) -> 0
B35: 5 | C35: SUPERESTRUTURA
B36: 5.1 | C36: SINAPI | D36: 100766 | E36: =IF($C36="IOPES",UPPER(VLOOKUP($D36,'IOPES 09.2021'!$A$2:$G$2000,3,0)),LEFT(VLOOKUP($D36,'SINAPI 09.2021'!$A$3:$E$8000,2,0),IFERROR(SEARCH("AF_",VLOOKUP($D36,'SINAPI 09.2021'!$A$3:$E$8000,2,0))-1,LEN(VLOOKUP($D36,'SINAPI 09.2021'!$A$3:$E$8000,2,0))))) -> PILAR METÁLICO PERFIL LAMINADO OU SOLDADO EM AÇO ESTRUTURAL, COM CONEXÕES SOLDADAS, INCLUSOS MÃO DE OBRA, TRANSPORTE E IÇAMENTO UTILIZANDO GUINDASTE - FORNECIMENTO E INSTALAÇÃO. | F36: =IF($C36="IOPES",UPPER(VLOOKUP($D36,'IOPES 09.2021'!$A$2:$G$2000,4,0)),VLOOKUP($D36,'SINAPI 09.2021'!$A$3:$E$8000,3,0)) -> KG | G36: =VLOOKUP(B36,'MEMORIAL DE CALCULO'!$B$11:$H$99,6,0) -> 1558.98 | H36: =IF($C36="IOPES",UPPER(VLOOKUP($D36,'IOPES 09.2021'!$A$2:$G$2000,6,0)),VLOOKUP($D36,'SINAPI 09.2021'!$A$3:$E$8000,5,0)) -> 22,86 | I36: =ROUND(H36*(1+$M$9),2) -> 27.89 | J36: =ROUND(I36*G36,2) -> 43479.95 | L36: =G36*K36 -> 0
B37: 5.2 | C37: IOPES | D37: 200738 | E37: =IF($C37="IOPES",UPPER(VLOOKUP($D37,'IOPES 09.2021'!$A$2:$G$2000,3,0)),LEFT(VLOOKUP($D37,'SINAPI 09.2021'!$A$3:$E$8000,2,0),IFERROR(SEARCH("AF_",VLOOKUP($D37,'SINAPI 09.2021'!$A$3:$E$8000,2,0))-1,LEN(VLOOKUP($D37,'SINAPI 09.2021'!$A$3:$E$8000,2,0))))) -> ESTRUT. METÁLICA P/ QUADRA POLIESP. COBERTA CONSTITUÍDA POR PERFIS FORMADOS A FRIO, AÇO ESTRUTURAL ASTM A-570 G33 (TERÇAS) ASTM A-36 (DEMAIS PERFIS) C/ O SISTEMA DE TRAT. E PINT CONF DESCRITO EM NOTAS DA PLANILHA | F37: =IF($C37="IOPES",UPPER(VLOOKUP($D37,'IOPES 09.2021'!$A$2:$G$2000,4,0)),VLOOKUP($D37,'SINAPI 09.2021'!$A$3:$E$8000,3,0)) -> KG | G37: =VLOOKUP(B37,'MEMORIAL DE CALCULO'!$B$11:$H$99,6,0) -> 5322.36 | H37: =IF($C37="IOPES",UPPER(VLOOKUP($D37,'IOPES 09.2021'!$A$2:$G$2000,6,0)),VLOOKUP($D37,'SINAPI 09.2021'!$A$3:$E$8000,5,0)) -> 33,59 | I37: =ROUND(H37*(1+$M$9),2) -> 40.98 | J37: =ROUND(I37*G37,2) -> 218110.31 | L37: =G37*K37 -> 0
I38: SUBTOTAL | J38: =SUM(J36:J37) -> 261590.26 | L38: =SUM(L36:L37) -> 0
B39: 6 | C39: TAPAMENTO
B40: 6.1 | C40: IOPES | D40: 200720 | E40: =IF($C40="IOPES",UPPER(VLOOKUP($D40,'IOPES 09.2021'!$A$2:$G$2000,3,0)),LEFT(VLOOKUP($D40,'SINAPI 09.2021'!$A$3:$E$8000,2,0),IFERROR(SEARCH("AF_",VLOOKUP($D40,'SINAPI 09.2021'!$A$3:$E$8000,2,0))-1,LEN(VLOOKUP($D40,'SINAPI 09.2021'!$A$3:$E$8000,2,0))))) -> FORN E ASSENT DE TELHAS DE LIGA DE ALUMÍNIO E ZINCO (GALVALUME), ONDULADA, ESP. MÍNIMA 0.43MM, ALT. MÍNIMA DE ONDA 17MM, SOBREP. LATERAL DE UMA ONDA E LONGIT. 200MM C/ MÍNIMO DE 3 APOIOS, ASSENT. C/ UTILIZ. DE FITAS ANTI-CORROSIVA | F40: =IF($C40="IOPES",UPPER(VLOOKUP($D40,'IOPES 09.2021'!$A$2:$G$2000,4,0)),VLOOKUP($D40,'SINAPI 09.2021'!$A$3:$E$8000,3,0)) -> M2 | G40: =VLOOKUP(B40,'MEMORIAL DE CALCULO'!$B$11:$H$99,6,0) -> 475.13 | H40: 76.71 | I40: =ROUND(H40*(1+$M$9),2) -> 93.59 | J40: =ROUND(I40*G40,2) -> 44467.42 | L40: =G40*K40 -> 0
I41: SUBTOTAL | J41: =SUM(J40:J40) -> 44467.42 | L41: =SUM(L40:L40) -> 0
B42: 7 | C42: COBERTURA
B43: 7.1 | C43: IOPES | D43: 200720 | E43: =IF($C43="IOPES",UPPER(VLOOKUP($D43,'IOPES 09.2021'!$A$2:$G$2000,3,0)),LEFT(VLOOKUP($D43,'SINAPI 09.2021'!$A$3:$E$8000,2,0),IFERROR(SEARCH("AF_",VLOOKUP($D43,'SINAPI 09.2021'!$A$3:$E$8000,2,0))-1,LEN(VLOOKUP($D43,'SINAPI 09.2021'!$A$3:$E$8000,2,0))))) -> FORN E ASSENT DE TELHAS DE LIGA DE ALUMÍNIO E ZINCO (GALVALUME), ONDULADA, ESP. MÍNIMA 0.43MM, ALT. MÍNIMA DE ONDA 17MM, SOBREP. LATERAL DE UMA ONDA E LONGIT. 200MM C/ MÍNIMO DE 3 APOIOS, ASSENT. C/ UTILIZ. DE FITAS ANTI-CORROSIVA | F43: =IF($C43="IOPES",UPPER(VLOOKUP($D43,'IOPES 09.2021'!$A$2:$G$2000,4,0)),VLOOKUP($D43,'SINAPI 09.2021'!$A$3:$E$8000,3,0)) -> M2 | G43: =VLOOKUP(B43,'MEMORIAL DE CALCULO'!$B$11:$H$99,6,0) -> 548.43 | H43: 76.71 | I43: =ROUND(H43*(1+$M$9),2) -> 93.59 | J43: =ROUND(I43*G43,2) -> 51327.56 | L43: =G43*K43 -> 0
B44: 7.2 | C44: SINAPI | D44: 94227 | E44: =IF($C44="IOPES",UPPER(VLOOKUP($D44,'IOPES 09.2021'!$A$2:$G$2000,3,0)),LEFT(VLOOKUP($D44,'SINAPI 09.2021'!$A$3:$E$8000,2,0),IFERROR(SEARCH("AF_",VLOOKUP($D44,'SINAPI 09.2021'!$A$3:$E$8000,2,0))-1,LEN(VLOOKUP($D44,'SINAPI 09.2021'!$A$3:$E$8000,2,0))))) -> CALHA EM CHAPA DE AÇO GALVANIZADO NÚMERO 24, DESENVOLVIMENTO DE 33 CM, INCLUSO TRANSPORTE VERTICAL. | F44: =IF($C44="IOPES",UPPER(VLOOKUP($D44,'IOPES 09.2021'!$A$2:$G$2000,4,0)),VLOOKUP($D44,'SINAPI 09.2021'!$A$3:$E$8000,3,0)) -> M | G44: =VLOOKUP(B44,'MEMORIAL DE CALCULO'!$B$11:$H$99,6,0) -> 54.3 | H44: =IF($C44="IOPES",UPPER(VLOOKUP($D44,'IOPES 09.2021'!$A$2:$G$2000,6,0)),VLOOKUP($D44,'SINAPI 09.2021'!$A$3:$E$8000,5,0)) -> 78,10 | I44: =ROUND(H44*(1+$M$9),2) -> 95.28 | J44: =ROUND(I44*G44,2) -> 5173.7 | L44: =G44*K44 -> 0
B45: 7.3 | C45: SINAPI | D45: 100327 | E45: =IF($C45="IOPES",UPPER(VLOOKUP($D45,'IOPES 09.2021'!$A$2:$G$2000,3,0)),LEFT(VLOOKUP($D45,'SINAPI 09.2021'!$A$3:$E$8000,2,0),IFERROR(SEARCH("AF_",VLOOKUP($D45,'SINAPI 09.2021'!$A$3:$E$8000,2,0))-1,LEN(VLOOKUP($D45,'SINAPI 09.2021'!$A$3:$E$8000,2,0))))) -> RUFO EXTERNO/INTERNO EM CHAPA DE AÇO GALVANIZADO NÚMERO 26, CORTE DE 33 CM, INCLUSO IÇAMENTO. | F45: =IF($C45="IOPES",UPPER(VLOOKUP($D45,'IOPES 09.2021'!$A$2:$G$2000,4,0)),VLOOKUP($D45,'SINAPI 09.2021'!$A$3:$E$8000,3,0)) -> M | G45: =VLOOKUP(B45,'MEMORIAL DE CALCULO'!$B$11:$H$99,6,0) -> 27.15 | H45: =IF($C45="IOPES",UPPER(VLOOKUP($D45,'IOPES 09.2021'!$A$2:$G$2000,6,0)),VLOOKUP($D45,'SINAPI 09.2021'!$A$3:$E$8000,5,0)) -> 67,97 | I45: =ROUND(H45*(1+$M$9),2) -> 82.92 | J45: =ROUND(I45*G45,2) -> 2251.28 | L45: =G45*K45 -> 0
I46: SUBTOTAL | J46: =SUM(J43:J45) -> 58752.54 | L46: =SUM(L43:L45) -> 0
B47: 8 | C47: PAREDES
B48: 8.1 | C48: SINAPI | D48: 88417 | E48: =IF($C48="IOPES",UPPER(VLOOKUP($D48,'IOPES 09.2021'!$A$2:$G$2000,3,0)),LEFT(VLOOKUP($D48,'SINAPI 09.2021'!$A$3:$E$8000,2,0),IFERROR(SEARCH("AF_",VLOOKUP($D48,'SINAPI 09.2021'!$A$3:$E$8000,2,0))-1,LEN(VLOOKUP($D48,'SINAPI 09.2021'!$A$3:$E$8000,2,0))))) -> APLICAÇÃO MANUAL DE PINTURA COM TINTA TEXTURIZADA ACRÍLICA EM PANOS CEGOS DE FACHADA (SEM PRESENÇA DE VÃOS) DE EDIFÍCIOS DE MÚLTIPLOS PAVIMENTOS, UMA COR. | F48: =IF($C48="IOPES",UPPER(VLOOKUP($D48,'IOPES 09.2021'!$A$2:$G$2000,4,0)),VLOOKUP($D48,'SINAPI 09.2021'!$A$3:$E$8000,3,0)) -> M2 | G48: =VLOOKUP(B48,'MEMORIAL DE CALCULO'!$B$11:$H$99,6,0) -> 82.88 | H48: =IF($C48="IOPES",UPPER(VLOOKUP($D48,'IOPES 09.2021'!$A$2:$G$2000,6,0)),VLOOKUP($D48,'SINAPI 09.2021'!$A$3:$E$8000,5,0)) -> 16,10 | I48: =ROUND(H48*(1+$M$9),2) -> 19.64 | J48: =ROUND(I48*G48,2) -> 1627.76 | L48: =G48*K48 -> 0
I49: SUBTOTAL | J49: =SUM(J48:J48) -> 1627.76 | L49: =SUM(L48:L48) -> 0
B50: 9 | C50: DRENAGEM
B51: 9.1 | C51: COMP.03 | E51: CANALETA NO PISO EM CONCRETO SIMPLES COM DIMENSÕES INTERNAS DE 20 x 10 CM | F51: M | G51: =VLOOKUP(B51,'MEMORIAL DE CALCULO'!$B$11:$H$99,6,0) -> 23 | H51: 63.97 | I51: =ROUND(H51*(1+$M$9),2) -> 78.04 | J51: =ROUND(I51*G51,2) -> 1794.92 | L51: =G51*K51 -> 0
B52: 9.2 | C52: SINAPI | D52: 93358 | E52: =IF($C52="IOPES",UPPER(VLOOKUP($D52,'IOPES 09.2021'!$A$2:$G$2000,3,0)),LEFT(VLOOKUP($D52,'SINAPI 09.2021'!$A$3:$E$8000,2,0),IFERROR(SEARCH("AF_",VLOOKUP($D52,'SINAPI 09.2021'!$A$3:$E$8000,2,0))-1,LEN(VLOOKUP($D52,'SINAPI 09.2021'!$A$3:$E$8000,2,0))))) -> ESCAVAÇÃO MANUAL DE VALA COM PROFUNDIDADE MENOR OU IGUAL A 1,30 M. | F52: =IF($C52="IOPES",UPPER(VLOOKUP($D52,'IOPES 09.2021'!$A$2:$G$2000,4,0)),VLOOKUP($D52,'SINAPI 09.2021'!$A$3:$E$8000,3,0)) -> M3 | G52: =VLOOKUP(B52,'MEMORIAL DE CALCULO'!$B$11:$H$99,6,0) -> 3.56 | H52: =IF($C52="IOPES",UPPER(VLOOKUP($D52,'IOPES 09.2021'!$A$2:$G$2000,6,0)),VLOOKUP($D52,'SINAPI 09.2021'!$A$3:$E$8000,5,0)) -> 61,95 | I52: 75.58 | J52: 269.06 | L52: 0
B53: 9.3 | C53: SINAPI | D53: 90694 | E53: =IF($C53="IOPES",UPPER(VLOOKUP($D53,'IOPES 09.2021'!$A$2:$G$2000,3,0)),LEFT(VLOOKUP($D53,'SINAPI 09.2021'!$A$3:$E$8000,2,0),IFERROR(SEARCH("AF_",VLOOKUP($D53,'SINAPI 09.2021'!$A$3:$E$8000,2,0))-1,LEN(VLOOKUP($D53,'SINAPI 09.2021'!$A$3:$E$8000,2,0))))) -> TUBO DE PVC PARA REDE COLETORA DE ESGOTO DE PAREDE MACIÇA, DN 100 MM, JUNTA ELÁSTICA - FORNECIMENTO E ASSENTAMENTO. | F53: =IF($C53="IOPES",UPPER(VLOOKUP($D53,'IOPES 09.2021'!$A$2:$G$2000,4,0)),VLOOKUP($D53,'SINAPI 09.2021'!$A$3:$E$8000,3,0)) -> M | G53: =VLOOKUP(B53,'MEMORIAL DE CALCULO'!$B$11:$H$99,6,0) -> 8 | H53: =IF($C53="IOPES",UPPER(VLOOKUP($D53,'IOPES 09.2021'!$A$2:$G$2000,6,0)),VLOOKUP($D53,'SINAPI 09.2021'!$A$3:$E$8000,5,0)) -> 41,93 | I53: 51.15 | J53: 409.2 | L53: 0
B54: 9.4 | C54: SINAPI | D54: 89529 | E54: =IF($C54="IOPES",UPPER(VLOOKUP($D54,'IOPES 09.2021'!$A$2:$G$2000,3,0)),LEFT(VLOOKUP($D54,'SINAPI 09.2021'!$A$3:$E$8000,2,0),IFERROR(SEARCH("AF_",VLOOKUP($D54,'SINAPI 09.2021'!$A$3:$E$8000,2,0))-1,LEN(VLOOKUP($D54,'SINAPI 09.2021'!$A$3:$E$8000,2,0))))) -> JOELHO 90 GRAUS, PVC, SERIE R, ÁGUA PLUVIAL, DN 100 MM, JUNTA ELÁSTICA, FORNECIDO E INSTALADO EM RAMAL DE ENCAMINHAMENTO. | F54: =IF($C54="IOPES",UPPER(VLOOKUP($D54,'IOPES 09.2021'!$A$2:$G$2000,4,0)),VLOOKUP($D54,'SINAPI 09.2021'!$A$3:$E$8000,3,0)) -> UN | G54: =VLOOKUP(B54,'MEMORIAL DE CALCULO'!$B$11:$H$99,6,0) -> 2 | H54: =IF($C54="IOPES",UPPER(VLOOKUP($D54,'IOPES 09.2021'!$A$2:$G$2000,6,0)),VLOOKUP($D54,'SINAPI 09.2021'!$A$3:$E$8000,5,0)) -> 50,76 | I54: 61.93 | J54: 123.86 | L54: 0
B55: 9.5 | C55: SINAPI | D55: 87530 | E55: =IF($C55="IOPES",UPPER(VLOOKUP($D55,'IOPES 09.2021'!$A$2:$G$2000,3,0)),LEFT(VLOOKUP($D55,'SINAPI 09.2021'!$A$3:$E$8000,2,0),IFERROR(SEARCH("AF_",VLOOKUP($D55,'SINAPI 09.2021'!$A$3:$E$8000,2,0))-1,LEN(VLOOKUP($D55,'SINAPI 09.2021'!$A$3:$E$8000,2,0))))) -> MASSA ÚNICA, PARA RECEBIMENTO DE PINTURA, EM ARGAMASSA TRAÇO 1:2:8, PREPARO MANUAL, APLICADA MANUALMENTE EM FACES INTERNAS DE PAREDES, ESPESSURA DE 20MM, COM EXECUÇÃO DE TALISCAS. | F55: =IF($C55="IOPES",UPPER(VLOOKUP($D55,'IOPES 09.2021'!$A$2:$G$2000,4,0)),VLOOKUP($D55,'SINAPI 09.2021'!$A$3:$E$8000,3,0)) -> M2 | G55: =VLOOKUP(B55,'MEMORIAL DE CALCULO'!$B$11:$H$99,6,0) -> 0.25 | H55: =IF($C55="IOPES",UPPER(VLOOKUP($D55,'IOPES 09.2021'!$A$2:$G$2000,6,0)),VLOOKUP($D55,'SINAPI 09.2021'!$A$3:$E$8000,5,0)) -> 31,56 | I55: 38.5 | J55: 9.63 | L55: 0
B56: 9.6 | C56: SINAPI | D56: 87280 | E56: =IF($C56="IOPES",UPPER(VLOOKUP($D56,'IOPES 09.2021'!$A$2:$G$2000,3,0)),LEFT(VLOOKUP($D56,'SINAPI 09.2021'!$A$3:$E$8000,2,0),IFERROR(SEARCH("AF_",VLOOKUP($D56,'SINAPI 09.2021'!$A$3:$E$8000,2,0))-1,LEN(VLOOKUP($D56,'SINAPI 09.2021'!$A$3:$E$8000,2,0))))) -> ARGAMASSA TRAÇO 1:7 (EM VOLUME DE CIMENTO E AREIA MÉDIA ÚMIDA) COM ADIÇÃO DE PLASTIFICANTE PARA EMBOÇO/MASSA ÚNICA/ASSENTAMENTO DE ALVENARIA DE VEDAÇÃO, PREPARO MECÂNICO COM BETONEIRA 400 L. | F56: =IF($C56="IOPES",UPPER(VLOOKUP($D56,'IOPES 09.2021'!$A$2:$G$2000,4,0)),VLOOKUP($D56,'SINAPI 09.2021'!$A$3:$E$8000,3,0)) -> M3 | G56: =VLOOKUP(B56,'MEMORIAL DE CALCULO'!$B$11:$H$99,6,0) -> 0.12 | H56: =IF($C56="IOPES",UPPER(VLOOKUP($D56,'IOPES 09.2021'!$A$2:$G$2000,6,0)),VLOOKUP($D56,'SINAPI 09.2021'!$A$3:$E$8000,5,0)) -> 294,74 | I56: 359.58 | J56: 43.15 | L56: 0
B57: 9.7 | C57: SINAPI | D57: 98680 | E57: =IF($C57="IOPES",UPPER(VLOOKUP($D57,'IOPES 09.2021'!$A$2:$G$2000,3,0)),LEFT(VLOOKUP($D57,'SINAPI 09.2021'!$A$3:$E$8000,2,0),IFERROR(SEARCH("AF_",VLOOKUP($D57,'SINAPI 09.2021'!$A$3:$E$8000,2,0))-1,LEN(VLOOKUP($D57,'SINAPI 09.2021'!$A$3:$E$8000,2,0))))) -> PISO CIMENTADO, TRAÇO 1:3 (CIMENTO E AREIA), ACABAMENTO LISO, ESPESSURA 3,0 CM, PREPARO MECÂNICO DA ARGAMASSA. | F57: =IF($C57="IOPES",UPPER(VLOOKUP($D57,'IOPES 09.2021'!$A$2:$G$2000,4,0)),VLOOKUP($D57,'SINAPI 09.2021'!$A$3:$E$8000,3,0)) -> M2 | G57: =VLOOKUP(B57,'MEMORIAL DE CALCULO'!$B$11:$H$99,6,0) -> 0.5 | H57: =IF($C57="IOPES",UPPER(VLOOKUP($D57,'IOPES 09.2021'!$A$2:$G$2000,6,0)),VLOOKUP($D57,'SINAPI 09.2021'!$A$3:$E$8000,5,0)) -> 33,75 | I57: 41.18 | J57: 20.59 | L57: 0
I58: SUBTOTAL | J58: =SUM(J51:J57) -> 2670.41 | L58: =SUM(L51:L57) -> 0
B59: 10 | C59: TAMPA CAIXA DE CHORUME
B60: 10.1 | C60: SINAPI | D60: 103076 | E60: =IF($C60="IOPES",UPPER(VLOOKUP($D60,'IOPES 09.2021'!$A$2:$G$2000,3,0)),LEFT(VLOOKUP($D60,'SINAPI 09.2021'!$A$3:$E$8000,2,0),IFERROR(SEARCH("AF_",VLOOKUP($D60,'SINAPI 09.2021'!$A$3:$E$8000,2,0))-1,LEN(VLOOKUP($D60,'SINAPI 09.2021'!$A$3:$E$8000,2,0))))) -> EXECUÇÃO DE LAJE SOBRE SOLO, ESPESSURA DE 10 CM, FCK = 30 MPA, COM USO DE FORMAS EM MADEIRA SERRADA. | F60: =IF($C60="IOPES",UPPER(VLOOKUP($D60,'IOPES 09.2021'!$A$2:$G$2000,4,0)),VLOOKUP($D60,'SINAPI 09.2021'!$A$3:$E$8000,3,0)) -> M2 | G60: =VLOOKUP(B60,'MEMORIAL DE CALCULO'!$B$11:$H$99,6,0) -> 3.3 | H60: =IF($C60="IOPES",UPPER(VLOOKUP($D60,'IOPES 09.2021'!$A$2:$G$2000,6,0)),VLOOKUP($D60,'SINAPI 09.2021'!$A$3:$E$8000,5,0)) -> 164,81 | I60: =ROUND(H60*(1+$M$9),2) -> 201.07 | J60: =ROUND(I60*G60,2) -> 663.53 | L60: =G60*K60 -> 0
B61: 10.2 | C61: SINAPI | D61: 89580 | E61: =IF($C61="IOPES",UPPER(VLOOKUP($D61,'IOPES 09.2021'!$A$2:$G$2000,3,0)),LEFT(VLOOKUP($D61,'SINAPI 09.2021'!$A$3:$E$8000,2,0),IFERROR(SEARCH("AF_",VLOOKUP($D61,'SINAPI 09.2021'!$A$3:$E$8000,2,0))-1,LEN(VLOOKUP($D61,'SINAPI 09.2021'!$A$3:$E$8000,2,0))))) -> TUBO PVC, SÉRIE R, ÁGUA PLUVIAL, DN 150 MM, FORNECIDO E INSTALADO EM CONDUTORES VERTICAIS DE ÁGUAS PLUVIAIS. | F61: =IF($C61="IOPES",UPPER(VLOOKUP($D61,'IOPES 09.2021'!$A$2:$G$2000,4,0)),VLOOKUP($D61,'SINAPI 09.2021'!$A$3:$E$8000,3,0)) -> M | G61: =VLOOKUP(B61,'MEMORIAL DE CALCULO'!$B$11:$H$99,6,0) -> 1 | H61: =IF($C61="IOPES",UPPER(VLOOKUP($D61,'IOPES 09.2021'!$A$2:$G$2000,6,0)),VLOOKUP($D61,'SINAPI 09.2021'!$A$3:$E$8000,5,0)) -> 108,94 | I61: =ROUND(H61*(1+$M$9),2) -> 132.91 | J61: =ROUND(I61*G61,2) -> 132.91 | L61: =G61*K61 -> 0
B62: 10.3 | C62: IOPES | D62: 142114 | E62: =IF($C62="IOPES",UPPER(VLOOKUP($D62,'IOPES 09.2021'!$A$2:$G$2000,3,0)),LEFT(VLOOKUP($D62,'SINAPI 09.2021'!$A$3:$E$8000,2,0),IFERROR(SEARCH("AF_",VLOOKUP($D62,'SINAPI 09.2021'!$A$3:$E$8000,2,0))-1,LEN(VLOOKUP($D62,'SINAPI 09.2021'!$A$3:$E$8000,2,0))))) -> TAMPA PARA CAIXA SIFONADA, EM PVC, DE 150X150MM | F62: =IF($C62="IOPES",UPPER(VLOOKUP($D62,'IOPES 09.2021'!$A$2:$G$2000,4,0)),VLOOKUP($D62,'SINAPI 09.2021'!$A$3:$E$8000,3,0)) -> UND | G62: =VLOOKUP(B62,'MEMORIAL DE CALCULO'!$B$11:$H$99,6,0) -> 1 | H62: =IF($C62="IOPES",UPPER(VLOOKUP($D62,'IOPES 09.2021'!$A$2:$G$2000,6,0)),VLOOKUP($D62,'SINAPI 09.2021'!$A$3:$E$8000,5,0)) -> 10,5 | I62: =ROUND(H62*(1+$M$9),2) -> 12.81 | J62: =ROUND(I62*G62,2) -> 12.81 | L62: =G62*K62 -> 0
I63: SUBTOTAL | J63: =SUM(J60:J62) -> 809.25 | L63: =SUM(L60:L62) -> 0
B64: 11 | C64: PISO
B65: 11. | C65: SINAPI | D65: 97104 | E65: =IF($C65="IOPES",UPPER(VLOOKUP($D65,'IOPES 09.2021'!$A$2:$G$2000,3,0)),LEFT(VLOOKUP($D65,'SINAPI 09.2021'!$A$3:$E$8000,2,0),IFERROR(SEARCH("AF_",VLOOKUP($D65,'SINAPI 09.2021'!$A$3:$E$8000,2,0))-1,LEN(VLOOKUP($D65,'SINAPI 09.2021'!$A$3:$E$8000,2,0))))) -> EXECUÇÃO DE PAVIMENTO DE CONCRETO SIMPLES (PCS), FCK = 40 MPA, CAMADA COM ESPESSURA DE 15,0 CM. | F65: =IF($C65="IOPES",UPPER(VLOOKUP($D65,'IOPES 09.2021'!$A$2:$G$2000,4,0)),VLOOKUP($D65,'SINAPI 09.2021'!$A$3:$E$8000,3,0)) -> M2 | G65: 390 | H65: =IF($C65="IOPES",UPPER(VLOOKUP($D65,'IOPES 09.2021'!$A$2:$G$2000,6,0)),VLOOKUP($D65,'SINAPI 09.2021'!$A$3:$E$8000,5,0)) -> 98,70 | I65: =ROUND(H65*(1+$M$9),2) -> 120.41 | J65: =ROUND(I65*G65,2) -> 46959.9 | L65: =G65*K65 -> 0
I66: SUBTOTAL | J66: =SUM(J65:J65) -> 46959.9 | L66: =SUM(L65:L65) -> 0
B67: TOTAL GERAL | J67: =SUMIF(I14:I66,"SUBTOTAL",J14:J66) -> 443901.44 | L67: =SUMIF(I14:I66,"SUBTOTAL",L14:L66) -> 0
B68: _____________________________ EDUARDO ROCHA COCCO ENG.º CIVIL CREA 6711 - D - ES

Sheet MEMORIAL DE CALCULO
B3: =PLANILHA!B3 -> OBRA: RECONSTRUÇÃO GALPÃO DE DESTINAÇÃO DE LIXO
B4: =PLANILHA!B4 -> LOCAL: BAIRRO BANANEIRAS-VENDA NOVA DO IMIGRANTE/ES
B5: =PLANILHA!B5 -> PROPRIETÁRIO: PREFEITURA MUNICIPAL DE VENDA NOVA DO IMIGRANTE
B6: =PLANILHA!B6 -> DATA: 24/12/2021
B7: =PLANILHA!B7 -> REFERENCIAL DE PREÇOS: IOPES / SINAPI
I9: 0.22
B10: MEMORIAL DE CALCULO
B12: ITEM | C12: FONTE | D12: CÓDIGO | E12: DESCRIÇÃO ORÇAMENTÁRIA | F12: UNIDADE | G12: QTDE | H12: MEMORIAL
B13: 1 | C13: CANTEIRO DE OBRAS
B14: =PLANILHA!B14 -> 1.1 | C14: =PLANILHA!C14 -> IOPES | D14: =PLANILHA!D14 -> 020305 | E14: =PLANILHA!E14 -> PLACA DE OBRA NAS DIMENSÕES DE 1,5 X 2,5 M, PADRÃO IOPES | F14: =PLANILHA!F14 -> M2 | G14: 3.75 | H14: Placa de 1,5x2,5 m
B15: =PLANILHA!B16 -> 2 | C15: =PLANILHA!C24 -> ESCAVAÇÃO
B16: =PLANILHA!B17 -> 2.1 | C16: =PLANILHA!C17 -> SINAPI | D16: =PLANILHA!D17 -> 97647 | E16: =PLANILHA!E17 -> REMOÇÃO DE TELHAS, DE FIBROCIMENTO, METÁLICA E CERÂMICA, DE FORMA MANUAL, SEM REAPROVEITAMENTO. | F16: =PLANILHA!F17 -> M2 | G16: 328.25 | H16: Laterais: 18,50 x 7,5 + 18,5 = 157,25 m² Telhado: 19,00 x 9 = 171,0 m² Total: 328,25 m²
B17: =PLANILHA!B18 -> 2.2 | C17: =PLANILHA!C18 -> COMP.01 | D17: =PLANILHA!D18 -> 0 | E17: =PLANILHA!E18 -> REMOÇÃO DE POSTE DE CONCRETO DUPLO T | F17: =PLANILHA!F18 -> UND | G17: 3 | H17: 4 postes de concreto duplo T
B18: =PLANILHA!B19 -> 2.3 | C18: =PLANILHA!C19 -> COMP.02 | D18: =PLANILHA!D19 -> 0 | E18: =PLANILHA!E19 -> REMOÇÃO DE POSTE DE MADEIRA DN 150 ATÉ 300 MM H=5M | F18: =PLANILHA!F19 -> UND | G18: 3 | H18: 3 postes de 4 metros de comprimento
B19: =PLANILHA!B20 -> 2.4 | C19: =PLANILHA!C20 -> SINAPI | D19: =PLANILHA!D20 -> 97655 | E19: =PLANILHA!E20 -> REMOÇÃO DE TRAMA METÁLICA PARA COBERTURA, DE FORMA MANUAL, SEM REAPROVEITAMENTO. | F19: =PLANILHA!F20 -> M2 | G19: 171 | H19: Telhado: 19,00 x 9,00 = 171,00 m²
B20: =PLANILHA!B21 -> 2.5 | C20: =PLANILHA!C21 -> SINAPI | D20: =PLANILHA!D21 -> 97656 | E20: =PLANILHA!E21 -> REMOÇÃO DE TESOURAS METÁLICAS, COM VÃO MENOR QUE 8M, DE FORMA MANUAL, SEM REAPROVEITAMENTO. | F20: =PLANILHA!F21 -> UN | G20: 4 | H20: 4 Treliças de cobertura
B21: =PLANILHA!B22 -> 2.6 | C21: =PLANILHA!C22 -> IOPES | D21: =PLANILHA!D22 -> 030304 | E21: =PLANILHA!E22 -> ÍNDICE DE PREÇO PARA REMOÇÃO DE ENTULHO DECORRENTE DA EXECUÇÃO DE OBRAS (CLASSE A CONAMA - NBR 10.004 - CLASSE II-B), INCLUINDO ALUGUEL DA CAÇAMBA, CARGA, TRANSPORTE E DESCARGA EM ÁREA LICENCIADA | F21: =PLANILHA!F22 -> M3 | G21: 54.5 | H21: 54,50 m³
B22: =PLANILHA!B24 -> 3 | C22: =PLANILHA!C24 -> ESCAVAÇÃO
B23: =PLANILHA!B25 -> 3.1 | C23: =PLANILHA!C25 -> SINAPI | D23: =PLANILHA!D25 -> 96527 | E23: =PLANILHA!E25 -> ESCAVAÇÃO MANUAL DE VALA PARA VIGA BALDRAME (INCLUINDO ESCAVAÇÃO PARA COLOCAÇÃO DE FÔRMAS). | F23: =PLANILHA!F25 -> M3 | G23: 4.23 | H23: Ver item 5.6
B24: =PLANILHA!B26 -> 3.2 | C24: =PLANILHA!C26 -> SINAPI | D24: =PLANILHA!D26 -> 96522 | E24: =PLANILHA!E26 -> ESCAVAÇÃO MANUAL PARA BLOCO DE COROAMENTO OU SAPATA (SEM ESCAVAÇÃO PARA COLOCAÇÃO DE FÔRMAS). | F24: =PLANILHA!F26 -> M3 | G24: 3.61 | H24: Ver item 5.5
B25: =PLANILHA!B28 -> 4 | C25: =PLANILHA!C28 -> FUNDAÇÕES
B26: =PLANILHA!B29 -> 4.1 | C26: =PLANILHA!C29 -> SINAPI | D26: =PLANILHA!D29 -> 96536 | E26: =PLANILHA!E29 -> FABRICAÇÃO, MONTAGEM E DESMONTAGEM DE FÔRMA PARA VIGA BALDRAME, EM MADEIRA SERRADA, E=25 MM, 4 UTILIZAÇÕES. | F26: =PLANILHA!F29 -> M2 | G26: 19 | H26: 2 x (0,35m x 54,30 m) = 19,00 m² (formas laterais)
B27: =PLANILHA!B30 -> 4.2 | C27: =PLANILHA!C30 -> SINAPI | D27: =PLANILHA!D30 -> 96535 | E27: =PLANILHA!E30 -> FABRICAÇÃO, MONTAGEM E DESMONTAGEM DE FÔRMA PARA SAPATA, EM MADEIRA SERRADA, E=25 MM, 4 UTILIZAÇÕES. | F27: =PLANILHA!F30 -> M2 | G27: 34.2 | H27: 10 sapatas de 1,20X1,00X0,30 = 13,20 m² – 10 arranques de 0,30x0,55x1,50 = 21,00 m²
B28: =PLANILHA!B31 -> 4.3 | C28: =PLANILHA!C31 -> SINAPI | D28: =PLANILHA!D31 -> 96544 | E28: =PLANILHA!E31 -> ARMAÇÃO DE BLOCO, VIGA BALDRAME OU SAPATA UTILIZANDO AÇO CA-50 DE 6,3 MM - MONTAGEM. | F28: =PLANILHA!F31 -> KG | G28: 58.6 | H28: 239,2m x 1,1 x 0,245 kg/m = 64,46 kg
B29: =PLANILHA!B32 -> 4.4 | C29: =PLANILHA!C32 -> SINAPI | D29: =PLANILHA!D32 -> 96546 | E29: =PLANILHA!E32 -> ARMAÇÃO DE BLOCO, VIGA BALDRAME OU SAPATA UTILIZANDO AÇO CA-50 DE 10 MM - MONTAGEM. | F29: =PLANILHA!F32 -> KG | G29: 165.06 | H29: 243,2m x 1,1 x 0,617kg/m = 165,06 kg
B30: =PLANILHA!B33 -> 4.5 | C30: =PLANILHA!C33 -> SINAPI | D30: =PLANILHA!D33 -> 94965 | E30: =PLANILHA!E33 -> CONCRETO FCK = 25MPA, TRAÇO 1:2,3:2,7 (EM MASSA SECA DE CIMENTO/ AREIA MÉDIA/ BRITA 1) - PREPARO MECÂNICO COM BETONEIRA 400 L. | F30: =PLANILHA!F33 -> M3 | G30: 9.28 | H30: Vigas baldrame: 0,35x0,20x27,15x2 = 3,80 m³ - Sapatas: (1,20x1,00x0,25) x 10 = 3,00 M³ – Arranques (0,30x0,55x1,50) x 10 = 2,48 m³
B31: =PLANILHA!B35 -> 5 | C31: =PLANILHA!C35 -> SUPERESTRUTURA
B32: =PLANILHA!B36 -> 5.1 | C32: =PLANILHA!C36 -> SINAPI | D32: =PLANILHA!D36 -> 100766 | E32: =PLANILHA!E36 -> PILAR METÁLICO PERFIL LAMINADO OU SOLDADO EM AÇO ESTRUTURAL, COM CONEXÕES SOLDADAS, INCLUSOS MÃO DE OBRA, TRANSPORTE E IÇAMENTO UTILIZANDO GUINDASTE - FORNECIMENTO E INSTALAÇÃO. | F32: =PLANILHA!F36 -> KG | G32: 1558.98 | H32: Pilar A: 508,06 KG Pilar B: 1.050,92 KG Total: 1559,98
B33: =PLANILHA!B37 -> 5.2 | C33: =PLANILHA!C37 -> IOPES | D33: =PLANILHA!D37 -> 200738 | E33: =PLANILHA!E37 -> ESTRUT. METÁLICA P/ QUADRA POLIESP. COBERTA CONSTITUÍDA POR PERFIS FORMADOS A FRIO, AÇO ESTRUTURAL ASTM A-570 G33 (TERÇAS) ASTM A-36 (DEMAIS PERFIS) C/ O SISTEMA DE TRAT. E PINT CONF DESCRITO EM NOTAS DA PLANILHA | F33: =PLANILHA!F37 -> KG | G33: 5322.36 | H33: Viga de cobertura: 2298,07 KG Terças: 1668,55 KG Contraventamentos: 505,44 KG Travessas: 850,30 KG Total: 5322,36 KG
B34: =PLANILHA!B39 -> 6 | C34: =PLANILHA!C39 -> TAPAMENTO
B35: =PLANILHA!B40 -> 6.1 | C35: =PLANILHA!C40 -> IOPES | D35: =PLANILHA!D40 -> 200720 | E35: =PLANILHA!E40 -> FORN E ASSENT DE TELHAS DE LIGA DE ALUMÍNIO E ZINCO (GALVALUME), ONDULADA, ESP. MÍNIMA 0.43MM, ALT. MÍNIMA DE ONDA 17MM, SOBREP. LATERAL DE UMA ONDA E LONGIT. 200MM C/ MÍNIMO DE 3 APOIOS, ASSENT. C/ UTILIZ. DE FITAS ANTI-CORROSIVA | F35: =PLANILHA!F40 -> M2 | G35: 475.13 | H35: Tapamentos nas laterais: (10+7,50) x 27,15 m = 475,13 m²
B36: =PLANILHA!B42 -> 7 | C36: =PLANILHA!C42 -> COBERTURA
B37: =PLANILHA!B43 -> 7.1 | C37: =PLANILHA!C43 -> IOPES | D37: =PLANILHA!D43 -> 200720 | E37: =PLANILHA!E43 -> FORN E ASSENT DE TELHAS DE LIGA DE ALUMÍNIO E ZINCO (GALVALUME), ONDULADA, ESP. MÍNIMA 0.43MM, ALT. MÍNIMA DE ONDA 17MM, SOBREP. LATERAL DE UMA ONDA E LONGIT. 200MM C/ MÍNIMO DE 3 APOIOS, ASSENT. C/ UTILIZ. DE FITAS ANTI-CORROSIVA | F37: =PLANILHA!F43 -> M2 | G37: 548.43 | H37: Área de cobertura: 20,20 x 27,15 = 548,43 m²
B38: =PLANILHA!B44 -> 7.2 | C38: =PLANILHA!C44 -> SINAPI | D38: =PLANILHA!D44 -> 94227 | E38: =PLANILHA!E44 -> CALHA EM CHAPA DE AÇO GALVANIZADO NÚMERO 24, DESENVOLVIMENTO DE 33 CM, INCLUSO TRANSPORTE VERTICAL. | F38: =PLANILHA!F44 -> M | G38: 54.3 | H38: Calha em sentido longitudinal do galpão em cada caida: 27,15 x 2 = 54,30 m
B39: =PLANILHA!B45 -> 7.3 | C39: =PLANILHA!C45 -> SINAPI | D39: =PLANILHA!D45 -> 100327 | E39: =PLANILHA!E45 -> RUFO EXTERNO/INTERNO EM CHAPA DE AÇO GALVANIZADO NÚMERO 26, CORTE DE 33 CM, INCLUSO IÇAMENTO. | F39: =PLANILHA!F45 -> M | G39: 27.15 | H39: Cumeeira: 27,15m
B40: 9 | C40: =PLANILHA!C47 -> PAREDES
B41: =PLANILHA!B48 -> 8.1 | C41: =PLANILHA!C48 -> SINAPI | D41: =PLANILHA!D48 -> 88417 | E41: =PLANILHA!E48 -> APLICAÇÃO MANUAL DE PINTURA COM TINTA TEXTURIZADA ACRÍLICA EM PANOS CEGOS DE FACHADA (SEM PRESENÇA DE VÃOS) DE EDIFÍCIOS DE MÚLTIPLOS PAVIMENTOS, UMA COR. | F41: =PLANILHA!F48 -> M2 | G41: 82.88 | H41: A = 33,15 x 2,50 = 82,88 m²
B42: =PLANILHA!B50 -> 9 | C42: =PLANILHA!C50 -> DRENAGEM
B43: =PLANILHA!B51 -> 9.1 | C43: =PLANILHA!C51 -> COMP.03 | E43: =PLANILHA!E51 -> CANALETA NO PISO EM CONCRETO SIMPLES COM DIMENSÕES INTERNAS DE 20 x 10 CM | F43: ML | G43: 23 | H43: 23,00 Metros de grelhas (Ver disposição em projeto arquitetônico)
B44: =PLANILHA!B52 -> 9.2 | C44: =PLANILHA!C52 -> SINAPI | E44: =PLANILHA!E52 -> ESCAVAÇÃO MANUAL DE VALA COM PROFUNDIDADE MENOR OU IGUAL A 1,30 M. | F44: =PLANILHA!F52 -> M3 | G44: 3.56 | H44: Caixa ralo: 3,32 m³ Tubulação: 0,24 m³ Total: 3,56 m³
B45: =PLANILHA!B53 -> 9.3 | C45: =PLANILHA!C53 -> SINAPI | E45: =PLANILHA!E53 -> TUBO DE PVC PARA REDE COLETORA DE ESGOTO DE PAREDE MACIÇA, DN 100 MM, JUNTA ELÁSTICA - FORNECIMENTO E ASSENTAMENTO. | F45: =PLANILHA!F53 -> M | G45: 8 | H45: Total de tubulação: 8 m
B46: =PLANILHA!B54 -> 9.4 | C46: =PLANILHA!C54 -> SINAPI | E46: =PLANILHA!E54 -> JOELHO 90 GRAUS, PVC, SERIE R, ÁGUA PLUVIAL, DN 100 MM, JUNTA ELÁSTICA, FORNECIDO E INSTALADO EM RAMAL DE ENCAMINHAMENTO. | F46: =PLANILHA!F54 -> UN | G46: 2 | H46: 2 Joelhos
B47: =PLANILHA!B55 -> 9.5 | C47: =PLANILHA!C55 -> SINAPI | E47: =PLANILHA!E55 -> MASSA ÚNICA, PARA RECEBIMENTO DE PINTURA, EM ARGAMASSA TRAÇO 1:2:8, PREPARO MANUAL, APLICADA MANUALMENTE EM FACES INTERNAS DE PAREDES, ESPESSURA DE 20MM, COM EXECUÇÃO DE TALISCAS. | F47: =PLANILHA!F55 -> M2 | G47: 0.25 | H47: 0,25 m²
B48: =PLANILHA!B56 -> 9.6 | C48: =PLANILHA!C56 -> SINAPI | E48: =PLANILHA!E56 -> ARGAMASSA TRAÇO 1:7 (EM VOLUME DE CIMENTO E AREIA MÉDIA ÚMIDA) COM ADIÇÃO DE PLASTIFICANTE PARA EMBOÇO/MASSA ÚNICA/ASSENTAMENTO DE ALVENARIA DE VEDAÇÃO, PREPARO MECÂNICO COM BETONEIRA 400 L. | F48: =PLANILHA!F56 -> M3 | G48: 0.12 | H48: Fechamento de rasgo na parede para instalação da tubulação na parede: 0,12 m³
B49: =PLANILHA!B57 -> 9.7 | C49: =PLANILHA!C57 -> SINAPI | E49: =PLANILHA!E57 -> PISO CIMENTADO, TRAÇO 1:3 (CIMENTO E AREIA), ACABAMENTO LISO, ESPESSURA 3,0 CM, PREPARO MECÂNICO DA ARGAMASSA. | F49: =PLANILHA!F57 -> M2 | G49: 0.5 | H49: Fechamento de rasgo na parede para instalação da tubulação no piso: 0,5 m²
B50: =PLANILHA!B59 -> 10 | C50: =PLANILHA!C59 -> TAMPA CAIXA DE CHORUME
B51: =PLANILHA!B60 -> 10.1 | C51: =PLANILHA!C60 -> SINAPI | D51: =PLANILHA!D60 -> 103076 | E51: =PLANILHA!E60 -> EXECUÇÃO DE LAJE SOBRE SOLO, ESPESSURA DE 10 CM, FCK = 30 MPA, COM USO DE FORMAS EM MADEIRA SERRADA. | F51: =PLANILHA!F60 -> M2 | G51: 3.3 | H51: 1,65x2,00 = 3,30 m²
B52: =PLANILHA!B61 -> 10.2 | C52: =PLANILHA!C61 -> SINAPI | D52: =PLANILHA!D61 -> 89580 | E52: =PLANILHA!E61 -> TUBO PVC, SÉRIE R, ÁGUA PLUVIAL, DN 150 MM, FORNECIDO E INSTALADO EM CONDUTORES VERTICAIS DE ÁGUAS PLUVIAIS. | F52: =PLANILHA!F61 -> M | G52: 1 | H52: 1 metro de tubo, instalado perpendicularmente ao plano da tampa (ver detalhamento em projeto)
B53: =PLANILHA!B62 -> 10.3 | C53: =PLANILHA!C62 -> IOPES | D53: =PLANILHA!D62 -> 142114 | E53: =PLANILHA!E62 -> TAMPA PARA CAIXA SIFONADA, EM PVC, DE 150X150MM | F53: =PLANILHA!F62 -> UND | G53: 1 | H53: 1 Tampa
B54: =PLANILHA!B64 -> 11 | C54: =PLANILHA!C64 -> PISO
B55: 12.1 | C55: =PLANILHA!C65 -> SINAPI | D55: =PLANILHA!D65 -> 97104 | E55: =PLANILHA!E65 -> EXECUÇÃO DE PAVIMENTO DE CONCRETO SIMPLES (PCS), FCK = 40 MPA, CAMADA COM ESPESSURA DE 15,0 CM. | F55: =PLANILHA!F65 -> M2 | G55: 390 | H55: Área a ser pavimentada = 390,00 m²(Ver projeto arquitetônico)
B56: _____________________________ EDUARDO ROCHA COCCO ENG.º CIVIL CREA 6711 - D - ES | J56: =6.1*2 -> 12.2 | K56: 0.43 | M56: ban | N56: ban | P56: área de serviço | T56: s. Aula | U56: =25.33*2.9-0.8*2.1-2*1.05 -> 69.677
K57: 0.4 | M57: =15.89*2.9-2.35*0.8-5*0.15*1.6-0.9*2.1 -> 41.111 | N57: =8.03*2.9-0.49-0.6*2.1 -> 21.537 | O57: =17.1*2.9-1.4*2.1-0.6*2.1-1.65*2 -> 42.09 | P57: =7.4*2.9-1.2*2.1 -> 18.94 | T57: sec | U57: =16.75*2.9-2*1.05-2.2*2.1 -> 41.855
K58: =14.69*2.9 -> 42.601 | M58: =2.08*1.6 -> 3.328
M59: =(5.19-1.8-0.9)*1.75 -> 4.3575
J64: 14.91
J66: =SUM(J42:J64) -> 27.11

Sheet CRONOGRAMA FÍSICO-FINANCEIRO
B2: =PLANILHA!B3 -> OBRA: RECONSTRUÇÃO GALPÃO DE DESTINAÇÃO DE LIXO
B3: =PLANILHA!B4 -> LOCAL: BAIRRO BANANEIRAS-VENDA NOVA DO IMIGRANTE/ES
B4: =PLANILHA!B5 -> PROPRIETÁRIO: PREFEITURA MUNICIPAL DE VENDA NOVA DO IMIGRANTE
B5: =PLANILHA!B6 -> DATA: 24/12/2021
B6: =PLANILHA!B7 -> REFERENCIAL DE PREÇOS: IOPES / SINAPI
B8: ITEM | C8: DESCRIÇÃO DOS SERVIÇOS | F8: TOTAL | G8: MÊS 1 | H8: MÊS 2 | I8: MÊS 3 | J8: MÊS 4 | K8: MÊS 5 | L8: MÊS 6 | M8: MÊS 7 | N8: MÊS 8 | O8: MÊS 9 | P8: MÊS 10
B9: 1 | C9: =VLOOKUP(B9,PLANILHA!$B$13:$D$95,2,0) -> CANTEIRO DE OBRAS | F9: =PLANILHA!L15 -> 0 | G9: 1 | Q9: =SUM(G9:P9) -> 1
G10: =ROUND(G9*$F$9,2) -> 0 | Q10: 0 | S10: =F9-Q10 -> 0
B11: 2 | C11: =VLOOKUP(B11,PLANILHA!$B$13:$D$95,2,0) -> DEMOLIÇÃO E RETIRADA | F11: =PLANILHA!L23 -> 0 | G11: 1 | Q11: 1
G12: =ROUND(G11*$F$11,2) -> 0 | Q12: 0 | S12: =F11-Q12 -> 0
B13: 3 | C13: =VLOOKUP(B13,PLANILHA!$B$13:$D$95,2,0) -> ESCAVAÇÃO | F13: =PLANILHA!L27 -> 0 | H13: 1 | Q13: 1
H14: =ROUND(H13*$F$13,2) -> 0 | Q14: 0 | S14: =F13-Q14 -> 0
B15: 4 | C15: =VLOOKUP(B15,PLANILHA!$B$13:$D$95,2,0) -> FUNDAÇÕES | F15: =PLANILHA!L34 -> 0 | H15: 1 | Q15: 1
H16: =ROUND(H15*$F$15,2) -> 0 | Q16: 0 | S16: =F15-Q16 -> 0
B17: 5 | C17: =VLOOKUP(B17,PLANILHA!$B$13:$D$95,2,0) -> SUPERESTRUTURA | F17: =PLANILHA!L38 -> 0 | I17: 0.25 | J17: 0.25 | K17: 0.25 | L17: 0.25 | Q17: 1
I18: =ROUND(I$17*$F$17,2) -> 0 | J18: =ROUND(J$17*$F$17,2) -> 0 | K18: =ROUND(K$17*$F$17,2) -> 0 | L18: =ROUND(L$17*$F$17,2) -> 0 | Q18: 0 | S18: =F17-Q18 -> 0
B19: 6 | C19: =VLOOKUP(B19,PLANILHA!$B$13:$D$95,2,0) -> TAPAMENTO | F19: =PLANILHA!L41 -> 0 | M19: 0.5 | N19: 0.5 | Q19: 1
M20: =ROUND(M19*$F$19,2) -> 0 | N20: =ROUND(N19*$F$19,2) -> 0 | Q20: 0 | S20: =F19-Q20 -> 0
B21: 7 | C21: =VLOOKUP(B21,PLANILHA!$B$13:$D$95,2,0) -> COBERTURA | F21: =PLANILHA!L46 -> 0 | M21: 0.5 | N21: 0.5 | Q21: 1
M22: =ROUND(M21*$F$21,2) -> 0 | N22: =ROUND(N21*$F$21,2) -> 0 | Q22: 0 | S22: =F21-Q22 -> 0
B23: 8 | C23: =VLOOKUP(B23,PLANILHA!$B$13:$D$95,2,0) -> PAREDES | F23: =PLANILHA!L49 -> 0 | P23: 1 | Q23: 1
P24: =P23*$F$23 -> 0 | Q24: 0 | S24: =F23-Q24 -> 0
B25: 9 | C25: =VLOOKUP(B25,PLANILHA!$B$13:$D$95,2,0) -> DRENAGEM | F25: =PLANILHA!L58 -> 0 | P25: 1 | Q25: 1
P26: =P25*$F$25 -> 0 | Q26: 0 | S26: =F25-Q26 -> 0
B27: 10 | C27: =VLOOKUP(B27,PLANILHA!$B$13:$D$95,2,0) -> TAMPA CAIXA DE CHORUME | F27: =PLANILHA!L63 -> 0 | P27: 1 | Q27: 1
P28: =P27*$F$27 -> 0 | Q28: 0 | S28: =F27-Q28 -> 0
B29: 11 | C29: =VLOOKUP(B29,PLANILHA!$B$13:$D$95,2,0) -> PISO | F29: =PLANILHA!L66 -> 0 | O29: 0.75 | P29: 0.25 | Q29: 1
O30: =O29*$F$29 -> 0 | P30: =P29*$F$29 -> 0 | Q30: 0 | S30: =F29-Q30 -> 0
B31: TOTAL | F31: =ROUND(SUM(F9:F30),2) -> 0 | G31: =SUM(G10,G12,G14,G16,G18,G20,G22,G24,G26,G28,) -> 0 | H31: 0 | I31: 0 | J31: 0 | K31: 0 | L31: 0 | M31: 0 | N31: 0 | O31: =SUM(O10,O12,O14,O16,O18,O20,O22,O24,O26,O28,O30) -> 0 | P31: =SUM(P10,P12,P14,P16,P18,P20,P22,P24,P26,P28,P30) -> 0
B32: TOTAL ACUMULADO | G32: =G31 -> 0 | H32: =H31+G32 -> 0 | I32: 0 | J32: 0 | K32: 0 | L32: 0 | M32: 0 | N32: 0 | O32: 0 | P32: 0 | Q32: =#REF!-F31 ->  | S32: =SUM(S10:S31) -> 0
B33: TOTAL PORCENTUAL | F33: =F31/F31 ->  | G33: =ROUND(G31/$F$31,4) -> 
B34: TOTAL PORCENTUAL ACUMULADO | G34: =ROUND(G32/$F$31,4) ->  | P34: =O34+P33 -> 
B35: _____________________________ EDUARDO ROCHA COCCO ENG.º CIVIL CREA 6711 - D - ES

Sheet COMPOSIÇÃO
B3: OBRA: RECONSTRUÇÃO GALPÃO DE DESTINAÇÃO DE LIXO
B4: LOCAL: BAIRRO BANANEIRAS-VENDA NOVA DO IMGIRANTE/ES
B5: PROPRIETÁRIO: PREFEITURA MUNICIPAL DE VENDA NOVA DO IMIGRANTE
B6: DATA: 24/12/2021
B7: =PLANILHA!B7 -> REFERENCIAL DE PREÇOS: IOPES / SINAPI
B8: DATA BASE: SETEMBRO/2021
B10: COMPOSIÇÃO 01 | D10: REMOÇÃO DE POSTE DE CONCRETO DUPLO T | J10: UND
B11: MÃO DE OBRA
B12: REFERÊNCIAL | C12: CÓD. | D12: ITEM | G12: UND. | H12: QNT. | I12: PREÇO UNIT. | J12: PREÇO TOTAL
B13: IOPES | C13: 010115 | D13: ELETRICISTA | G13: H | H13: 0.2 | I13: 19.12 | J13: =I13*H13 -> 3.824
B14: IOPES | C14: 010146 | D14: SERVENTE | G14: H | H14: 2 | I14: 14.05 | J14: =I14*H14 -> 28.1
I15: SUBTOTAL | J15: =SUM(J13:J14) -> 31.924
B16: EQUIPAMENTOS
B17: REFERÊNCIAL | C17: CÓD. | D17: ITEM | G17: UND. | H17: QNT. | I17: PREÇO UNIT. | J17: PREÇO TOTAL
B18: SINAPI | C18: 101009 | D18: CARGA, MANOBRA E DESCARGA DE POSTE DE CONCRETO EM CAMINHÃO CARROCERIA COM GUINDAUTO (MUNCK) | G18: T | H18: 1 | I18: 29.24 | J18: =I18*H18 -> 29.24
I19: SUBTOTAL | J19: =SUM(J18:J18) -> 29.24
I20: TOTAL | J20: =J19+J15 -> 61.164
B22: COMPOSIÇÃO 02 | D22: REMOÇÃO DE POSTE DE MADEIRA DN 150 ATÉ 300 MM H=5M | J22: UND
B23: MÃO DE OBRA
B24: REFERÊNCIAL | C24: CÓD. | D24: ITEM | G24: UND. | H24: QNT. | I24: PREÇO UNIT. | J24: PREÇO TOTAL
B25: IOPES | C25: 010115 | D25: ELETRICISTA | G25: H | H25: 0.2 | I25: 19.12 | J25: =I25*H25 -> 3.824
B26: IOPES | C26: 010146 | D26: SERVENTE | G26: H | H26: 2 | I26: 14.05 | J26: =I26*H26 -> 28.1
I27: SUBTOTAL | J27: =SUM(J25:J26) -> 31.924
B28: EQUIPAMENTOS
B29: REFERÊNCIAL | C29: CÓD. | D29: ITEM | G29: UND. | H29: QNT. | I29: PREÇO UNIT. | J29: PREÇO TOTAL
B30: SICRO | C30: 5915373 | D30: CARGA, MANOBRA E DESCARGA DE MATERIAIS DIVERSOS EM CAMINHÃO CARROCERIA COM CAPACIDADE DE 7 T E COM GUINDAUTO DE 20 T.M | G30: T | H30: 0.353 | I30: 29.24 | J30: =I30*H30 -> 10.32172
I31: SUBTOTAL | J31: =SUM(J30:J30) -> 10.32172
I32: TOTAL | J32: =J31+J27 -> 42.24572
B34: COMPOSIÇÃO 03 | D34: CANALETA NO PISO EM CONCRETO SIMPLES COM DIMENSÕES INTERNAS DE 20 X 10 CM | J34: ML
B35: MÃO DE OBRA
B36: REFERÊNCIAL | C36: CÓD. | D36: ITEM | G36: UND. | H36: QNT. | I36: PREÇO UNIT. | J36: PREÇO TOTAL
B37: IOPES | C37: 010101 | D37: AJUDANTE | G37: H | H37: 0.702 | I37: 16.13 | J37: =I37*H37 -> 11.32326
B38: IOPES | C38: 010111 | D38: CARPINTEIRO | G38: H | H38: 0.702 | I38: 19.12 | J38: =I38*H38 -> 13.42224
B39: IOPES | C39: 010139 | D39: SERVENTE | G39: H | H39: 0.0798 | I39: 19.12 | J39: =I39*H39 -> 1.525776
B40: IOPES | C40: 010146 | D40: PEDREIRO | G40: H | H40: 0.8903 | I40: 14.05 | J40: =I40*H40 -> 12.508715
I41: SUBTOTAL | J41: =SUM(J37:J40) -> 38.779991
B43: MATERIAIS
B44: REFERÊNCIAL | C44: CÓD. | D44: ITEM | G44: UND. | H44: QNT. | I44: PREÇO UNIT. | J44: PREÇO TOTAL
B45: IOPES | C45: 020503 | D45: AREIA LAVADA MEDIA (LABOR) | G45: M3 | H45: 0.027332 | I45: 93.33 | J45: =I45*H45 -> 2.55089556
B46: IOPES | C46: 020508 | D46: CIMENTO PORTLAND CP III - 40 (LABOR) | G46: KG | H46: 12.768 | I46: 0.46 | J46: 5.87328
B47: IOPES | C47: 020517 | D47: BRITA 1 (LABOR) | G47: M3 | H47: 0.030125 | I47: 102.66 | J47: 3.0926325
B48: IOPES | C48: 020985 | D48: SARRAFO DE MADEIRA PINUS 10 X 2.5CM (LABOR) | G48: M | H48: 0.27 | I48: 6.42 | J48: 1.7334
B49: IOPES | C49: 020988 | D49: TABUA DE MADEIRA PINUS 30 X 2.5 CM (LABOR) | G49: M | H49: 0.54 | I49: 13.72 | J49: 7.4088
B50: IOPES | C50: 026569 | D50: PREGO 18X27 (LABOR) | G50: KG | H50: 0.081 | I50: 16.88 | J50: 1.36728
B51: IOPES | C51: 008008 | D51: DESMOLDANTE PARA FORMAS (LABOR) | G51: L | H51: 0.216 | I51: 10.14 | J51: 2.19024
I52: SUBTOTAL | J52: =SUM(J45:J51) -> 24.21652806
B54: EQUIPAMENTOS
B55: REFERÊNCIAL | C55: CÓD. | D55: ITEM | G55: UND. | H55: QNT. | I55: PREÇO UNIT. | J55: PREÇO TOTAL
B56: IOPES | C56: 080125 | D56: BETONEIRA 320 L (E301) (LABOR) | G56: H | H56: 0.028489 | I56: 34.29 | J56: =I56*H56 -> 0.97688781
I57: SUBTOTAL | J57: =SUM(J56:J56) -> 0.97688781
I58: TOTAL | J58: =J57+J41+J52 -> 63.97340687
E62: ____________________________
E63: EDUARDO ROCHA COCCO
E64: ENG.º CIVIL CREA 6711 - D - ES

Sheet SINAPI 09.2021 (hidden)
A1: CODIGO DA COMPOSICAO | B1: DESCRICAO DA COMPOSICAO | C1: UNIDADE | D1: ORIGEM DE PREÇO | E1: CUSTO TOTAL | F1: VINCULO
A3: 97141 | B3: ASSENTAMENTO DE TUBO DE FERRO FUNDIDO PARA REDE DE ÁGUA, DN 80 MM, JUNTA ELÁSTICA, INSTALADO EM LOCAL COM NÍVEL ALTO DE INTERFERÊNCIAS (NÃO INCLUI FORNECIMENTO). AF_11/2017 | C3: M | D3: COEFICIENTE DE REPRESENTATIVIDADE | E3: 7,50 | F3: CAIXA REFERENCIAL
A4: 97142 | B4: ASSENTAMENTO DE TUBO DE FERRO FUNDIDO PARA REDE DE ÁGUA, DN 100 MM, JUNTA ELÁSTICA, INSTALADO EM LOCAL COM NÍVEL ALTO DE INTERFERÊNCIAS (NÃO INCLUI FORNECIMENTO). AF_11/2017 | C4: M | D4: COEFICIENTE DE REPRESENTATIVIDADE | E4: 8,35 | F4: CAIXA REFERENCIAL
A5: 97143 | B5: ASSENTAMENTO DE TUBO DE FERRO FUNDIDO PARA REDE DE ÁGUA, DN 150 MM, JUNTA ELÁSTICA, INSTALADO EM LOCAL COM NÍVEL ALTO DE INTERFERÊNCIAS (NÃO INCLUI FORNECIMENTO). AF_11/2017 | C5: M | D5: COEFICIENTE DE REPRESENTATIVIDADE | E5: 10,48 | F5: CAIXA REFERENCIAL
A6: 97144 | B6: ASSENTAMENTO DE TUBO DE FERRO FUNDIDO PARA REDE DE ÁGUA, DN 200 MM, JUNTA ELÁSTICA, INSTALADO EM LOCAL COM NÍVEL ALTO DE INTERFERÊNCIAS (NÃO INCLUI FORNECIMENTO). AF_11/2017 | C6: M | D6: COEFICIENTE DE REPRESENTATIVIDADE | E6: 12,60 | F6: CAIXA REFERENCIAL
A7: 97145 | B7: ASSENTAMENTO DE TUBO DE FERRO FUNDIDO PARA REDE DE ÁGUA, DN 250 MM, JUNTA ELÁSTICA, INSTALADO EM LOCAL COM NÍVEL ALTO DE INTERFERÊNCIAS (NÃO INCLUI FORNECIMENTO). AF_11/2017 | C7: M | D7: COEFICIENTE DE REPRESENTATIVIDADE | E7: 14,73 | F7: CAIXA REFERENCIAL
A8: 97146 | B8: ASSENTAMENTO DE TUBO DE FERRO FUNDIDO PARA REDE DE ÁGUA, DN 300 MM, JUNTA ELÁSTICA, INSTALADO EM LOCAL COM NÍVEL ALTO DE INTERFERÊNCIAS (NÃO INCLUI FORNECIMENTO). AF_11/2017 | C8: M | D8: COEFICIENTE DE REPRESENTATIVIDADE | E8: 16,86 | F8: CAIXA REFERENCIAL
A9: 97147 | B9: ASSENTAMENTO DE TUBO DE FERRO FUNDIDO PARA REDE DE ÁGUA, DN 350 MM, JUNTA ELÁSTICA, INSTALADO EM LOCAL COM NÍVEL ALTO DE INTERFERÊNCIAS (NÃO INCLUI FORNECIMENTO). AF_11/2017 | C9: M | D9: COEFICIENTE DE REPRESENTATIVIDADE | E9: 19,00 | F9: CAIXA REFERENCIAL
A10: 97148 | B10: ASSENTAMENTO DE TUBO DE FERRO FUNDIDO PARA REDE DE ÁGUA, DN 400 MM, JUNTA ELÁSTICA, INSTALADO EM LOCAL COM NÍVEL ALTO DE INTERFERÊNCIAS (NÃO INCLUI FORNECIMENTO). AF_11/2017 | C10: M | D10: COEFICIENTE DE REPRESENTATIVIDADE | E10: 21,14 | F10: CAIXA REFERENCIAL
A11: 97149 | B11: ASSENTAMENTO DE TUBO DE FERRO FUNDIDO PARA REDE DE ÁGUA, DN 450 MM, JUNTA ELÁSTICA, INSTALADO EM LOCAL COM NÍVEL ALTO DE INTERFERÊNCIAS (NÃO INCLUI FORNECIMENTO). AF_11/2017 | C11: M | D11: COEFICIENTE DE REPRESENTATIVIDADE | E11: 23,30 | F11: CAIXA REFERENCIAL
A12: 97150 | B12: ASSENTAMENTO DE TUBO DE FERRO FUNDIDO PARA REDE DE ÁGUA, DN 500 MM, JUNTA ELÁSTICA, INSTALADO EM LOCAL COM NÍVEL ALTO DE INTERFERÊNCIAS (NÃO INCLUI FORNECIMENTO). AF_11/2017 | C12: M | D12: COEFICIENTE DE REPRESENTATIVIDADE | E12: 30,07 | F12: CAIXA REFERENCIAL
A13: 97151 | B13: ASSENTAMENTO DE TUBO DE FERRO FUNDIDO PARA REDE DE ÁGUA, DN 600 MM, JUNTA ELÁSTICA, INSTALADO EM LOCAL COM NÍVEL ALTO DE INTERFERÊNCIAS (NÃO INCLUI FORNECIMENTO). AF_11/2017 | C13: M | D13: COEFICIENTE DE REPRESENTATIVIDADE | E13: 35,04 | F13: CAIXA REFERENCIAL
A14: 97152 | B14: ASSENTAMENTO DE TUBO DE FERRO FUNDIDO PARA REDE DE ÁGUA, DN 700 MM, JUNTA ELÁSTICA, INSTALADO EM LOCAL COM NÍVEL ALTO DE INTERFERÊNCIAS (NÃO INCLUI FORNECIMENTO). AF_11/2017 | C14: M | D14: COEFICIENTE DE REPRESENTATIVIDADE | E14: 39,79 | F14: CAIXA REFERENCIAL
A15: 97153 | B15: ASSENTAMENTO DE TUBO DE FERRO FUNDIDO PARA REDE DE ÁGUA, DN 800 MM, JUNTA ELÁSTICA, INSTALADO EM LOCAL COM NÍVEL ALTO DE INTERFERÊNCIAS (NÃO INCLUI FORNECIMENTO). AF_11/2017 | C15: M | D15: COEFICIENTE DE REPRESENTATIVIDADE | E15: 44,65 | F15: CAIXA REFERENCIAL
A16: 97154 | B16: ASSENTAMENTO DE TUBO DE FERRO FUNDIDO PARA REDE DE ÁGUA, DN 900 MM, JUNTA ELÁSTICA, INSTALADO EM LOCAL COM NÍVEL ALTO DE INTERFERÊNCIAS (NÃO INCLUI FORNECIMENTO). AF_11/2017 | C16: M | D16: COEFICIENTE DE REPRESENTATIVIDADE | E16: 49,57 | F16: CAIXA REFERENCIAL
A17: 97155 | B17: ASSENTAMENTO DE TUBO DE FERRO FUNDIDO PARA REDE DE ÁGUA, DN 1000 MM, JUNTA ELÁSTICA, INSTALADO EM LOCAL COM NÍVEL ALTO DE INTERFERÊNCIAS (NÃO INCLUI FORNECIMENTO). AF_11/2017 | C17: M | D17: COEFICIENTE DE REPRESENTATIVIDADE | E17: 54,49 | F17: CAIXA REFERENCIAL
A18: 97156 | B18: ASSENTAMENTO DE TUBO DE FERRO FUNDIDO PARA REDE DE ÁGUA, DN 1200 MM, JUNTA ELÁSTICA, INSTALADO EM LOCAL COM NÍVEL ALTO DE INTERFERÊNCIAS (NÃO INCLUI FORNECIMENTO). AF_11/2017 | C18: M | D18: COEFICIENTE DE REPRESENTATIVIDADE | E18: 64,72 | F18: CAIXA REFERENCIAL
A19: 97157 | B19: ASSENTAMENTO DE TUBO DE FERRO FUNDIDO PARA REDE DE ÁGUA, DN 80 MM, JUNTA ELÁSTICA, INSTALADO EM LOCAL COM NÍVEL BAIXO DE INTERFERÊNCIAS (NÃO INCLUI FORNECIMENTO). AF_11/2017 | C19: M | D19: COEFICIENTE DE REPRESENTATIVIDADE | E19: 4,53 | F19: CAIXA REFERENCIAL
A20: 97158 | B20: ASSENTAMENTO DE TUBO DE FERRO FUNDIDO PARA REDE DE ÁGUA, DN 100 MM, JUNTA ELÁSTICA, INSTALADO EM LOCAL COM NÍVEL BAIXO DE INTERFERÊNCIAS (NÃO INCLUI FORNECIMENTO). AF_11/2017 | C20: M | D20: COEFICIENTE DE REPRESENTATIVIDADE | E20: 5,07 | F20: CAIXA REFERENCIAL
A21: 97159 | B21: ASSENTAMENTO DE TUBO DE FERRO FUNDIDO PARA REDE DE ÁGUA, DN 150 MM, JUNTA ELÁSTICA, INSTALADO EM LOCAL COM NÍVEL BAIXO DE INTERFERÊNCIAS (NÃO INCLUI FORNECIMENTO). AF_11/2017 | C21: M | D21: COEFICIENTE DE REPRESENTATIVIDADE | E21: 6,36 | F21: CAIXA REFERENCIAL
A22: 97160 | B22: ASSENTAMENTO DE TUBO DE FERRO FUNDIDO PARA REDE DE ÁGUA, DN 200 MM, JUNTA ELÁSTICA, INSTALADO EM LOCAL COM NÍVEL BAIXO DE INTERFERÊNCIAS (NÃO INCLUI FORNECIMENTO). AF_11/2017 | C22: M | D22: COEFICIENTE DE REPRESENTATIVIDADE | E22: 7,64 | F22: CAIXA REFERENCIAL
A23: 97161 | B23: ASSENTAMENTO DE TUBO DE FERRO FUNDIDO PARA REDE DE ÁGUA, DN 250 MM, JUNTA ELÁSTICA, INSTALADO EM LOCAL COM NÍVEL BAIXO DE INTERFERÊNCIAS (NÃO INCLUI FORNECIMENTO). AF_11/2017 | C23: M | D23: COEFICIENTE DE REPRESENTATIVIDADE | E23: 8,96 | F23: CAIXA REFERENCIAL
A24: 97162 | B24: ASSENTAMENTO DE TUBO DE FERRO FUNDIDO PARA REDE DE ÁGUA, DN 300 MM, JUNTA ELÁSTICA, INSTALADO EM LOCAL COM NÍVEL BAIXO DE INTERFERÊNCIAS (NÃO INCLUI FORNECIMENTO). AF_11/2017 | C24: M | D24: COEFICIENTE DE REPRESENTATIVIDADE | E24: 10,27 | F24: CAIXA REFERENCIAL
A25: 97163 | B25: ASSENTAMENTO DE TUBO DE FERRO FUNDIDO PARA REDE DE ÁGUA, DN 350 MM, JUNTA ELÁSTICA, INSTALADO EM LOCAL COM NÍVEL BAIXO DE INTERFERÊNCIAS (NÃO INCLUI FORNECIMENTO). AF_11/2017 | C25: M | D25: COEFICIENTE DE REPRESENTATIVIDADE | E25: 11,59 | F25: CAIXA REFERENCIAL
A26: 97164 | B26: ASSENTAMENTO DE TUBO DE FERRO FUNDIDO PARA REDE DE ÁGUA, DN 400 MM, JUNTA ELÁSTICA, INSTALADO EM LOCAL COM NÍVEL BAIXO DE INTERFERÊNCIAS (NÃO INCLUI FORNECIMENTO). AF_11/2017 | C26: M | D26: COEFICIENTE DE REPRESENTATIVIDADE | E26: 12,90 | F26: CAIXA REFERENCIAL
A27: 97165 | B27: ASSENTAMENTO DE TUBO DE FERRO FUNDIDO PARA REDE DE ÁGUA, DN 450 MM, JUNTA ELÁSTICA, INSTALADO EM LOCAL COM NÍVEL BAIXO DE INTERFERÊNCIAS (NÃO INCLUI FORNECIMENTO). AF_11/2017 | C27: M | D27: COEFICIENTE DE REPRESENTATIVIDADE | E27: 14,23 | F27: CAIXA REFERENCIAL
A28: 97166 | B28: ASSENTAMENTO DE TUBO DE FERRO FUNDIDO PARA REDE DE ÁGUA, DN 500 MM, JUNTA ELÁSTICA, INSTALADO EM LOCAL COM NÍVEL BAIXO DE INTERFERÊNCIAS (NÃO INCLUI FORNECIMENTO). AF_11/2017 | C28: M | D28: COEFICIENTE DE REPRESENTATIVIDADE | E28: 18,32 | F28: CAIXA REFERENCIAL
A29: 97167 | B29: ASSENTAMENTO DE TUBO DE FERRO FUNDIDO PARA REDE DE ÁGUA, DN 600 MM, JUNTA ELÁSTICA, INSTALADO EM LOCAL COM NÍVEL BAIXO DE INTERFERÊNCIAS (NÃO INCLUI FORNECIMENTO). AF_11/2017 | C29: M | D29: COEFICIENTE DE REPRESENTATIVIDADE | E29: 21,39 | F29: CAIXA REFERENCIAL
A30: 97168 | B30: ASSENTAMENTO DE TUBO DE FERRO FUNDIDO PARA REDE DE ÁGUA, DN 700 MM, JUNTA ELÁSTICA, INSTALADO EM LOCAL COM NÍVEL BAIXO DE INTERFERÊNCIAS (NÃO INCLUI FORNECIMENTO). AF_11/2017 | C30: M | D30: COEFICIENTE DE REPRESENTATIVIDADE | E30: 24,22 | F30: CAIXA REFERENCIAL
A31: 97169 | B31: ASSENTAMENTO DE TUBO DE FERRO FUNDIDO PARA REDE DE ÁGUA, DN 800 MM, JUNTA ELÁSTICA, INSTALADO EM LOCAL COM NÍVEL BAIXO DE INTERFERÊNCIAS (NÃO INCLUI FORNECIMENTO). AF_11/2017 | C31: M | D31: COEFICIENTE DE REPRESENTATIVIDADE | E31: 27,16 | F31: CAIXA REFERENCIAL
A32: 97170 | B32: ASSENTAMENTO DE TUBO DE FERRO FUNDIDO PARA REDE DE ÁGUA, DN 900 MM, JUNTA ELÁSTICA, INSTALADO EM LOCAL COM NÍVEL BAIXO DE INTERFERÊNCIAS (NÃO INCLUI FORNECIMENTO). AF_11/2017 | C32: M | D32: COEFICIENTE DE REPRESENTATIVIDADE | E32: 30,18 | F32: CAIXA REFERENCIAL
A33: 97171 | B33: ASSENTAMENTO DE TUBO DE FERRO FUNDIDO PARA REDE DE ÁGUA, DN 1000 MM, JUNTA ELÁSTICA, INSTALADO EM LOCAL COM NÍVEL BAIXO DE INTERFERÊNCIAS (NÃO INCLUI FORNECIMENTO). AF_11/2017 | C33: M | D33: COEFICIENTE DE REPRESENTATIVIDADE | E33: 33,19 | F33: CAIXA REFERENCIAL
A34: 97172 | B34: ASSENTAMENTO DE TUBO DE FERRO FUNDIDO PARA REDE DE ÁGUA, DN 1200 MM, JUNTA ELÁSTICA, INSTALADO EM LOCAL COM NÍVEL BAIXO DE INTERFERÊNCIAS (NÃO INCLUI FORNECIMENTO). AF_11/2017 | C34: M | D34: COEFICIENTE DE REPRESENTATIVIDADE | E34: 39,60 | F34: CAIXA REFERENCIAL
A35: 97173 | B35: ASSENTAMENTO DE TUBO DE AÇO CARBONO PARA REDE DE ÁGUA, DN 600 MM (24), JUNTA SOLDADA, INSTALADO EM LOCAL COM NÍVEL ALTO DE INTERFERÊNCIAS (NÃO INCLUI FORNECIMENTO). AF_11/2017 | C35: M | D35: COEFICIENTE DE REPRESENTATIVIDADE | E35: 32,62 | F35: CAIXA REFERENCIAL
A36: 97174 | B36: ASSENTAMENTO DE TUBO DE AÇO CARBONO PARA REDE DE ÁGUA, DN 700 MM (28), JUNTA SOLDADA, INSTALADO EM LOCAL COM NÍVEL ALTO DE INTERFERÊNCIAS (NÃO INCLUI FORNECIMENTO). AF_11/2017 | C36: M | D36: COEFICIENTE DE REPRESENTATIVIDADE | E36: 37,76 | F36: CAIXA REFERENCIAL
A37: 97175 | B37: ASSENTAMENTO DE TUBO DE AÇO CARBONO PARA REDE DE ÁGUA, DN 800 MM (32), JUNTA SOLDADA, INSTALADO EM LOCAL COM NÍVEL ALTO DE INTERFERÊNCIAS (NÃO INCLUI FORNECIMENTO). AF_11/2017 | C37: M | D37: COEFICIENTE DE REPRESENTATIVIDADE | E37: 42,88 | F37: CAIXA REFERENCIAL
A38: 97176 | B38: ASSENTAMENTO DE TUBO DE AÇO CARBONO PARA REDE DE ÁGUA, DN 900 MM (36), JUNTA SOLDADA, INSTALADO EM LOCAL COM NÍVEL ALTO DE INTERFERÊNCIAS (NÃO INCLUI FORNECIMENTO). AF_11/2017 | C38: M | D38: COEFICIENTE DE REPRESENTATIVIDADE | E38: 48,02 | F38: CAIXA REFERENCIAL
A39: 97177 | B39: ASSENTAMENTO DE TUBO DE AÇO CARBONO PARA REDE DE ÁGUA, DN 1000 MM (40) OU DN 1100 MM (44), JUNTA SOLDADA, INSTALADO EM LOCAL COM NÍVEL ALTO DE INTERFERÊNCIAS (NÃO INCLUI FORNECIMENTO). AF_11/2017 | C39: M | D39: COEFICIENTE DE REPRESENTATIVIDADE | E39: 58,29 | F39: CAIXA REFERENCIAL
A40: 97178 | B40: ASSENTAMENTO DE TUBO DE AÇO CARBONO PARA REDE DE ÁGUA, DN 1200 MM (48) OU DN 1300 MM (52), JUNTA SOLDADA, INSTALADO EM LOCAL COM NÍVEL ALTO DE INTERFERÊNCIAS (NÃO INCLUI FORNECIMENTO). AF_11/2017 | C40: M | D40: COEFICIENTE DE REPRESENTATIVIDADE | E40: 68,57 | F40: CAIXA REFERENCIAL
A41: 97179 | B41: ASSENTAMENTO DE TUBO DE AÇO CARBONO PARA REDE DE ÁGUA, DN 1400 MM (56'') OU DN 1500 MM (60), JUNTA SOLDADA, INSTALADO EM LOCAL COM NÍVEL ALTO DE INTERFERÊNCIAS (NÃO INCLUI FORNECIMENTO). AF_11/2017 | C41: M | D41: COEFICIENTE DE REPRESENTATIVIDADE | E41: 78,82 | F41: CAIXA REFERENCIAL
A42: 97180 | B42: ASSENTAMENTO DE TUBO DE AÇO CARBONO PARA REDE DE ÁGUA, DN 1600 MM (64) OU DN 1700 MM (68), JUNTA SOLDADA, INSTALADO EM LOCAL COM NÍVEL ALTO DE INTERFERÊNCIAS (NÃO INCLUI FORNECIMENTO). AF_11/2017 | C42: M | D42: COEFICIENTE DE REPRESENTATIVIDADE | E42: 89,11 | F42: CAIXA REFERENCIAL
A43: 97181 | B43: ASSENTAMENTO DE TUBO DE AÇO CARBONO PARA REDE DE ÁGUA, DN 1800 MM (72) OU DN 1900 MM (76), JUNTA SOLDADA, INSTALADO EM LOCAL COM NÍVEL ALTO DE INTERFERÊNCIAS (NÃO INCLUI FORNECIMENTO). AF_11/2017 | C43: M | D43: COEFICIENTE DE REPRESENTATIVIDADE | E43: 103,45 | F43: CAIXA REFERENCIAL
A44: 97182 | B44: ASSENTAMENTO DE TUBO DE AÇO CARBONO PARA REDE DE ÁGUA, DN 2000 MM (80) OU DN 2100 MM (84), JUNTA SOLDADA, INSTALADO EM LOCAL COM NÍVEL ALTO DE INTERFERÊNCIAS (NÃO INCLUI FORNECIMENTO). AF_11/2017 | C44: M | D44: COEFICIENTE DE REPRESENTATIVIDADE | E44: 114,14 | F44: CAIXA REFERENCIAL
A45: 97183 | B45: ASSENTAMENTO DE TUBO DE AÇO CARBONO PARA REDE DE ÁGUA, DN 600 MM (24), JUNTA SOLDADA, INSTALADO EM LOCAL COM NÍVEL BAIXO DE INTERFERÊNCIAS (NÃO INCLUI FORNECIMENTO). AF_11/2017 | C45: M | D45: COEFICIENTE DE REPRESENTATIVIDADE | E45: 26,07 | F45: CAIXA REFERENCIAL
A46: 97184 | B46: ASSENTAMENTO DE TUBO DE AÇO CARBONO PARA REDE DE ÁGUA, DN 700 MM (28), JUNTA SOLDADA, INSTALADO EM LOCAL COM NÍVEL BAIXO DE INTERFERÊNCIAS (NÃO INCLUI FORNECIMENTO). AF_11/2017 | C46: M | D46: COEFICIENTE DE REPRESENTATIVIDADE | E46: 30,23 | F46: CAIXA REFERENCIAL
A47: 97185 | B47: ASSENTAMENTO DE TUBO DE AÇO CARBONO PARA REDE DE ÁGUA, DN 800 MM (32), JUNTA SOLDADA, INSTALADO EM LOCAL COM NÍVEL BAIXO DE INTERFERÊNCIAS (NÃO INCLUI FORNECIMENTO). AF_11/2017 | C47: M | D47: COEFICIENTE DE REPRESENTATIVIDADE | E47: 34,39 | F47: CAIXA REFERENCIAL
A48: 97186 | B48: ASSENTAMENTO DE TUBO DE AÇO CARBONO PARA REDE DE ÁGUA, DN 900 MM (36), JUNTA SOLDADA, INSTALADO EM LOCAL COM NÍVEL BAIXO DE INTERFERÊNCIAS (NÃO INCLUI FORNECIMENTO). AF_11/2017 | C48: M | D48: COEFICIENTE DE REPRESENTATIVIDADE | E48: 38,56 | F48: CAIXA REFERENCIAL
A49: 97187 | B49: ASSENTAMENTO DE TUBO DE AÇO CARBONO PARA REDE DE ÁGUA, DN 1000 MM (40 ) OU DN 1100 MM (44 ), JUNTA SOLDADA, INSTALADO EM LOCAL COM NÍVEL BAIXO DE INTERFERÊNCIAS (NÃO INCLUI FORNECIMENTO). AF_11/2017 | C49: M | D49: COEFICIENTE DE REPRESENTATIVIDADE | E49: 46,89 | F49: CAIXA REFERENCIAL
A50: 97188 | B50: ASSENTAMENTO DE TUBO DE AÇO CARBONO PARA REDE DE ÁGUA, DN 1200 MM (48) OU DN 1300 MM (52), JUNTA SOLDADA, INSTALADO EM LOCAL COM NÍVEL BAIXO DE INTERFERÊNCIAS (NÃO INCLUI FORNECIMENTO). AF_11/2017 | C50: M | D50: COEFICIENTE DE REPRESENTATIVIDADE | E50: 55,23 | F50: CAIXA REFERENCIAL
A51: 97189 | B51: ASSENTAMENTO DE TUBO DE AÇO CARBONO PARA REDE DE ÁGUA, DN 1400 MM (56'') OU DN 1500 MM (60), JUNTA SOLDADA, INSTALADO EM LOCAL COM NÍVEL BAIXO DE INTERFERÊNCIAS (NÃO INCLUI FORNECIMENTO). AF_11/2017 | C51: M | D51: COEFICIENTE DE REPRESENTATIVIDADE | E51: 63,53 | F51: CAIXA REFERENCIAL
A52: 97190 | B52: ASSENTAMENTO DE TUBO DE AÇO CARBONO PARA REDE DE ÁGUA, DN 1600 MM (64) OU DN 1700 MM (68), JUNTA SOLDADA, INSTALADO EM LOCAL COM NÍVEL BAIXO DE INTERFERÊNCIAS (NÃO INCLUI FORNECIMENTO). AF_11/2017 | C52: M | D52: COEFICIENTE DE REPRESENTATIVIDADE | E52: 71,88 | F52: CAIXA REFERENCIAL
A53: 97191 | B53: ASSENTAMENTO DE TUBO DE AÇO CARBONO PARA REDE DE ÁGUA, DN 1800 MM (72) OU DN 1900 MM (76), JUNTA SOLDADA, INSTALADO EM LOCAL COM NÍVEL BAIXO DE INTERFERÊNCIAS (NÃO INCLUI FORNECIMENTO). AF_11/2017 | C53: M | D53: COEFICIENTE DE REPRESENTATIVIDADE | E53: 83,11 | F53: CAIXA REFERENCIAL
A54: 97192 | B54: ASSENTAMENTO DE TUBO DE AÇO CARBONO PARA REDE DE ÁGUA, DN 2000 MM (80) OU DN 2100 MM (84), JUNTA SOLDADA, INSTALADO EM LOCAL COM NÍVEL BAIXO DE INTERFERÊNCIAS (NÃO INCLUI FORNECIMENTO). AF_11/2017 | C54: M | D54: COEFICIENTE DE REPRESENTATIVIDADE | E54: 91,75 | F54: CAIXA REFERENCIAL
A55: 90694 | B55: TUBO DE PVC PARA REDE COLETORA DE ESGOTO DE PAREDE MACIÇA, DN 100 MM, JUNTA ELÁSTICA - FORNECIMENTO E ASSENTAMENTO. AF_01/2021 | C55: M | D55: ATRIBUÍDO SÃO PAULO | E55: 41,93 | F55: CAIXA REFERENCIAL
A56: 90695 | B56: TUBO DE PVC PARA REDE COLETORA DE ESGOTO DE PAREDE MACIÇA, DN 150 MM, JUNTA ELÁSTICA - FORNECIMENTO E ASSENTAMENTO. AF_01/2021 | C56: M | D56: ATRIBUÍDO SÃO PAULO | E56: 87,32 | F56: CAIXA REFERENCIAL
A57: 90696 | B57: TUBO DE PVC PARA REDE COLETORA DE ESGOTO DE PAREDE MACIÇA, DN 200 MM, JUNTA ELÁSTICA - FORNECIMENTO E ASSENTAMENTO. AF_01/2021 | C57: M | D57: ATRIBUÍDO SÃO PAULO | E57: 129,73 | F57: CAIXA REFERENCIAL
A58: 90697 | B58: TUBO DE PVC PARA REDE COLETORA DE ESGOTO DE PAREDE MACIÇA, DN 250 MM, JUNTA ELÁSTICA - FORNECIMENTO E ASSENTAMENTO. AF_01/2021 | C58: M | D58: ATRIBUÍDO SÃO PAULO | E58: 218,67 | F58: CAIXA REFERENCIAL
A59: 90698 | B59: TUBO DE PVC PARA REDE COLETORA DE ESGOTO DE PAREDE MACIÇA, DN 300 MM, JUNTA ELÁSTICA, FORNECIMENTO E ASSENTAMENTO. AF_01/2021 | C59: M | D59: ATRIBUÍDO SÃO PAULO | E59: 350,65 | F59: CAIXA REFERENCIAL
A60: 90699 | B60: TUBO DE PVC PARA REDE COLETORA DE ESGOTO DE PAREDE MACIÇA, DN 350 MM, JUNTA ELÁSTICA - FORNECIMENTO E ASSENTAMENTO. AF_01/2021 | C60: M | D60: ATRIBUÍDO SÃO PAULO | E60: 433,56 | F60: CAIXA REFERENCIAL
A61: 90700 | B61: TUBO DE PVC PARA REDE COLETORA DE ESGOTO DE PAREDE MACIÇA, DN 400 MM, JUNTA ELÁSTICA FORNECIMENTO E ASSENTAMENTO. AF_01/2021 | C61: M | D61: ATRIBUÍDO SÃO PAULO | E61: 561,90 | F61: CAIXA REFERENCIAL
A62: 90701 | B62: TUBO DE PVC CORRUGADO DE DUPLA PAREDE PARA REDE COLETORA DE ESGOTO, DN 150 MM, JUNTA ELÁSTICA - FORNECIMENTO E ASSENTAMENTO. AF_01/2021 | C62: M | D62: ATRIBUÍDO SÃO PAULO | E62: 70,98 | F62: CAIXA REFERENCIAL
A63: 90702 | B63: TUBO DE PVC CORRUGADO DE DUPLA PAREDE PARA REDE COLETORA DE ESGOTO, DN 200 MM, JUNTA ELÁSTICA - FORNECIMENTO E ASSENTAMENTO. AF_01/2021 | C63: M | D63: ATRIBUÍDO SÃO PAULO | E63: 113,14 | F63: CAIXA REFERENCIAL
A64: 90703 | B64: TUBO DE PVC CORRUGADO DE DUPLA PAREDE PARA REDE COLETORA DE ESGOTO, DN 250 MM, JUNTA ELÁSTICA - FORNECIMENTO E ASSENTAMENTO. AF_01/2021 | C64: M | D64: ATRIBUÍDO SÃO PAULO | E64: 185,31 | F64: CAIXA REFERENCIAL
A65: 90704 | B65: TUBO DE PVC CORRUGADO DE DUPLA PAREDE PARA REDE COLETORA DE ESGOTO, DN 300 MM, JUNTA ELÁSTICA - FORNECIMENTO E ASSENTAMENTO. AF_01/2021 | C65: M | D65: ATRIBUÍDO SÃO PAULO | E65: 256,37 | F65: CAIXA REFERENCIAL
A66: 90705 | B66: TUBO DE PVC CORRUGADO DE DUPLA PAREDE PARA REDE COLETORA DE ESGOTO, DN 350 MM, JUNTA ELÁSTICA - FORNECIMENTO E ASSENTAMENTO. AF_01/2021 | C66: M | D66: ATRIBUÍDO SÃO PAULO | E66: 360,60 | F66: CAIXA REFERENCIAL
A67: 90706 | B67: TUBO DE PVC CORRUGADO DE DUPLA PAREDE PARA REDE COLETORA DE ESGOTO, DN 400 MM, JUNTA ELÁSTICA - FORNECIMENTO E ASSENTAMENTO. AF_01/2021 | C67: M | D67: ATRIBUÍDO SÃO PAULO | E67: 420,83 | F67: CAIXA REFERENCIAL
A68: 90708 | B68: TUBO DE PEAD CORRUGADO DE DUPLA PAREDE PARA REDE COLETORA DE ESGOTO, DN 600 MM, JUNTA ELÁSTICA INTEGRADA - FORNECIMENTO E ASSENTAMENTO. AF_01/2021 | C68: M | D68: ATRIBUÍDO SÃO PAULO | E68: 1.192,44 | F68: CAIXA REFERENCIAL
A69: 90724 | B69: JUNTA ARGAMASSADA ENTRE TUBO DN 100 MM E O POÇO DE VISITA/ CAIXA DE CONCRETO OU ALVENARIA EM REDES DE ESGOTO. AF_01/2021 | C69: UN | D69: COEFICIENTE DE REPRESENTATIVIDADE | E69: 21,17 | F69: CAIXA REFERENCIAL
A70: 90725 | B70: JUNTA ARGAMASSADA ENTRE TUBO DN 150 MM E O POÇO DE VISITA/ CAIXA DE CONCRETO OU ALVENARIA EM REDES DE ESGOTO. AF_01/2021 | C70: UN | D70: COEFICIENTE DE REPRESENTATIVIDADE | E70: 26,02 | F70: CAIXA REFERENCIAL
A71: 90726 | B71: JUNTA ARGAMASSADA ENTRE TUBO DN 200 MM E O POÇO/ CAIXA DE CONCRETO OU ALVENARIA EM REDES DE ESGOTO. AF_01/2021 | C71: UN | D71: COEFICIENTE DE REPRESENTATIVIDADE | E71: 30,91 | F71: CAIXA REFERENCIAL
A72: 90727 | B72: JUNTA ARGAMASSADA ENTRE TUBO DN 250 MM E O POÇO DE VISITA/ CAIXA DE CONCRETO OU ALVENARIA EM REDES DE ESGOTO. AF_01/2021 | C72: UN | D72: COEFICIENTE DE REPRESENTATIVIDADE | E72: 35,76 | F72: CAIXA REFERENCIAL
A73: 90728 | B73: JUNTA ARGAMASSADA ENTRE TUBO DN 300 MM E O POÇO DE VISITA/ CAIXA DE CONCRETO OU ALVENARIA EM REDES DE ESGOTO. AF_01/2021 | C73: UN | D73: COEFICIENTE DE REPRESENTATIVIDADE | E73: 40,60 | F73: CAIXA REFERENCIAL
A74: 90729 | B74: JUNTA ARGAMASSADA ENTRE TUBO DN 350 MM E O POÇO DE VISITA/ CAIXA DE CONCRETO OU ALVENARIA EM REDES DE ESGOTO. AF_01/2021 | C74: UN | D74: COEFICIENTE DE REPRESENTATIVIDADE | E74: 45,46 | F74: CAIXA REFERENCIAL
A75: 90730 | B75: JUNTA ARGAMASSADA ENTRE TUBO DN 400 MM E O POÇO DE VISITA/ CAIXA DE CONCRETO OU ALVENARIA EM REDES DE ESGOTO. AF_01/2021 | C75: UN | D75: COEFICIENTE DE REPRESENTATIVIDADE | E75: 50,31 | F75: CAIXA REFERENCIAL
A76: 90731 | B76: JUNTA ARGAMASSADA ENTRE TUBO DN 450 MM E O POÇO DE VISITA/ CAIXA DE CONCRETO OU ALVENARIA EM REDES DE ESGOTO. AF_01/2021 | C76: UN | D76: COEFICIENTE DE REPRESENTATIVIDADE | E76: 55,15 | F76: CAIXA REFERENCIAL
A77: 90732 | B77: JUNTA ARGAMASSADA ENTRE TUBO DN 600 MM E O POÇO DE VISITA/ CAIXA DE CONCRETO OU ALVENARIA EM REDES DE ESGOTO. AF_01/2021 | C77: UN | D77: COEFICIENTE DE REPRESENTATIVIDADE | E77: 69,69 | F77: CAIXA REFERENCIAL
A78: 90733 | B78: ASSENTAMENTO DE TUBO DE PVC PARA REDE COLETORA DE ESGOTO DE PAREDE MACIÇA, DN 100 MM, JUNTA ELÁSTICA (NÃO INCLUI FORNECIMENTO). AF_01/2021 | C78: M | D78: COEFICIENTE DE REPRESENTATIVIDADE | E78: 3,00 | F78: CAIXA REFERENCIAL
A79: 90734 | B79: ASSENTAMENTO DE TUBO DE PVC PARA REDE COLETORA DE ESGOTO DE PAREDE MACIÇA, DN 150 MM, JUNTA ELÁSTICA, (NÃO INCLUI FORNECIMENTO). AF_01/2021 | C79: M | D79: COEFICIENTE DE REPRESENTATIVIDADE | E79: 3,56 | F79: CAIXA REFERENCIAL
A80: 90735 | B80: ASSENTAMENTO DE TUBO DE PVC PARA REDE COLETORA DE ESGOTO DE PAREDE MACIÇA, DN 200 MM, JUNTA ELÁSTICA (NÃO INCLUI FORNECIMENTO). AF_01/2021 | C80: M | D80: COEFICIENTE DE REPRESENTATIVIDADE | E80: 4,12 | F80: CAIXA REFERENCIAL
A81: 90736 | B81: ASSENTAMENTO DE TUBO DE PVC PARA REDE COLETORA DE ESGOTO DE PAREDE MACIÇA, DN 250 MM, JUNTA ELÁSTICA (NÃO INCLUI FORNECIMENTO). AF_01/2021 | C81: M | D81: COEFICIENTE DE REPRESENTATIVIDADE | E81: 4,68 | F81: CAIXA REFERENCIAL
A82: 90737 | B82: ASSENTAMENTO DE TUBO DE PVC PARA REDE COLETORA DE ESGOTO DE PAREDE MACIÇA, DN 300 MM, JUNTA ELÁSTICA (NÃO INCLUI FORNECIMENTO). AF_01/2021 | C82: M | D82: COEFICIENTE DE REPRESENTATIVIDADE | E82: 5,23 | F82: CAIXA REFERENCIAL
A83: 90738 | B83: ASSENTAMENTO DE TUBO DE PVC PARA REDE COLETORA DE ESGOTO DE PAREDE MACIÇA, DN 350 MM, JUNTA ELÁSTICA (NÃO INCLUI FORNECIMENTO). AF_01/2021 | C83: M | D83: COEFICIENTE DE REPRESENTATIVIDADE | E83: 5,79 | F83: CAIXA REFERENCIAL
A84: 90739 | B84: ASSENTAMENTO DE TUBO DE PVC PARA REDE COLETORA DE ESGOTO DE PAREDE MACIÇA, DN 400 MM, JUNTA ELÁSTICA (NÃO INCLUI FORNECIMENTO). AF_01/2021 | C84: M | D84: COEFICIENTE DE REPRESENTATIVIDADE | E84: 7,96 | F84: CAIXA REFERENCIAL
A85: 90740 | B85: ASSENTAMENTO DE TUBO DE PVC CORRUGADO DE DUPLA PAREDE PARA REDE COLETORA DE ESGOTO, DN 150 MM, JUNTA ELÁSTICA (NÃO INCLUI FORNECIMENTO). AF_01/2021 | C85: M | D85: COEFICIENTE DE REPRESENTATIVIDADE | E85: 3,97 | F85: CAIXA REFERENCIAL
A86: 90741 | B86: ASSENTAMENTO DE TUBO DE PVC CORRUGADO DE DUPLA PAREDE PARA REDE COLETORA DE ESGOTO, DN 200 MM, JUNTA ELÁSTICA (NÃO INCLUI FORNECIMENTO). AF_01/2021 | C86: M | D86: COEFICIENTE DE REPRESENTATIVIDADE | E86: 4,53 | F86: CAIXA REFERENCIAL
A87: 90742 | B87: ASSENTAMENTO DE TUBO DE PVC CORRUGADO DE DUPLA PAREDE PARA REDE COLETORA DE ESGOTO, DN 250 MM, JUNTA ELÁSTICA (NÃO INCLUI FORNECIMENTO). AF_01/2021 | C87: M | D87: COEFICIENTE DE REPRESENTATIVIDADE | E87: 5,09 | F87: CAIXA REFERENCIAL
A88: 90743 | B88: ASSENTAMENTO DE TUBO DE PVC CORRUGADO DE DUPLA PAREDE PARA REDE COLETORA DE ESGOTO, DN 300 MM, JUNTA ELÁSTICA (NÃO INCLUI FORNECIMENTO). AF_01/2021 | C88: M | D88: COEFICIENTE DE REPRESENTATIVIDADE | E88: 5,64 | F88: CAIXA REFERENCIAL
A89: 90744 | B89: ASSENTAMENTO DE TUBO DE PVC CORRUGADO DE DUPLA PAREDE PARA REDE COLETORA DE ESGOTO, DN 350 MM, JUNTA ELÁSTICA (NÃO INCLUI FORNECIMENTO). AF_01/2021 | C89: M | D89: COEFICIENTE DE REPRESENTATIVIDADE | E89: 6,19 | F89: CAIXA REFERENCIAL
A90: 90745 | B90: ASSENTAMENTO DE TUBO DE PVC CORRUGADO DE DUPLA PAREDE PARA REDE COLETORA DE ESGOTO, DN 400 MM, JUNTA ELÁSTICA (NÃO INCLUI FORNECIMENTO). AF_01/2021 | C90: M | D90: COEFICIENTE DE REPRESENTATIVIDADE | E90: 8,87 | F90: CAIXA REFERENCIAL
A91: 90746 | B91: ASSENTAMENTO DE TUBO DE PEAD CORRUGADO DE DUPLA PAREDE PARA REDE COLETORA DE ESGOTO, DN 450 MM, JUNTA ELÁSTICA INTEGRADA (NÃO INCLUI FORNECIMENTO). AF_01/2021 | C91: M | D91: COEFICIENTE DE REPRESENTATIVIDADE | E91: 3,25 | F91: CAIXA REFERENCIAL
A92: 90747 | B92: ASSENTAMENTO DE TUBO DE PEAD CORRUGADO DE DUPLA PAREDE PARA REDE COLETORA DE ESGOTO, DN 600 MM, JUNTA ELÁSTICA INTEGRADA (NÃO INCLUI FORNECIMENTO). AF_01/2021 | C92: M | D92: COEFICIENTE DE REPRESENTATIVIDADE | E92: 15,21 | F92: CAIXA REFERENCIAL
A93: 94869 | B93: TUBO DE PEAD CORRUGADO DE DUPLA PAREDE PARA REDE COLETORA DE ESGOTO, DN 250 MM, JUNTA ELÁSTICA INTEGRADA - FORNECIMENTO E ASSENTAMENTO. AF_01/2021 | C93: M | D93: ATRIBUÍDO SÃO PAULO | E93: 242,85 | F93: CAIXA REFERENCIAL
A94: 94870 | B94: ASSENTAMENTO DE TUBO DE PEAD CORRUGADO DE DUPLA PAREDE PARA REDE COLETORA DE ESGOTO, DN 250 MM, JUNTA ELÁSTICA INTEGRADA (NÃO INCLUI FORNECIMENTO). AF_01/2021 | C94: M | D94: COEFICIENTE DE REPRESENTATIVIDADE | E94: 1,76 | F94: CAIXA REFERENCIAL
A95: 94871 | B95: TUBO DE PEAD CORRUGADO DE DUPLA PAREDE PARA REDE COLETORA DE ESGOTO, DN 300 MM, JUNTA ELÁSTICA INTEGRADA - FORNECIMENTO E ASSENTAMENTO. AF_01/2021 | C95: M | D95: ATRIBUÍDO SÃO PAULO | E95: 287,60 | F95: CAIXA REFERENCIAL
A96: 94872 | B96: ASSENTAMENTO DE TUBO DE PEAD CORRUGADO DE DUPLA PAREDE PARA REDE COLETORA DE ESGOTO, DN 300 MM, JUNTA ELÁSTICA INTEGRADA (NÃO INCLUI FORNECIMENTO). AF_01/2021 | C96: M | D96: COEFICIENTE DE REPRESENTATIVIDADE | E96: 2,46 | F96: CAIXA REFERENCIAL
A97: 94875 | B97: TUBO DE PEAD CORRUGADO DE DUPLA PAREDE PARA REDE COLETORA DE ESGOTO, DN 800 MM, JUNTA ELÁSTICA INTEGRADA - FORNECIMENTO E ASSENTAMENTO. AF_01/2021 | C97: M | D97: ATRIBUÍDO SÃO PAULO | E97: 1.684,50 | F97: CAIXA REFERENCIAL
A98: 94876 | B98: ASSENTAMENTO DE TUBO DE PEAD CORRUGADO DE DUPLA PAREDE PARA REDE COLETORA DE ESGOTO, DN 800 MM, JUNTA ELÁSTICA INTEGRADA (NÃO INCLUI FORNECIMENTO). AF_01/2021 | C98: M | D98: COEFICIENTE DE REPRESENTATIVIDADE | E98: 25,70 | F98: CAIXA REFERENCIAL
A99: 94878 | B99: ASSENTAMENTO DE TUBO DE PEAD CORRUGADO DE DUPLA PAREDE PARA REDE COLETORA DE ESGOTO, DN 900 MM, JUNTA ELÁSTICA INTEGRADA (NÃO INCLUI FORNECIMENTO). AF_01/2021 | C99: M | D99: COEFICIENTE DE REPRESENTATIVIDADE | E99: 29,69 | F99: CAIXA REFERENCIAL
A100: 94879 | B100: TUBO DE PEAD CORRUGADO DE DUPLA PAREDE PARA REDE COLETORA DE ESGOTO, DN 1000 MM, JUNTA ELÁSTICA INTEGRADA - FORNECIMENTO E ASSENTAMENTO. AF_01/2021 | C100: M | D100: ATRIBUÍDO SÃO PAULO | E100: 2.243,25 | F100: CAIXA REFERENCIAL
A101: 94880 | B101: ASSENTAMENTO DE TUBO DE PEAD CORRUGADO DE DUPLA PAREDE PARA REDE COLETORA DE ESGOTO, DN 1000 MM, JUNTA ELÁSTICA INTEGRADA (NÃO INCLUI FORNECIMENTO). AF_01/2021 | C101: M | D101: COEFICIENTE DE REPRESENTATIVIDADE | E101: 38,44 | F101: CAIXA REFERENCIAL
A102: 94881 | B102: TUBO DE PEAD CORRUGADO DE DUPLA PAREDE PARA REDE COLETORA DE ESGOTO, DN 1200 MM, JUNTA ELÁSTICA INTEGRADA - FORNECIMENTO E ASSENTAMENTO. AF_01/2021 | C102: M | D102: ATRIBUÍDO SÃO PAULO | E102: 3.505,04 | F102: CAIXA REFERENCIAL
A103: 94882 | B103: ASSENTAMENTO DE TUBO DE PEAD CORRUGADO DE DUPLA PAREDE PARA REDE COLETORA DE ESGOTO, DN 1200 MM, JUNTA ELÁSTICA INTEGRADA (NÃO INCLUI FORNECIMENTO). AF_01/2021 | C103: M | D103: COEFICIENTE DE REPRESENTATIVIDADE | E103: 44,61 | F103: CAIXA REFERENCIAL
A104: 94884 | B104: ASSENTAMENTO DE TUBO DE PEAD CORRUGADO DE DUPLA PAREDE PARA REDE COLETORA DE ESGOTO, DN 1500 MM, JUNTA ELÁSTICA INTEGRADA (NÃO INCLUI FORNECIMENTO). AF_01/2021 | C104: M | D104: COEFICIENTE DE REPRESENTATIVIDADE | E104: 57,10 | F104: CAIXA REFERENCIAL
A105: 97121 | B105: ASSENTAMENTO DE TUBO DE PVC PBA PARA REDE DE ÁGUA, DN 50 MM, JUNTA ELÁSTICA INTEGRADA, INSTALADO EM LOCAL COM NÍVEL ALTO DE INTERFERÊNCIAS (NÃO INCLUI FORNECIMENTO). AF_11/2017 | C105: M | D105: COEFICIENTE DE REPRESENTATIVIDADE | E105: 1,80 | F105: CAIXA REFERENCIAL
A106: 97122 | B106: ASSENTAMENTO DE TUBO DE PVC PBA PARA REDE DE ÁGUA, DN 75 MM, JUNTA ELÁSTICA INTEGRADA, INSTALADO EM LOCAL COM NÍVEL ALTO DE INTERFERÊNCIAS (NÃO INCLUI FORNECIMENTO). AF_11/2017 | C106: M | D106: COEFICIENTE DE REPRESENTATIVIDADE | E106: 2,52 | F106: CAIXA REFERENCIAL
A107: 97123 | B107: ASSENTAMENTO DE TUBO DE PVC PBA PARA REDE DE ÁGUA, DN 100 MM, JUNTA ELÁSTICA INTEGRADA, INSTALADO EM LOCAL COM NÍVEL ALTO DE INTERFERÊNCIAS (NÃO INCLUI FORNECIMENTO). AF_11/2017 | C107: M | D107: COEFICIENTE DE REPRESENTATIVIDADE | E107: 3,18 | F107: CAIXA REFERENCIAL
A108: 97124 | B108: ASSENTAMENTO DE TUBO DE PVC PBA PARA REDE DE ÁGUA, DN 50 MM, JUNTA ELÁSTICA INTEGRADA, INSTALADO EM LOCAL COM NÍVEL BAIXO DE INTERFERÊNCIAS (NÃO INCLUI FORNECIMENTO). AF_11/2017 | C108: M | D108: COEFICIENTE DE REPRESENTATIVIDADE | E108: 0,80 | F108: CAIXA REFERENCIAL
A109: 97125 | B109: ASSENTAMENTO DE TUBO DE PVC PBA PARA REDE DE ÁGUA, DN 75 MM, JUNTA ELÁSTICA INTEGRADA, INSTALADO EM LOCAL COM NÍVEL BAIXO DE INTERFERÊNCIAS (NÃO INCLUI FORNECIMENTO). AF_11/2017 | C109: M | D109: COEFICIENTE DE REPRESENTATIVIDADE | E109: 1,14 | F109: CAIXA REFERENCIAL
A110: 97126 | B110: ASSENTAMENTO DE TUBO DE PVC PBA PARA REDE DE ÁGUA, DN 100 MM, JUNTA ELÁSTICA INTEGRADA, INSTALADO EM LOCAL COM NÍVEL BAIXO DE INTERFERÊNCIAS (NÃO INCLUI FORNECIMENTO). AF_11/2017 | C110: M | D110: COEFICIENTE DE REPRESENTATIVIDADE | E110: 1,45 | F110: CAIXA REFERENCIAL
A111: 102264 | B111: TUBO DE PVC BRANCO PARA REDE COLETORA DE ESGOTO CONDOMINIAL DE PAREDE MACIÇA, DN 100 MM, JUNTA ELÁSTICA - FORNECIMENTO E ASSENTAMENTO. AF_01/2021 | C111: M | D111: COEFICIENTE DE REPRESENTATIVIDADE | E111: 24,48 | F111: CAIXA REFERENCIAL
A112: 102265 | B112: JUNTA ARGAMASSADA ENTRE TUBO DN 800 MM E O POÇO DE VISITA/ CAIXA DE CONCRETO OU ALVENARIA EM REDES DE ESGOTO. AF_01/2021 | C112: UN | D112: COEFICIENTE DE REPRESENTATIVIDADE | E112: 89,09 | F112: CAIXA REFERENCIAL
A113: 102266 | B113: JUNTA ARGAMASSADA ENTRE TUBO DN 900 MM E O POÇO DE VISITA/ CAIXA DE CONCRETO OU ALVENARIA EM REDES DE ESGOTO. AF_01/2021 | C113: UN | D113: COEFICIENTE DE REPRESENTATIVIDADE | E113: 98,79 | F113: CAIXA REFERENCIAL
A114: 102267 | B114: JUNTA ARGAMASSADA ENTRE TUBO DN 1000 MM E O POÇO DE VISITA/ CAIXA DE CONCRETO OU ALVENARIA EM REDES DE ESGOTO. AF_01/2021 | C114: UN | D114: COEFICIENTE DE REPRESENTATIVIDADE | E114: 113,37 | F114: CAIXA REFERENCIAL
A115: 102268 | B115: JUNTA ARGAMASSADA ENTRE TUBO DN 1200 MM E O POÇO DE VISITA/ CAIXA DE CONCRETO OU ALVENARIA EM REDES DE ESGOTO. AF_01/2021 | C115: UN | D115: COEFICIENTE DE REPRESENTATIVIDADE | E115: 127,91 | F115: CAIXA REFERENCIAL
A116: 102269 | B116: JUNTA ARGAMASSADA ENTRE TUBO DN 1500 MM E O POÇO DE VISITA/ CAIXA DE CONCRETO OU ALVENARIA EM REDES DE ESGOTO. AF_01/2021 | C116: UN | D116: COEFICIENTE DE REPRESENTATIVIDADE | E116: 157,00 | F116: CAIXA REFERENCIAL
A117: 92833 | B117: TUBO DE CONCRETO PARA REDES COLETORAS DE ESGOTO SANITÁRIO, DIÂMETRO DE 300 MM, JUNTA ELÁSTICA, INSTALADO EM LOCAL COM BAIXO NÍVEL DE INTERFERÊNCIAS - FORNECIMENTO E ASSENTAMENTO. AF_12/2015 | C117: M | D117: COEFICIENTE DE REPRESENTATIVIDADE | E117: 177,30 | F117: CAIXA REFERENCIAL
A118: 92834 | B118: ASSENTAMENTO DE TUBO DE CONCRETO PARA REDES COLETORAS DE ESGOTO SANITÁRIO, DIÂMETRO DE 300 MM, JUNTA ELÁSTICA, INSTALADO EM LOCAL COM BAIXO NÍVEL DE INTERFERÊNCIAS (NÃO INCLUI FORNECIMENTO). AF_12/2015 | C118: M | D118: COEFICIENTE DE REPRESENTATIVIDADE | E118: 8,06 | F118: CAIXA REFERENCIAL
A119: 92835 | B119: TUBO DE CONCRETO PARA REDES COLETORAS DE ESGOTO SANITÁRIO, DIÂMETRO DE 400 MM, JUNTA ELÁSTICA, INSTALADO EM LOCAL COM BAIXO NÍVEL DE INTERFERÊNCIAS - FORNECIMENTO E ASSENTAMENTO. AF_12/2015 | C119: M | D119: COEFICIENTE DE REPRESENTATIVIDADE | E119: 190,90 | F119: CAIXA REFERENCIAL
A120: 92836 | B120: ASSENTAMENTO DE TUBO DE CONCRETO PARA REDES COLETORAS DE ESGOTO SANITÁRIO, DIÂMETRO DE 400 MM, JUNTA ELÁSTICA, INSTALADO EM LOCAL COM BAIXO NÍVEL DE INTERFERÊNCIAS (NÃO INCLUI FORNECIMENTO). AF_12/2015 | C120: M | D120: COEFICIENTE DE REPRESENTATIVIDADE | E120: 10,31 | F120: CAIXA REFERENCIAL
A121: 92837 | B121: TUBO DE CONCRETO PARA REDES COLETORAS DE ESGOTO SANITÁRIO, DIÂMETRO DE 500 MM, JUNTA ELÁSTICA, INSTALADO EM LOCAL COM BAIXO NÍVEL DE INTERFERÊNCIAS - FORNECIMENTO E ASSENTAMENTO. AF_12/2015 | C121: M | D121: COEFICIENTE DE REPRESENTATIVIDADE | E121: 315,89 | F121: CAIXA REFERENCIAL
A122: 92838 | B122: ASSENTAMENTO DE TUBO DE CONCRETO PARA REDES COLETORAS DE ESGOTO SANITÁRIO, DIÂMETRO DE 500 MM, JUNTA ELÁSTICA, INSTALADO EM LOCAL COM BAIXO NÍVEL DE INTERFERÊNCIAS (NÃO INCLUI FORNECIMENTO). AF_12/2015 | C122: M | D122: COEFICIENTE DE REPRESENTATIVIDADE | E122: 12,35 | F122: CAIXA REFERENCIAL
A123: 92839 | B123: TUBO DE CONCRETO PARA REDES COLETORAS DE ESGOTO SANITÁRIO, DIÂMETRO DE 600 MM, JUNTA ELÁSTICA, INSTALADO EM LOCAL COM BAIXO NÍVEL DE INTERFERÊNCIAS - FORNECIMENTO E ASSENTAMENTO. AF_12/2015 | C123: M | D123: COEFICIENTE DE REPRESENTATIVIDADE | E123: 387,09 | F123: CAIXA REFERENCIAL
A124: 92840 | B124: ASSENTAMENTO DE TUBO DE CONCRETO PARA REDES COLETORAS DE ESGOTO SANITÁRIO, DIÂMETRO DE 600 MM, JUNTA ELÁSTICA, INSTALADO EM LOCAL COM BAIXO NÍVEL DE INTERFERÊNCIAS (NÃO INCLUI FORNECIMENTO). AF_12/2015 | C124: M | D124: COEFICIENTE DE REPRESENTATIVIDADE | E124: 14,65 | F124: CAIXA REFERENCIAL
A125: 92841 | B125: TUBO DE CONCRETO PARA REDES COLETORAS DE ESGOTO SANITÁRIO, DIÂMETRO DE 700 MM, JUNTA ELÁSTICA, INSTALADO EM LOCAL COM BAIXO NÍVEL DE INTERFERÊNCIAS - FORNECIMENTO E ASSENTAMENTO. AF_12/2015 | C125: M | D125: COEFICIENTE DE REPRESENTATIVIDADE | E125: 482,86 | F125: CAIXA REFERENCIAL
A126: 92842 | B126: ASSENTAMENTO DE TUBO DE CONCRETO PARA REDES COLETORAS DE ESGOTO SANITÁRIO, DIÂMETRO DE 700 MM, JUNTA ELÁSTICA, INSTALADO EM LOCAL COM BAIXO NÍVEL DE INTERFERÊNCIAS (NÃO INCLUI FORNECIMENTO). AF_12/2015 | C126: M | D126: COEFICIENTE DE REPRESENTATIVIDADE | E126: 16,72 | F126: CAIXA REFERENCIAL
A127: 92843 | B127: TUBO DE CONCRETO PARA REDES COLETORAS DE ESGOTO SANITÁRIO, DIÂMETRO DE 800 MM, JUNTA ELÁSTICA, INSTALADO EM LOCAL COM BAIXO NÍVEL DE INTERFERÊNCIAS - FORNECIMENTO E ASSENTAMENTO. AF_12/2015 | C127: M | D127: COEFICIENTE DE REPRESENTATIVIDADE | E127: 515,38 | F127: CAIXA REFERENCIAL
A128: 92844 | B128: ASSENTAMENTO DE TUBO DE CONCRETO PARA REDES COLETORAS DE ESGOTO SANITÁRIO, DIÂMETRO DE 800 MM, JUNTA ELÁSTICA, INSTALADO EM LOCAL COM BAIXO NÍVEL DE INTERFERÊNCIAS (NÃO INCLUI FORNECIMENTO). AF_12/2015 | C128: M | D128: COEFICIENTE DE REPRESENTATIVIDADE | E128: 19,02 | F128: CAIXA REFERENCIAL
A129: 92845 | B129: TUBO DE CONCRETO PARA REDES COLETORAS DE ESGOTO SANITÁRIO, DIÂMETRO DE 900 MM, JUNTA ELÁSTICA, INSTALADO EM LOCAL COM BAIXO NÍVEL DE INTERFERÊNCIAS - FORNECIMENTO E ASSENTAMENTO. AF_12/2015 | C129: M | D129: COEFICIENTE DE REPRESENTATIVIDADE | E129: 711,44 | F129: CAIXA REFERENCIAL
A130: 92846 | B130: ASSENTAMENTO DE TUBO DE CONCRETO PARA REDES COLETORAS DE ESGOTO SANITÁRIO, DIÂMETRO DE 900 MM, JUNTA ELÁSTICA, INSTALADO EM LOCAL COM BAIXO NÍVEL DE INTERFERÊNCIAS (NÃO INCLUI FORNECIMENTO). AF_12/2015 | C130: M | D130: COEFICIENTE DE REPRESENTATIVIDADE | E130: 21,08 | F130: CAIXA REFERENCIAL
A131: 92847 | B131: TUBO DE CONCRETO PARA REDES COLETORAS DE ESGOTO SANITÁRIO, DIÂMETRO DE 1000 MM, JUNTA ELÁSTICA, INSTALADO EM LOCAL COM BAIXO NÍVEL DE INTERFERÊNCIAS - FORNECIMENTO E ASSENTAMENTO. AF_12/2015 | C131: M | D131: COEFICIENTE DE REPRESENTATIVIDADE | E131: 745,72 | F131: CAIXA REFERENCIAL
A132: 92848 | B132: ASSENTAMENTO DE TUBO DE CONCRETO PARA REDES COLETORAS DE ESGOTO SANITÁRIO, DIÂMETRO DE 1000 MM, JUNTA ELÁSTICA, INSTALADO EM LOCAL COM BAIXO NÍVEL DE INTERFERÊNCIAS (NÃO INCLUI FORNECIMENTO). AF_12/2015 | C132: M | D132: COEFICIENTE DE REPRESENTATIVIDADE | E132: 23,39 | F132: CAIXA REFERENCIAL
A133: 92849 | B133: TUBO DE CONCRETO PARA REDES COLETORAS DE ESGOTO SANITÁRIO, DIÂMETRO DE 300 MM, JUNTA ELÁSTICA, INSTALADO EM LOCAL COM ALTO NÍVEL DE INTERFERÊNCIAS - FORNECIMENTO E ASSENTAMENTO. AF_12/2015 | C133: M | D133: COEFICIENTE DE REPRESENTATIVIDADE | E133: 184,36 | F133: CAIXA REFERENCIAL
A134: 92850 | B134: ASSENTAMENTO DE TUBO DE CONCRETO PARA REDES COLETORAS DE ESGOTO SANITÁRIO, DIÂMETRO DE 300 MM, JUNTA ELÁSTICA, INSTALADO EM LOCAL COM ALTO NÍVEL DE INTERFERÊNCIAS (NÃO INCLUI FORNECIMENTO). AF_12/2015 | C134: M | D134: COEFICIENTE DE REPRESENTATIVIDADE | E134: 15,26 | F134: CAIXA REFERENCIAL
A135: 92851 | B135: TUBO DE CONCRETO PARA REDES COLETORAS DE ESGOTO SANITÁRIO, DIÂMETRO DE 400 MM, JUNTA ELÁSTICA, INSTALADO EM LOCAL COM ALTO NÍVEL DE INTERFERÊNCIAS - FORNECIMENTO E ASSENTAMENTO. AF_12/2015 | C135: M | D135: COEFICIENTE DE REPRESENTATIVIDADE | E135: 199,69 | F135: CAIXA REFERENCIAL
A136: 92852 | B136: ASSENTAMENTO DE TUBO DE CONCRETO PARA REDES COLETORAS DE ESGOTO SANITÁRIO, DIÂMETRO DE 400 MM, JUNTA ELÁSTICA, INSTALADO EM LOCAL COM ALTO NÍVEL DE INTERFERÊNCIAS (NÃO INCLUI FORNECIMENTO). AF_12/2015 | C136: M | D136: COEFICIENTE DE REPRESENTATIVIDADE | E136: 19,26 | F136: CAIXA REFERENCIAL
A137: 92853 | B137: TUBO DE CONCRETO PARA REDES COLETORAS DE ESGOTO SANITÁRIO, DIÂMETRO DE 500 MM, JUNTA ELÁSTICA, INSTALADO EM LOCAL COM ALTO NÍVEL DE INTERFERÊNCIAS - FORNECIMENTO E ASSENTAMENTO. AF_12/2015 | C137: M | D137: COEFICIENTE DE REPRESENTATIVIDADE | E137: 326,80 | F137: CAIXA REFERENCIAL
A138: 92854 | B138: ASSENTAMENTO DE TUBO DE CONCRETO PARA REDES COLETORAS DE ESGOTO SANITÁRIO, DIÂMETRO DE 500 MM, JUNTA ELÁSTICA, INSTALADO EM LOCAL COM ALTO NÍVEL DE INTERFERÊNCIAS (NÃO INCLUI FORNECIMENTO). AF_12/2015 | C138: M | D138: COEFICIENTE DE REPRESENTATIVIDADE | E138: 23,46 | F138: CAIXA REFERENCIAL
A139: 92855 | B139: TUBO DE CONCRETO PARA REDES COLETORAS DE ESGOTO SANITÁRIO, DIÂMETRO DE 600 MM, JUNTA ELÁSTICA, INSTALADO EM LOCAL COM ALTO NÍVEL DE INTERFERÊNCIAS - FORNECIMENTO E ASSENTAMENTO. AF_12/2015 | C139: M | D139: COEFICIENTE DE REPRESENTATIVIDADE | E139: 399,87 | F139: CAIXA REFERENCIAL
A140: 92856 | B140: ASSENTAMENTO DE TUBO DE CONCRETO PARA REDES COLETORAS DE ESGOTO SANITÁRIO, DIÂMETRO DE 600 MM, JUNTA ELÁSTICA, INSTALADO EM LOCAL COM ALTO NÍVEL DE INTERFERÊNCIAS (NÃO INCLUI FORNECIMENTO). AF_12/2015 | C140: M | D140: COEFICIENTE DE REPRESENTATIVIDADE | E140: 27,66 | F140: CAIXA REFERENCIAL
A141: 92857 | B141: TUBO DE CONCRETO PARA REDES COLETORAS DE ESGOTO SANITÁRIO, DIÂMETRO DE 700 MM, JUNTA ELÁSTICA, INSTALADO EM LOCAL COM ALTO NÍVEL DE INTERFERÊNCIAS - FORNECIMENTO E ASSENTAMENTO. AF_12/2015 | C141: M | D141: COEFICIENTE DE REPRESENTATIVIDADE | E141: 497,51 | F141: CAIXA REFERENCIAL
A142: 92858 | B142: ASSENTAMENTO DE TUBO DE CONCRETO PARA REDES COLETORAS DE ESGOTO SANITÁRIO, DIÂMETRO DE 700 MM, JUNTA ELÁSTICA, INSTALADO EM LOCAL COM ALTO NÍVEL DE INTERFERÊNCIAS (NÃO INCLUI FORNECIMENTO). AF_12/2015 | C142: M | D142: COEFICIENTE DE REPRESENTATIVIDADE | E142: 31,64 | F142: CAIXA REFERENCIAL
A143: 92859 | B143: TUBO DE CONCRETO PARA REDES COLETORAS DE ESGOTO SANITÁRIO, DIÂMETRO DE 800 MM, JUNTA ELÁSTICA, INSTALADO EM LOCAL COM ALTO NÍVEL DE INTERFERÊNCIAS - FORNECIMENTO E ASSENTAMENTO. AF_12/2015 | C143: M | D143: COEFICIENTE DE REPRESENTATIVIDADE | E143: 532,30 | F143: CAIXA REFERENCIAL
A144: 92860 | B144: ASSENTAMENTO DE TUBO DE CONCRETO PARA REDES COLETORAS DE ESGOTO SANITÁRIO, DIÂMETRO DE 800 MM, JUNTA ELÁSTICA, INSTALADO EM LOCAL COM ALTO NÍVEL DE INTERFERÊNCIAS (NÃO INCLUI FORNECIMENTO). AF_12/2015 | C144: M | D144: COEFICIENTE DE REPRESENTATIVIDADE | E144: 35,94 | F144: CAIXA REFERENCIAL
A145: 92861 | B145: TUBO DE CONCRETO PARA REDES COLETORAS DE ESGOTO SANITÁRIO, DIÂMETRO DE 900 MM, JUNTA ELÁSTICA, INSTALADO EM LOCAL COM ALTO NÍVEL DE INTERFERÊNCIAS - FORNECIMENTO E ASSENTAMENTO. AF_12/2015 | C145: M | D145: COEFICIENTE DE REPRESENTATIVIDADE | E145: 730,47 | F145: CAIXA REFERENCIAL
A146: 92862 | B146: ASSENTAMENTO DE TUBO DE CONCRETO PARA REDES COLETORAS DE ESGOTO SANITÁRIO, DIÂMETRO DE 900 MM, JUNTA ELÁSTICA, INSTALADO EM LOCAL COM ALTO NÍVEL DE INTERFERÊNCIAS (NÃO INCLUI FORNECIMENTO). AF_12/2015 | C146: M | D146: COEFICIENTE DE REPRESENTATIVIDADE | E146: 40,11 | F146: CAIXA REFERENCIAL
A147: 92863 | B147: TUBO DE CONCRETO PARA REDES COLETORAS DE ESGOTO SANITÁRIO, DIÂMETRO DE 1000 MM, JUNTA ELÁSTICA, INSTALADO EM LOCAL COM ALTO NÍVEL DE INTERFERÊNCIAS - FORNECIMENTO E ASSENTAMENTO. AF_12/2015 | C147: M | D147: COEFICIENTE DE REPRESENTATIVIDADE | E147: 766,27 | F147: CAIXA REFERENCIAL
A148: 92864 | B148: ASSENTAMENTO DE TUBO DE CONCRETO PARA REDES COLETORAS DE ESGOTO SANITÁRIO, DIÂMETRO DE 1000 MM, JUNTA ELÁSTICA, INSTALADO EM LOCAL COM ALTO NÍVEL DE INTERFERÊNCIAS (NÃO INCLUI FORNECIMENTO). AF_12/2015 | C148: M | D148: COEFICIENTE DE REPRESENTATIVIDADE | E148: 44,31 | F148: CAIXA REFERENCIAL
A149: 92210 | B149: TUBO DE CONCRETO PARA REDES COLETORAS DE ÁGUAS PLUVIAIS, DIÂMETRO DE 400 MM, JUNTA RÍGIDA, INSTALADO EM LOCAL COM BAIXO NÍVEL DE INTERFERÊNCIAS - FORNECIMENTO E ASSENTAMENTO. AF_12/2015 | C149: M | D149: COEFICIENTE DE REPRESENTATIVIDADE | E149: 125,18 | F149: CAIXA REFERENCIAL
A150: 92211 | B150: TUBO DE CONCRETO PARA REDES COLETORAS DE ÁGUAS PLUVIAIS, DIÂMETRO DE 500 MM, JUNTA RÍGIDA, INSTALADO EM LOCAL COM BAIXO NÍVEL DE INTERFERÊNCIAS - FORNECIMENTO E ASSENTAMENTO. AF_12/2015 | C150: M | D150: COEFICIENTE DE REPRESENTATIVIDADE | E150: 150,56 | F150: CAIXA REFERENCIAL
A151: 92212 | B151: TUBO DE CONCRETO PARA REDES COLETORAS DE ÁGUAS PLUVIAIS, DIÂMETRO DE 600 MM, JUNTA RÍGIDA, INSTALADO EM LOCAL COM BAIXO NÍVEL DE INTERFERÊNCIAS - FORNECIMENTO E ASSENTAMENTO. AF_12/2015 | C151: M | D151: COEFICIENTE DE REPRESENTATIVIDADE | E151: 219,47 | F151: CAIXA REFERENCIAL
A152: 92213 | B152: TUBO DE CONCRETO PARA REDES COLETORAS DE ÁGUAS PLUVIAIS, DIÂMETRO DE 700 MM, JUNTA RÍGIDA, INSTALADO EM LOCAL COM BAIXO NÍVEL DE INTERFERÊNCIAS - FORNECIMENTO E ASSENTAMENTO. AF_12/2015 | C152: M | D152: COEFICIENTE DE REPRESENTATIVIDADE | E152: 285,26 | F152: CAIXA REFERENCIAL
A153: 92214 | B153: TUBO DE CONCRETO PARA REDES COLETORAS DE ÁGUAS PLUVIAIS, DIÂMETRO DE 800 MM, JUNTA RÍGIDA, INSTALADO EM LOCAL COM BAIXO NÍVEL DE INTERFERÊNCIAS - FORNECIMENTO E ASSENTAMENTO. AF_12/2015 | C153: M | D153: COEFICIENTE DE REPRESENTATIVIDADE | E153: 343,11 | F153: CAIXA REFERENCIAL
A154: 92215 | B154: TUBO DE CONCRETO PARA REDES COLETORAS DE ÁGUAS PLUVIAIS, DIÂMETRO DE 900 MM, JUNTA RÍGIDA, INSTALADO EM LOCAL COM BAIXO NÍVEL DE INTERFERÊNCIAS - FORNECIMENTO E ASSENTAMENTO. AF_12/2015 | C154: M | D154: COEFICIENTE DE REPRESENTATIVIDADE | E154: 393,36 | F154: CAIXA REFERENCIAL
A155: 92216 | B155: TUBO DE CONCRETO PARA REDES COLETORAS DE ÁGUAS PLUVIAIS, DIÂMETRO DE 1000 MM, JUNTA RÍGIDA, INSTALADO EM LOCAL COM BAIXO NÍVEL DE INTERFERÊNCIAS - FORNECIMENTO E ASSENTAMENTO. AF_12/2015 | C155: M | D155: COEFICIENTE DE REPRESENTATIVIDADE | E155: 413,09 | F155: CAIXA REFERENCIAL
A156: 92219 | B156: TUBO DE CONCRETO PARA REDES COLETORAS DE ÁGUAS PLUVIAIS, DIÂMETRO DE 400 MM, JUNTA RÍGIDA, INSTALADO EM LOCAL COM ALTO NÍVEL DE INTERFERÊNCIAS - FORNECIMENTO E ASSENTAMENTO. AF_12/2015 | C156: M | D156: COEFICIENTE DE REPRESENTATIVIDADE | E156: 134,14 | F156: CAIXA REFERENCIAL
A157: 92220 | B157: TUBO DE CONCRETO PARA REDES COLETORAS DE ÁGUAS PLUVIAIS, DIÂMETRO DE 500 MM, JUNTA RÍGIDA, INSTALADO EM LOCAL COM ALTO NÍVEL DE INTERFERÊNCIAS - FORNECIMENTO E ASSENTAMENTO. AF_12/2015 | C157: M | D157: COEFICIENTE DE REPRESENTATIVIDADE | E157: 161,66 | F157: CAIXA REFERENCIAL
A158: 92221 | B158: TUBO DE CONCRETO PARA REDES COLETORAS DE ÁGUAS PLUVIAIS, DIÂMETRO DE 600 MM, JUNTA RÍGIDA, INSTALADO EM LOCAL COM ALTO NÍVEL DE INTERFERÊNCIAS - FORNECIMENTO E ASSENTAMENTO. AF_12/2015 | C158: M | D158: COEFICIENTE DE REPRESENTATIVIDADE | E158: 232,48 | F158: CAIXA REFERENCIAL
A159: 92222 | B159: TUBO DE CONCRETO PARA REDES COLETORAS DE ÁGUAS PLUVIAIS, DIÂMETRO DE 700 MM, JUNTA RÍGIDA, INSTALADO EM LOCAL COM ALTO NÍVEL DE INTERFERÊNCIAS - FORNECIMENTO E ASSENTAMENTO. AF_12/2015 | C159: M | D159: COEFICIENTE DE REPRESENTATIVIDADE | E159: 300,38 | F159: CAIXA REFERENCIAL
A160: 92223 | B160: TUBO DE CONCRETO PARA REDES COLETORAS DE ÁGUAS PLUVIAIS, DIÂMETRO DE 800 MM, JUNTA RÍGIDA, INSTALADO EM LOCAL COM ALTO NÍVEL DE INTERFERÊNCIAS - FORNECIMENTO E ASSENTAMENTO. AF_12/2015 | C160: M | D160: COEFICIENTE DE REPRESENTATIVIDADE | E160: 360,03 | F160: CAIXA REFERENCIAL
A161: 92224 | B161: TUBO DE CONCRETO PARA REDES COLETORAS DE ÁGUAS PLUVIAIS, DIÂMETRO DE 900 MM, JUNTA RÍGIDA, INSTALADO EM LOCAL COM ALTO NÍVEL DE INTERFERÊNCIAS - FORNECIMENTO E ASSENTAMENTO. AF_12/2015 | C161: M | D161: COEFICIENTE DE REPRESENTATIVIDADE | E161: 412,14 | F161: CAIXA REFERENCIAL
A162: 92226 | B162: TUBO DE CONCRETO PARA REDES COLETORAS DE ÁGUAS PLUVIAIS, DIÂMETRO DE 1000 MM, JUNTA RÍGIDA, INSTALADO EM LOCAL COM ALTO NÍVEL DE INTERFERÊNCIAS - FORNECIMENTO E ASSENTAMENTO. AF_12/2015 | C162: M | D162: COEFICIENTE DE REPRESENTATIVIDADE | E162: 434,11 | F162: CAIXA REFERENCIAL
A163: 92808 | B163: ASSENTAMENTO DE TUBO DE CONCRETO PARA REDES COLETORAS DE ÁGUAS PLUVIAIS, DIÂMETRO DE 300 MM, JUNTA RÍGIDA, INSTALADO EM LOCAL COM BAIXO NÍVEL DE INTERFERÊNCIAS (NÃO INCLUI FORNECIMENTO). AF_12/2015 | C163: M | D163: COEFICIENTE DE REPRESENTATIVIDADE | E163: 36,24 | F163: CAIXA REFERENCIAL
A164: 92809 | B164: ASSENTAMENTO DE TUBO DE CONCRETO PARA REDES COLETORAS DE ÁGUAS PLUVIAIS, DIÂMETRO DE 400 MM, JUNTA RÍGIDA, INSTALADO EM LOCAL COM BAIXO NÍVEL DE INTERFERÊNCIAS (NÃO INCLUI FORNECIMENTO). AF_12/2015 | C164: M | D164: COEFICIENTE DE REPRESENTATIVIDADE | E164: 46,41 | F164: CAIXA REFERENCIAL
A165: 92810 | B165: ASSENTAMENTO DE TUBO DE CONCRETO PARA REDES COLETORAS DE ÁGUAS PLUVIAIS, DIÂMETRO DE 500 MM, JUNTA RÍGIDA, INSTALADO EM LOCAL COM BAIXO NÍVEL DE INTERFERÊNCIAS (NÃO INCLUI FORNECIMENTO). AF_12/2015 | C165: M | D165: COEFICIENTE DE REPRESENTATIVIDADE | E165: 56,41 | F165: CAIXA REFERENCIAL
A166: 92811 | B166: ASSENTAMENTO DE TUBO DE CONCRETO PARA REDES COLETORAS DE ÁGUAS PLUVIAIS, DIÂMETRO DE 600 MM, JUNTA RÍGIDA, INSTALADO EM LOCAL COM BAIXO NÍVEL DE INTERFERÊNCIAS (NÃO INCLUI FORNECIMENTO). AF_12/2015 | C166: M | D166: COEFICIENTE DE REPRESENTATIVIDADE | E166: 67,03 | F166: CAIXA REFERENCIAL
A167: 92812 | B167: ASSENTAMENTO DE TUBO DE CONCRETO PARA REDES COLETORAS DE ÁGUAS PLUVIAIS, DIÂMETRO DE 700 MM, JUNTA RÍGIDA, INSTALADO EM LOCAL COM BAIXO NÍVEL DE INTERFERÊNCIAS (NÃO INCLUI FORNECIMENTO). AF_12/2015 | C167: M | D167: COEFICIENTE DE REPRESENTATIVIDADE | E167: 77,49 | F167: CAIXA REFERENCIAL
A168: 92813 | B168: ASSENTAMENTO DE TUBO DE CONCRETO PARA REDES COLETORAS DE ÁGUAS PLUVIAIS, DIÂMETRO DE 800 MM, JUNTA RÍGIDA, INSTALADO EM LOCAL COM BAIXO NÍVEL DE INTERFERÊNCIAS (NÃO INCLUI FORNECIMENTO). AF_12/2015 | C168: M | D168: COEFICIENTE DE REPRESENTATIVIDADE | E168: 89,48 | F168: CAIXA REFERENCIAL
A169: 92814 | B169: ASSENTAMENTO DE TUBO DE CONCRETO PARA REDES COLETORAS DE ÁGUAS PLUVIAIS, DIÂMETRO DE 900 MM, JUNTA RÍGIDA, INSTALADO EM LOCAL COM BAIXO NÍVEL DE INTERFERÊNCIAS (NÃO INCLUI FORNECIMENTO). AF_12/2015 | C169: M | D169: COEFICIENTE DE REPRESENTATIVIDADE | E169: 101,94 | F169: CAIXA REFERENCIAL
A170: 92815 | B170: ASSENTAMENTO DE TUBO DE CONCRETO PARA REDES COLETORAS DE ÁGUAS PLUVIAIS, DIÂMETRO DE 1000 MM, JUNTA RÍGIDA, INSTALADO EM LOCAL COM BAIXO NÍVEL DE INTERFERÊNCIAS (NÃO INCLUI FORNECIMENTO). AF_12/2015 | C170: M | D170: COEFICIENTE DE REPRESENTATIVIDADE | E170: 115,91 | F170: CAIXA REFERENCIAL
A171: 92816 | B171: TUBO DE CONCRETO PARA REDES COLETORAS DE ÁGUAS PLUVIAIS, DIÂMETRO DE 1200 MM, JUNTA RÍGIDA, INSTALADO EM LOCAL COM BAIXO NÍVEL DE INTERFERÊNCIAS - FORNECIMENTO E ASSENTAMENTO. AF_12/2015 | C171: M | D171: COEFICIENTE DE REPRESENTATIVIDADE | E171: 588,90 | F171: CAIXA REFERENCIAL
A172: 92817 | B172: ASSENTAMENTO DE TUBO DE CONCRETO PARA REDES COLETORAS DE ÁGUAS PLUVIAIS, DIÂMETRO DE 1200 MM, JUNTA RÍGIDA, INSTALADO EM LOCAL COM BAIXO NÍVEL DE INTERFERÊNCIAS (NÃO INCLUI FORNECIMENTO). AF_12/2015 | C172: M | D172: COEFICIENTE DE REPRESENTATIVIDADE | E172: 145,04 | F172: CAIXA REFERENCIAL
A173: 92818 | B173: TUBO DE CONCRETO PARA REDES COLETORAS DE ÁGUAS PLUVIAIS, DIÂMETRO DE 1500 MM, JUNTA RÍGIDA, INSTALADO EM LOCAL COM BAIXO NÍVEL DE INTERFERÊNCIAS - FORNECIMENTO E ASSENTAMENTO. AF_12/2015 | C173: M | D173: COEFICIENTE DE REPRESENTATIVIDADE | E173: 838,28 | F173: CAIXA REFERENCIAL
A174: 92819 | B174: ASSENTAMENTO DE TUBO DE CONCRETO PARA REDES COLETORAS DE ÁGUAS PLUVIAIS, DIÂMETRO DE 1500 MM, JUNTA RÍGIDA, INSTALADO EM LOCAL COM BAIXO NÍVEL DE INTERFERÊNCIAS (NÃO INCLUI FORNECIMENTO). AF_12/2015 | C174: M | D174: COEFICIENTE DE REPRESENTATIVIDADE | E174: 195,23 | F174: CAIXA REFERENCIAL
A175: 92820 | B175: ASSENTAMENTO DE TUBO DE CONCRETO PARA REDES COLETORAS DE ÁGUAS PLUVIAIS, DIÂMETRO DE 300 MM, JUNTA RÍGIDA, INSTALADO EM LOCAL COM ALTO NÍVEL DE INTERFERÊNCIAS (NÃO INCLUI FORNECIMENTO). AF_12/2015 | C175: M | D175: COEFICIENTE DE REPRESENTATIVIDADE | E175: 43,25 | F175: CAIXA REFERENCIAL
A176: 92821 | B176: ASSENTAMENTO DE TUBO DE CONCRETO PARA REDES COLETORAS DE ÁGUAS PLUVIAIS, DIÂMETRO DE 400 MM, JUNTA RÍGIDA, INSTALADO EM LOCAL COM ALTO NÍVEL DE INTERFERÊNCIAS (NÃO INCLUI FORNECIMENTO). AF_12/2015 | C176: M | D176: COEFICIENTE DE REPRESENTATIVIDADE | E176: 55,37 | F176: CAIXA REFERENCIAL
A177: 92822 | B177: ASSENTAMENTO DE TUBO DE CONCRETO PARA REDES COLETORAS DE ÁGUAS PLUVIAIS, DIÂMETRO DE 500 MM, JUNTA RÍGIDA, INSTALADO EM LOCAL COM ALTO NÍVEL DE INTERFERÊNCIAS (NÃO INCLUI FORNECIMENTO). AF_12/2015 | C177: M | D177: COEFICIENTE DE REPRESENTATIVIDADE | E177: 67,51 | F177: CAIXA REFERENCIAL
A178: 92824 | B178: ASSENTAMENTO DE TUBO DE CONCRETO PARA REDES COLETORAS DE ÁGUAS PLUVIAIS, DIÂMETRO DE 600 MM, JUNTA RÍGIDA, INSTALADO EM LOCAL COM ALTO NÍVEL DE INTERFERÊNCIAS (NÃO INCLUI FORNECIMENTO). AF_12/2015 | C178: M | D178: COEFICIENTE DE REPRESENTATIVIDADE | E178: 80,04 | F178: CAIXA REFERENCIAL
A179: 92825 | B179: ASSENTAMENTO DE TUBO DE CONCRETO PARA REDES COLETORAS DE ÁGUAS PLUVIAIS, DIÂMETRO DE 700 MM, JUNTA RÍGIDA, INSTALADO EM LOCAL COM ALTO NÍVEL DE INTERFERÊNCIAS (NÃO INCLUI FORNECIMENTO). AF_12/2015 | C179: M | D179: COEFICIENTE DE REPRESENTATIVIDADE | E179: 92,61 | F179: CAIXA REFERENCIAL
A180: 92826 | B180: ASSENTAMENTO DE TUBO DE CONCRETO PARA REDES COLETORAS DE ÁGUAS PLUVIAIS, DIÂMETRO DE 800 MM, JUNTA RÍGIDA, INSTALADO EM LOCAL COM ALTO NÍVEL DE INTERFERÊNCIAS (NÃO INCLUI FORNECIMENTO). AF_12/2015 | C180: M | D180: COEFICIENTE DE REPRESENTATIVIDADE | E180: 106,40 | F180: CAIXA REFERENCIAL
A181: 92827 | B181: ASSENTAMENTO DE TUBO DE CONCRETO PARA REDES COLETORAS DE ÁGUAS PLUVIAIS, DIÂMETRO DE 900 MM, JUNTA RÍGIDA, INSTALADO EM LOCAL COM ALTO NÍVEL DE INTERFERÊNCIAS (NÃO INCLUI FORNECIMENTO). AF_12/2015 | C181: M | D181: COEFICIENTE DE REPRESENTATIVIDADE | E181: 120,72 | F181: CAIXA REFERENCIAL
A182: 92828 | B182: ASSENTAMENTO DE TUBO DE CONCRETO PARA REDES COLETORAS DE ÁGUAS PLUVIAIS, DIÂMETRO DE 1000 MM, JUNTA RÍGIDA, INSTALADO EM LOCAL COM ALTO NÍVEL DE INTERFERÊNCIAS (NÃO INCLUI FORNECIMENTO). AF_12/2015 | C182: M | D182: COEFICIENTE DE REPRESENTATIVIDADE | E182: 136,93 | F182: CAIXA REFERENCIAL
A183: 92829 | B183: TUBO DE CONCRETO PARA REDES COLETORAS DE ÁGUAS PLUVIAIS, DIÂMETRO DE 1200 MM, JUNTA RÍGIDA, INSTALADO EM LOCAL COM ALTO NÍVEL DE INTERFERÊNCIAS - FORNECIMENTO E ASSENTAMENTO. AF_12/2015 | C183: M | D183: COEFICIENTE DE REPRESENTATIVIDADE | E183: 613,74 | F183: CAIXA REFERENCIAL
A184: 92830 | B184: ASSENTAMENTO DE TUBO DE CONCRETO PARA REDES COLETORAS DE ÁGUAS PLUVIAIS, DIÂMETRO DE 1200 MM, JUNTA RÍGIDA, INSTALADO EM LOCAL COM ALTO NÍVEL DE INTERFERÊNCIAS (NÃO INCLUI FORNECIMENTO). AF_12/2015 | C184: M | D184: COEFICIENTE DE REPRESENTATIVIDADE | E184: 169,88 | F184: CAIXA REFERENCIAL
A185: 92831 | B185: TUBO DE CONCRETO PARA REDES COLETORAS DE ÁGUAS PLUVIAIS, DIÂMETRO DE 1500 MM, JUNTA RÍGIDA, INSTALADO EM LOCAL COM ALTO NÍVEL DE INTERFERÊNCIAS - FORNECIMENTO E ASSENTAMENTO. AF_12/2015 | C185: M | D185: COEFICIENTE DE REPRESENTATIVIDADE | E185: 868,86 | F185: CAIXA REFERENCIAL
A186: 92832 | B186: ASSENTAMENTO DE TUBO DE CONCRETO PARA REDES COLETORAS DE ÁGUAS PLUVIAIS, DIÂMETRO DE 1500 MM, JUNTA RÍGIDA, INSTALADO EM LOCAL COM ALTO NÍVEL DE INTERFERÊNCIAS (NÃO INCLUI FORNECIMENTO). AF_12/2015 | C186: M | D186: COEFICIENTE DE REPRESENTATIVIDADE | E186: 225,81 | F186: CAIXA REFERENCIAL
A187: 95565 | B187: TUBO DE CONCRETO PARA REDES COLETORAS DE ÁGUAS PLUVIAIS, DIÂMETRO DE 300MM, JUNTA RÍGIDA, INSTALADO EM LOCAL COM BAIXO NÍVEL DE INTERFERÊNCIAS - FORNECIMENTO E ASSENTAMENTO. AF_12/2015 | C187: M | D187: COEFICIENTE DE REPRESENTATIVIDADE | E187: 105,41 | F187: CAIXA REFERENCIAL
A188: 95566 | B188: TUBO DE CONCRETO PARA REDES COLETORAS DE ÁGUAS PLUVIAIS, DIÂMETRO DE 300MM, JUNTA RÍGIDA, INSTALADO EM LOCAL COM ALTO NÍVEL DE INTERFERÊNCIAS - FORNECIMENTO E ASSENTAMENTO. AF_12/2015 | C188: M | D188: COEFICIENTE DE REPRESENTATIVIDADE | E188: 112,30 | F188: CAIXA REFERENCIAL
A189: 95567 | B189: TUBO DE CONCRETO (SIMPLES) PARA REDES COLETORAS DE ÁGUAS PLUVIAIS, DIÂMETRO DE 300 MM, JUNTA RÍGIDA, INSTALADO EM LOCAL COM BAIXO NÍVEL DE INTERFERÊNCIAS - FORNECIMENTO E ASSENTAMENTO. AF_12/2015 | C189: M | D189: ATRIBUÍDO SÃO PAULO | E189: 80,40 | F189: CAIXA REFERENCIAL
A190: 95568 | B190: TUBO DE CONCRETO (SIMPLES) PARA REDES COLETORAS DE ÁGUAS PLUVIAIS, DIÂMETRO DE 400 MM, JUNTA RÍGIDA, INSTALADO EM LOCAL COM BAIXO NÍVEL DE INTERFERÊNCIAS - FORNECIMENTO E ASSENTAMENTO. AF_12/2015 | C190: M | D190: ATRIBUÍDO SÃO PAULO | E190: 98,54 | F190: CAIXA REFERENCIAL
A191: 95569 | B191: TUBO DE CONCRETO (SIMPLES) PARA REDES COLETORAS DE ÁGUAS PLUVIAIS, DIÂMETRO DE 500 MM, JUNTA RÍGIDA, INSTALADO EM LOCAL COM BAIXO NÍVEL DE INTERFERÊNCIAS - FORNECIMENTO E ASSENTAMENTO. AF_12/2015 | C191: M | D191: ATRIBUÍDO SÃO PAULO | E191: 134,22 | F191: CAIXA REFERENCIAL
A192: 95570 | B192: TUBO DE CONCRETO (SIMPLES) PARA REDES COLETORAS DE ÁGUAS PLUVIAIS, DIÂMETRO DE 300 MM, JUNTA RÍGIDA, INSTALADO EM LOCAL COM ALTO NÍVEL DE INTERFERÊNCIAS - FORNECIMENTO E ASSENTAMENTO. AF_12/2015 | C192: M | D192: ATRIBUÍDO SÃO PAULO | E192: 87,29 | F192: CAIXA REFERENCIAL
A193: 95571 | B193: TUBO DE CONCRETO (SIMPLES) PARA REDES COLETORAS DE ÁGUAS PLUVIAIS, DIÂMETRO DE 400 MM, JUNTA RÍGIDA, INSTALADO EM LOCAL COM ALTO NÍVEL DE INTERFERÊNCIAS - FORNECIMENTO E ASSENTAMENTO. AF_12/2015 | C193: M | D193: ATRIBUÍDO SÃO PAULO | E193: 107,34 | F193: CAIXA REFERENCIAL
A194: 95572 | B194: TUBO DE CONCRETO (SIMPLES) PARA REDES COLETORAS DE ÁGUAS PLUVIAIS, DIÂMETRO DE 500 MM, JUNTA RÍGIDA, INSTALADO EM LOCAL COM ALTO NÍVEL DE INTERFERÊNCIAS - FORNECIMENTO E ASSENTAMENTO. AF_12/2015 | C194: M | D194: ATRIBUÍDO SÃO PAULO | E194: 145,12 | F194: CAIXA REFERENCIAL
A195: 97127 | B195: ASSENTAMENTO DE TUBO DE PVC DEFOFO OU PRFV OU RPVC PARA REDE DE ÁGUA, DN 150 MM, JUNTA ELÁSTICA INTEGRADA, INSTALADO EM LOCAL COM NÍVEL ALTO DE INTERFERÊNCIAS (NÃO INCLUI FORNECIMENTO). AF_11/2017 | C195: M | D195: COEFICIENTE DE REPRESENTATIVIDADE | E195: 4,57 | F195: CAIXA REFERENCIAL
A196: 97128 | B196: ASSENTAMENTO DE TUBO DE PVC DEFOFO OU PRFV OU RPVC PARA REDE DE ÁGUA, DN 200 MM, JUNTA ELÁSTICA INTEGRADA, INSTALADO EM LOCAL COM NÍVEL ALTO DE INTERFERÊNCIAS (NÃO INCLUI FORNECIMENTO). AF_11/2017 | C196: M | D196: COEFICIENTE DE REPRESENTATIVIDADE | E196: 9,21 | F196: CAIXA REFERENCIAL
A197: 97129 | B197: ASSENTAMENTO DE TUBO DE PVC DEFOFO OU PRFV OU RPVC PARA REDE DE ÁGUA, DN 250 MM, JUNTA ELÁSTICA INTEGRADA, INSTALADO EM LOCAL COM NÍVEL ALTO DE INTERFERÊNCIAS (NÃO INCLUI FORNECIMENTO). AF_11/2017 | C197: M | D197: COEFICIENTE DE REPRESENTATIVIDADE | E197: 11,33 | F197: CAIXA REFERENCIAL
A198: 97130 | B198: ASSENTAMENTO DE TUBO DE PVC DEFOFO OU PRFV OU RPVC PARA REDE DE ÁGUA, DN 300 MM, JUNTA ELÁSTICA INTEGRADA, INSTALADO EM LOCAL COM NÍVEL ALTO DE INTERFERÊNCIAS (NÃO INCLUI FORNECIMENTO). AF_11/2017 | C198: M | D198: COEFICIENTE DE REPRESENTATIVIDADE | E198: 13,46 | F198: CAIXA REFERENCIAL
A199: 97131 | B199: ASSENTAMENTO DE TUBO DE PVC DEFOFO OU PRFV OU RPVC PARA REDE DE ÁGUA, DN 350 MM, JUNTA ELÁSTICA INTEGRADA, INSTALADO EM LOCAL COM NÍVEL ALTO DE INTERFERÊNCIAS (NÃO INCLUI FORNECIMENTO). AF_11/2017 | C199: M | D199: COEFICIENTE DE REPRESENTATIVIDADE | E199: 15,56 | F199: CAIXA REFERENCIAL
A200: 97132 | B200: ASSENTAMENTO DE TUBO DE PVC DEFOFO OU PRFV OU RPVC PARA REDE DE ÁGUA, DN 400 MM, JUNTA ELÁSTICA INTEGRADA, INSTALADO EM LOCAL COM NÍVEL ALTO DE INTERFERÊNCIAS (NÃO INCLUI FORNECIMENTO). AF_11/2017 | C200: M | D200: COEFICIENTE DE REPRESENTATIVIDADE | E200: 17,66 | F200: CAIXA REFERENCIAL
A201: 97133 | B201: ASSENTAMENTO DE TUBO DE PVC DEFOFO OU PRFV OU RPVC PARA REDE DE ÁGUA, DN 500 MM, JUNTA ELÁSTICA INTEGRADA, INSTALADO EM LOCAL COM NÍVEL ALTO DE INTERFERÊNCIAS (NÃO INCLUI FORNECIMENTO). AF_11/2017 | C201: M | D201: COEFICIENTE DE REPRESENTATIVIDADE | E201: 21,89 | F201: CAIXA REFERENCIAL
... 6892 more rows

Sheet IOPES 09.2021 (hidden)
A1: Item | B1: Fonte/Código | C1: Especificação do Serviço | D1: Und. | E1: Quant. | F1: Preço Unitário | G1: Preço Total
A2: '01 | C2: SERVIÇOS PRELIMINARES
A3: '0102 | C3: DEMOLIÇÕES E RETIRADAS
A4: 010201 | B4: LABOR - 010201 - 1 | C4: Demolição de piso cimentado inclusive lastro de concreto | D4: m2 | E4: 1 | F4: 20.75 | G4: 20.75
A5: 010202 | B5: LABOR - 010202 - 1 | C5: Demolição de piso revestido com cerâmica | D5: m2 | E5: 1 | F5: 11.17 | G5: 11.17
A6: 010203 | B6: LABOR - 010203 - 1 | C6: Demolição de piso revestido com cerâmica inclusive lastro de concreto | D6: m2 | E6: 1 | F6: 22.35 | G6: 22.35
A7: 010204 | B7: LABOR - 010204 - 1 | C7: Demolição de piso revestido com tacos de madeira | D7: m2 | E7: 1 | F7: 15.96 | G7: 15.96
A8: 010205 | B8: LABOR - 010205 - 1 | C8: Demolição de piso de tábuas | D8: m2 | E8: 1 | F8: 14.37 | G8: 14.37
A9: 010206 | B9: LABOR - 010206 - 1 | C9: Demolição de revestimento com azulejos | D9: m2 | E9: 1 | F9: 39.91 | G9: 39.91
A10: 010207 | B10: LABOR - 010207 - 1 | C10: Demolição de revestimento com lambris de madeira | D10: m2 | E10: 1 | F10: 39.91 | G10: 39.91
A11: 010208 | B11: LABOR - 010208 - 1 | C11: Retirada de revestimento antigo em reboco | D11: m2 | E11: 1 | F11: 7.98 | G11: 7.98
A12: 010209 | B12: LABOR - 010209 - 1 | C12: Demolição de alvenaria | D12: m3 | E12: 1 | F12: 47.89 | G12: 47.89
A13: 010210 | B13: LABOR - 010210 - 1 | C13: Demolição manual de concreto simples (EMOP 05.001.001) | D13: m3 | E13: 1 | F13: 224.8 | G13: 224.8
A14: 010212 | B14: LABOR - 010212 - 1 | C14: Retirada manual de pavimento em paralelepípedos, incluindo empilhamento para reaproveitamento | D14: m2 | E14: 1 | F14: 9.58 | G14: 9.58
A15: 010213 | B15: LABOR - 010213 - 1 | C15: Retirada manual de blocos pré-moldados de concreto (Blokret), inclusive empilhamento para reaproveitamento | D15: m2 | E15: 1 | F15: 11.17 | G15: 11.17
A16: 010214 | B16: LABOR - 010214 - 1 | C16: Retirada de portas e janelas de madeira, inclusive batentes | D16: m2 | E16: 1 | F16: 12.77 | G16: 12.77
A17: 010215 | B17: LABOR - 010215 - 1 | C17: Retirada de esquadrias metálicas | D17: m2 | E17: 1 | F17: 7.98 | G17: 7.98
A18: 010216 | B18: LABOR - 010216 - 1 | C18: Retirada de meio-fio de concreto | D18: m | E18: 1 | F18: 7.98 | G18: 7.98
A19: 010218 | B19: LABOR - 010218 - 1 | C19: Remoção de pintura antiga a óleo ou esmalte | D19: m2 | E19: 1 | F19: 10.08 | G19: 10.08
A20: 010219 | B20: LABOR - 010219 - 1 | C20: Demolição manual de concreto armado (EMOP 05.001.033) | D20: m3 | E20: 1 | F20: 264.43 | G20: 264.43
A21: 010220 | B21: LABOR - 010220 - 1 | C21: Demolição de piso cimentado, exclusive lastro de concreto | D21: m2 | E21: 1 | F21: 9.84 | G21: 9.84
A22: 010221 | B22: LABOR - 010221 - 1 | C22: Retirada de bandeira de porta | D22: und | E22: 1 | F22: 24.38 | G22: 24.38
A23: 010222 | B23: LABOR - 010222 - 1 | C23: Demolição de elementos vazados cerâmicos ou de concreto | D23: m2 | E23: 1 | F23: 17.68 | G23: 17.68
A24: 010223 | B24: LABOR - 010223 - 1 | C24: Retirada de aparelhos sanitários | D24: und | E24: 1 | F24: 16.59 | G24: 16.59
A25: 010224 | B25: LABOR - 010224 - 1 | C25: Retirada de grades, gradis, alambrados, cercas e portões | D25: m2 | E25: 1 | F25: 14.05 | G25: 14.05
A26: 010225 | B26: LABOR - 010225 - 1 | C26: Retirada de bancada de pia | D26: m2 | E26: 1 | F26: 19.9 | G26: 19.9
A27: 010226 | B27: LABOR - 010226 - 1 | C27: Retirada de tanque de cimento | D27: und | E27: 1 | F27: 19.9 | G27: 19.9
A28: 010227 | B28: LABOR - 010227 - 1 | C28: Retirada de caixa d'água de fibrocimento, inclusive tubulação de ligação | D28: und | E28: 1 | F28: 33.17 | G28: 33.17
A29: 010228 | B29: LABOR - 010228 - 1 | C29: Demolição de forro de madeira, sem reaproveitamento | D29: m2 | E29: 1 | F29: 5.41 | G29: 5.41
A30: 010229 | B30: LABOR - 010229 - 1 | C30: Retirada de poste de aço de 4 a 6 m | D30: und | E30: 1 | F30: 31.92 | G30: 31.92
A31: 010230 | B31: LABOR - 010230 - 1 | C31: Retirada de pintura antiga a base de PVA | D31: m2 | E31: 1 | F31: 5.15 | G31: 5.15
A32: 010234 | B32: LABOR - 010234 - 1 | C32: Demolição de laje pré-moldada de concreto | D32: m2 | E32: 1 | F32: 20.75 | G32: 20.75
A33: 010238 | B33: LABOR - 010238 - 1 | C33: Apicoamento de superfície com revestimento em argamassa | D33: m2 | E33: 1 | F33: 7.98 | G33: 7.98
A34: 010239 | B34: LABOR - 010239 - 1 | C34: Retirada de divisórias com reaproveitamento | D34: m2 | E34: 1 | F34: 31.1 | G34: 31.1
A35: 010240 | B35: LABOR - 010240 - 1 | C35: Retirada de pontos elétricos (luminárias, interruptores e tomadas) | D35: und | E35: 1 | F35: 8.81 | G35: 8.81
A36: 010242 | B36: LABOR - 010242 - 1 | C36: Retirada de vidros quebrados | D36: m2 | E36: 1 | F36: 2.81 | G36: 2.81
A37: 010244 | B37: LABOR - 010244 - 1 | C37: Retirada de rodapé em argamassa de cimento e areia | D37: m | E37: 1 | F37: 11.49 | G37: 11.49
A38: 010246 | B38: LABOR - 010246 - 1 | C38: Lixamento de parede com pintura antiga PVA para recebimento de nova camada de tinta | D38: m2 | E38: 1 | F38: 3.04 | G38: 3.04
A39: 010253 | B39: LABOR - 010253 - 1 | C39: Remoção de engradamento de madeira de cobertura para reaproveitamento | D39: m2 | E39: 1 | F39: 23.46 | G39: 23.46
A40: 010254 | B40: LABOR - 010254 - 1 | C40: Remoção de telhas cerâmica, tipo francesa, inclusive cumeeira | D40: m2 | E40: 1 | F40: 7.77 | G40: 7.77
A41: 010255 | B41: LABOR - 010255 - 1 | C41: Remoção de telhas cerâmicas, tipo colonial, inclusive cumeeiras | D41: m2 | E41: 1 | F41: 19.19 | G41: 19.19
A42: 010256 | B42: LABOR - 010256 - 1 | C42: Remoção de telha ondulada de fibrocimento, inclusive cumeeira | D42: m2 | E42: 1 | F42: 6.11 | G42: 6.11
A43: 010259 | B43: LABOR - 010259 - 1 | C43: Retirada de rodapé de madeira ou cerâmica | D43: m | E43: 1 | F43: 1.86 | G43: 1.86
A44: 010264 | B44: LABOR - 010264 - 1 | C44: Demolição de piso granilite | D44: m2 | E44: 1 | F44: 22.13 | G44: 22.13
A45: 010271 | B45: LABOR - 010271 - 1 | C45: Retirada de caixas/quadros elétricos | D45: und | E45: 1 | F45: 11.88 | G45: 11.88
A46: 010279 | B46: LABOR - 010279 - 1 | C46: Retirada de quadro de giz (1.29 x 3.95m) | D46: und | E46: 1 | F46: 18.55 | G46: 18.55
A47: 010280 | B47: LABOR - 010280 - 1 | C47: Remoção de cobertura em telha metálica, exclusive estrutura | D47: m2 | E47: 1 | F47: 6.97 | G47: 6.97
A48: 010286 | B48: LABOR - 010286 - 1 | C48: Demolição de divisória de granito | D48: m2 | E48: 1 | F48: 11.8 | G48: 11.8
A49: 010292 | B49: LABOR - 010292 - 1 | C49: Retirada de alizar de madeira | D49: m | E49: 1 | F49: 0.49 | G49: 0.49
A50: 0103 | C50: DEMOLIÇÕES E RETIRADAS
A51: 010315 | B51: LABOR - 010315 - 1 | C51: Retirada de cobertura em telhas Canalete 49 | D51: m2 | E51: 1 | F51: 9.15 | G51: 9.15
A52: 010317 | B52: LABOR - 010317 - 1 | C52: Demolição de alvenaria, com reaproveitamento | D52: m2 | E52: 1 | F52: 95.77 | G52: 95.77
A53: 010318 | B53: LABOR - 010318 - 1 | C53: Remoção de forro em eucatex, sem aproveitamento do material | D53: m2 | E53: 1 | F53: 11.29 | G53: 11.29
A54: 010319 | B54: LABOR - 010319 - 1 | C54: Remoção de pintura antiga a base de óleo ou esmalte sobre esquadrias | D54: m2 | E54: 1 | F54: 14.99 | G54: 14.99
A55: 010320 | B55: LABOR - 010320 - 1 | C55: Remoção de revestimento de pisos com forração textil | D55: m2 | E55: 1 | F55: 1.6 | G55: 1.6
A56: 010323 | B56: LABOR - 010323 - 1 | C56: Retirada de torneiras e registros | D56: und | E56: 1 | F56: 8.81 | G56: 8.81
A57: 010324 | B57: LABOR - 010324 - 1 | C57: Retirada de cobertura em telha canalete 90 | D57: m2 | E57: 1 | F57: 7.04 | G57: 7.04
A58: 010325 | B58: LABOR - 010325 - 1 | C58: Demolição de estrutura de madeira para telhado | D58: m2 | E58: 1 | F58: 23.46 | G58: 23.46
A59: 010326 | B59: LABOR - 010326 - 1 | C59: Retirada de estrutura em madeira do telhado | D59: m2 | E59: 1 | F59: 23.46 | G59: 23.46
A60: 010327 | B60: LABOR - 010327 - 1 | C60: Retirada de marco de madeira | D60: m | E60: 1 | F60: 1.99 | G60: 1.99
A61: 010329 | B61: LABOR - 010329 - 1 | C61: Retirada de disjuntor | D61: und | E61: 1 | F61: 16.45 | G61: 16.45
A62: 010331 | B62: LABOR - 010331 - 1 | C62: Demolição de piso, soleira, peitoris e escadas em mármore ou granito, exclusive regularização | D62: m2 | E62: 1 | F62: 8.56 | G62: 8.56
A63: 010332 | B63: LABOR - 010332 - 1 | C63: Retirada de roda parede em madeira | D63: m | E63: 1 | F63: 2.97 | G63: 2.97
A64: 010333 | B64: LABOR - 010333 - 1 | C64: Retirada de piso de borracha | D64: m2 | E64: 1 | F64: 6.69 | G64: 6.69
A65: 0104 | C65: LIMPEZA DO TERRENO
A66: 010401 | B66: LABOR - 010401 - 1 | C66: Corte de capoeira fina, a foice (manual) | D66: m2 | E66: 1 | F66: 1.09 | G66: 1.09
A67: 010402 | B67: LABOR - 010402 - 1 | C67: Raspagem e limpeza do terreno (manual) | D67: m2 | E67: 1 | F67: 3.51 | G67: 3.51
A68: 010403 | B68: LABOR - 010403 - 1 | C68: Corte e destocamento de árvores com diâmetro de até 15 cm | D68: und | E68: 1 | F68: 42.15 | G68: 42.15
A69: 010404 | B69: LABOR - 010404 - 1 | C69: Corte e destocamento de árvores com diâmetro superior a 30 cm | D69: und | E69: 1 | F69: 104.81 | G69: 104.81
A70: 0105 | C70: LOCAÇÃO
A71: 010501 | B71: LABOR - 010501 - 2 | C71: Locação de obra com gabarito de madeira | D71: m2 | E71: 1 | F71: 9.39 | G71: 9.39
A72: 010512 | B72: LABOR - 010512 - 1 | C72: Equipe topográfica para serviços simples de locação e nivelamento (incluindo equipamento, transporte e profissionais nivel médio) | D72: mês | E72: 1 | F72: 17082.38 | G72: 17082.38
A73: 02 | C73: INSTALAÇÃO DO CANTEIRO DE OBRAS
A74: 0203 | C74: TAPUMES, BARRACÕES E COBERTURAS
A75: 020305 | B75: LABOR - 020305 - 2 | C75: Placa de obra nas dimensões de 2.0 x 4.0 m, padrão IOPES | D75: m2 | E75: 1 | F75: 286.43 | G75: 286.43
A76: 020339 | B76: LABOR - 020339 - 1 | C76: Locação de andaime metálico para trabalho em fachada de edifíco (aluguel de 1 m² por 1 mês) inclusive frete, montagem e desmontagem | D76: m2 | E76: 1 | F76: 14.03 | G76: 14.03
A77: 020343 | B77: LABOR - 020343 - 3 | C77: Aluguel mensal container para escritório, sem banheiro, dim. 6.00x2.40m, incl. porta, 2 janelas, abert p/ ar cond., 2 pt iluminação, 2 tomadas elét. e 1 tomada telef. Isolamento térmico (teto e paredes), piso em comp. Naval, cert. NR18, incl. laudo descontaminação. | D77: mês | E77: 1 | F77: 719 | G77: 719
A78: 020344 | B78: LABOR - 020344 - 2 | C78: Mobilização e desmobilização de conteiner locado para barracão de obra | D78: und | E78: 1 | F78: 1035.67 | G78: 1035.67
A79: 020346 | B79: LABOR - 020346 - 1 | C79: Locação de andaime metálico para fachada - tipo torre (aluguel mensal) | D79: m | E79: 1 | F79: 8.88 | G79: 8.88
A80: 020348 | B80: LABOR - 020348 - 3 | C80: Fornecimento e instalação de proteção para andaime fachadeiro considerando plataforma, rodapé e guarda-corpo em madeira, inclusive entelamento, conforme NR-18 (medido por m2 de fachada) | D80: m2 | E80: 1 | F80: 23.84 | G80: 23.84
A81: 020350 | B81: LABOR - 020350 - 3 | C81: Tapume Telha Metálica Ondulada em aço galvalume 0,50mm Branca h=2,20m, incl. montagem estr. mad. 8"x8", c/adesivo "DER-ES" 60x60cm a cada 10m, incl. faixas pint. esmalte sint. cores azul c/ h=30cm e rosa c/ h=10cm (Reaproveitamento 2x) | D81: m | E81: 1 | F81: 179.46 | G81: 179.46
A82: 020351 | B82: LABOR - 020351 - 2 | C82: Tapume madeira compensada resinada e= 12mm h=2,20m, estr. c/ mad reflorest., incl mont, pintura esmalte sint, adesivo "DER-ES" 60x60cm a cada 10m e faixas c/ pintura esmalte sintético nas cores azul c/ h=30cm e rosa c/ h=10cm | D82: m | E82: 1 | F82: 207.59 | G82: 207.59
A83: 020352 | B83: LABOR - 020352 - 1 | C83: Aluguel mensal container para escritório, dim. 6.00x2.40m, c/ banheiro (vaso+lavat+chuveiro e básc), incl. porta, 2 janelas, abert p/ ar cond., 2 pt iluminação, 2 tom. elét. e 1 tom.telef. Isolam.térmico(teto e paredes), piso em comp. Naval, cert. NR18, incl. laudo descontaminação. | D83: ms | E83: 1 | F83: 787.33 | G83: 787.33
A84: 020353 | B84: LABOR - 020353 - 1 | C84: Aluguel mensal container para refeitorio, incl. porta, 2 janelas, abert p/ ar cond., 2 pt iluminação, 2 tomadas elét. e 1 tomada telef. Isolamento térmico (paredes e teto), piso em comp. Naval pintado, cert. NR18, incl. laudo descontaminação. | D84: ms | E84: 1 | F84: 719 | G84: 719
A85: 020354 | B85: LABOR - 020354 - 1 | C85: Aluguel mensal container para vestiário, incl. porta, venezianas de circulação, 1 pt iluminação, Isolamento térmico (teto), piso em comp. Naval pintado, cert. NR18, incl. laudo descontaminação. | D85: ms | E85: 1 | F85: 538.75 | G85: 538.75
A86: 020355 | B86: LABOR - 020355 - 1 | C86: Aluguel mensal container sanitário, incl porta, básc, 2 ptos luz, 1 pto aterram., 3vasos, 3lavatórios, calha mictório, 6 chuveiros (1 eletrico), torn.,registros, piso comp. Naval pintado, cert NR18 e laudo descontaminação | D86: ms | E86: 1 | F86: 847.25 | G86: 847.25
A87: 020356 | B87: LABOR - 020356 - 1 | C87: Aluguel mensal container para almoxarifado, incl. porta, 2 janelas, 1 pt iluminação, Isolamento térmico (teto), piso em comp. Naval pintado, cert. NR18, incl. laudo descontaminação. | D87: ms | E87: 1 | F87: 529 | G87: 529
A88: 0207 | C88: INSTALAÇÃO DO CANTEIRO DE OBRAS (UTILIZAÇÃO 1 VEZ), PROJETO PADRÃO LABOR - NR.18 (OBRAS COM PRAZO DE EXECUÇÃO SUPERIOR A 12 MESES)
A89: 020701 | B89: LABOR - 020701 - 5 | C89: Barracão para escritório com sanitário área de 14.50 m2, de chapa de compens. 12mm e pontalete 8x8cm, piso cimentado e cobertura de telha de fibroc. 6mm, incl. ponto de luz e cx. de inspeção, conf. projeto (1 utilização) | D89: m2 | E89: 1 | F89: 705.78 | G89: 705.78
A90: 020702 | B90: LABOR - 020702 - 2 | C90: Barracão para almoxarifado área de 10.90m2, de chapa de compensado de 12mm e pontalete 8x8cm, piso cimentado e cobertura de telhas de fibrocimento de 6mm, incl. ponto de luz, conf. projeto (1 utilização) | D90: m2 | E90: 1 | F90: 491.47 | G90: 491.47
A91: 020703 | B91: LABOR - 020703 - 2 | C91: Barracão para depósito de cimento área de 10.90m2, de chapa de compensado 12mm e pontaletes 8x8cm, piso cimentado e cobertura de telhas de fibrocimento de 6mm, inclusive ponto de luz, conf. projeto (1 utilização) | D91: m2 | E91: 1 | F91: 426.2 | G91: 426.2
A92: 020704 | B92: LABOR - 020704 - 3 | C92: Refeitório com paredes de chapa de compens. 12mm e pontaletes 8x8cm, piso ciment. e cob. de telhas fibroc. 6mm, incl. ponto de luz e cx. de inspeção (cons. 1.21 m2/func./turno), conf. projeto (1 utilização) | D92: m2 | E92: 1 | F92: 395.62 | G92: 395.62
A93: 020705 | B93: LABOR - 020705 - 4 | C93: Unidade de sanitário e vestiário p/ até 20 func. área de 18.15m2, paredes de chapa compens. 12mm e pontalete 8x8cm, piso cimentado, cobert. telha fibroc. 6mm, incl. instalação de luz e cx. de inspeção, conf. projeto (1 utilização) | D93: und | E93: 1 | F93: 13169.9 | G93: 13169.9
A94: 020706 | B94: LABOR - 020706 - 4 | C94: Unidade de sanitário e vestiário de 20 a 40 func. área 25.40m2, paredes de chapa compens. 12mm e pontalete 8x8cm, piso cimentado, cobert. telha fibroc. 6mm, incl. inst. de luz e cx. de inspeção, conf. projeto (1 utilização) | D94: und | E94: 1 | F94: 19983.57 | G94: 19983.57
A95: 020707 | B95: LABOR - 020707 - 4 | C95: Unidade de sanitário e vestiário de 40 a 60 func. área 33.90m2, paredes de chapa compens. 12mm e pontalete 8x8cm, piso cimentado, cobert. telha fibroc. 6mm, incl. inst. de luz e cx. de inspeção, conf. projeto (1 utilização) | D95: und | E95: 1 | F95: 24718.61 | G95: 24718.61
A96: 020708 | B96: LABOR - 020708 - 2 | C96: Galpão para serraria e carpintaria área 12.00m2, em peça de madeira 8x8cm e contraventamento de 5x7cm, cobertura de telha de fibroc. de 6mm, inclusive ponto e cabo de alimentação da máquina, conf. projeto (1 utilização) | D96: m2 | E96: 1 | F96: 181.78 | G96: 181.78
A97: 020709 | B97: LABOR - 020709 - 2 | C97: Galpão para corte e armação com área de 6.00m2, em peças de madeira 8x8cm e contraventamento de 5x7cm, cobertura de telhas de fibroc. de 6mm, inclusive ponto e cabo de alimentação da máquina, conf. projeto (1 utilização) | D97: m2 | E97: 1 | F97: 245.4 | G97: 245.4
A98: 020710 | B98: LABOR - 020710 - 2 | C98: Reservatório de poliestileno de 500L, incl. suporte em madeira de 7x12cm e 5x7cm, elevado de 4m, conf. projeto (1 utilização) | D98: und | E98: 1 | F98: 2949.18 | G98: 2949.18
A99: 020711 | B99: LABOR - 020711 - 2 | C99: Reservatório de poliestileno de 1000 L, incl. suporte em madeira de 7x12cm e 8x7cm, elevado de 4m, conf. projeto (1 utilização) | D99: und | E99: 1 | F99: 3407.82 | G99: 3407.82
A100: 020712 | B100: LABOR - 020712 - 1 | C100: Rede de água com padrão de entrada d'água diâm. 3/4", conf. espec. CESAN, incl. tubos e conexões para alimentação, distribuição, extravasor e limpeza, cons. o padrão a 25m, conf. projeto (1 utilização) | D100: m | E100: 1 | F100: 42.28 | G100: 42.28
A101: 020713 | B101: LABOR - 020713 - 2 | C101: Rede de luz, incl. padrão entrada de energia trifás., cabo de ligação até barracões, quadro de distrib., disj. e chave de força (quando necessário), cons. 20m entre padrão entrada e QDG, conf. projeto (1 utilização) | D101: m | E101: 1 | F101: 611.09 | G101: 611.09
A102: 020714 | B102: LABOR - 020714 - 2 | C102: Rede de esgoto, contendo fossa e filtro, inclusive tubos e conexões de ligação entre caixas, considerando distância de 25m, conforme projeto (1 utilização) | D102: m | E102: 1 | F102: 340.54 | G102: 340.54
A103: 0208 | C103: INSTALAÇÃO DO CANTEIRO DE OBRAS (UTILIZAÇÃO 2 VEZES), PROJETO PADRÃO LABOR - NR.18 (OBRAS COM PRAZO DE EXECUÇÃO DE 6 A 12 MESES)
A104: 020801 | B104: LABOR - 020801 - 5 | C104: Barracão para escritório com sanitário área 14.50m2, de chapa de compens. 12mm e pontalete 8x8cm, piso cimentado e cobertura de telha de fibroc. 6mm, incl. ponto de luz e cx. de inspeção, conf. projeto (2 utilizações) | D104: m2 | E104: 1 | F104: 527.2 | G104: 527.2
A105: 020802 | B105: LABOR - 020802 - 2 | C105: Barracão para almoxarifado área de 10.90m2, de chapa de compensado 12mm e pontaletes 8x8cm, piso cimentado e cobertura de telha de fibrocimento de 6mm, inclusive ponto de luz, conf. projeto (2 utilizações) | D105: m2 | E105: 1 | F105: 374.39 | G105: 374.39
A106: 020803 | B106: LABOR - 020803 - 2 | C106: Barracão para depósito de cimento área de 10.90m2, de chapa de compensado 12mm e pontaletes 8x8cm, piso cimentado e cobertura de telhas de fibrocimento de 6mm, inclusive ponto de luz, conf. projeto (2 utilizações) | D106: m2 | E106: 1 | F106: 326.79 | G106: 326.79
A107: 020804 | B107: LABOR - 020804 - 3 | C107: Refeitório com paredes de chapa de compens. 12mm e pontaletes 8x8cm, piso ciment. e cobert. de telhas fibroc. 6mm, incl. ponto de luz e cx. de inspeção (cons. 1.21m2/func./turno), conf. projeto (2 utilização) | D107: m2 | E107: 1 | F107: 324.33 | G107: 324.33
A108: 020805 | B108: LABOR - 020805 - 4 | C108: Unidade de sanitário e vestiário para até 20 func. área 18.15m2, paredes de chapa compens. 12mm e pontalete 8x8cm, piso cimentado, cobert. telha fibroc. 6mm, incl. inst. de luz e cx. de inspeção, conf. projeto (2 utilizações) | D108: und | E108: 1 | F108: 10266.9 | G108: 10266.9
A109: 020806 | B109: LABOR - 020806 - 4 | C109: Unidade de sanitário e vestiário de 20 a 40 func. área 25.40m2, paredes de chapa compens. 12mm e pontalete 8x8cm, piso cimentado, cobert. telha fibroc. 6mm, incl. inst. de luz e cx. de inspeção, conf. projeto (2 utilizações) | D109: und | E109: 1 | F109: 15593.36 | G109: 15593.36
A110: 020807 | B110: LABOR - 020807 - 4 | C110: Unidade de sanitário e vestiário de 40 a 60 func. área 33.90m2, paredes de chapa compens. 12mm e pontalete 8x8cm, piso cimentado, cobert. telha fibroc. 6mm, incl. inst. de luz e cx. de inspeção, conf. projeto (2 utilizações) | D110: und | E110: 1 | F110: 19490.59 | G110: 19490.59
A111: 020808 | B111: LABOR - 020808 - 2 | C111: Galpão para serraria e carpintaria área 12.00m2, em peças de madeira 8x8cm e contraventamento de 5x7cm, cobertura de telhas de fibroc. de 6mm, inclusive ponto e cabo de alimentação da máquina, conf. projeto (2 utilizações) | D111: m2 | E111: 1 | F111: 125.74 | G111: 125.74
A112: 020809 | B112: LABOR - 020809 - 2 | C112: Galpão para corte e armação com área de 6.00m2, de peças de madeira 8x8cm e contraventamento de 5x7cm, cobertura de telhas de fibroc. de 6mm, inclusive ponto e cabo de alimentação da máquina, conf. projeto (2 utilizações) | D112: m2 | E112: 1 | F112: 173.26 | G112: 173.26
A113: 020810 | B113: LABOR - 020810 - 2 | C113: Reservatório de poliestileno de 500 L, incl. suporte em madeira de 7x12cm e 5x7cm, elevado de 4m, conforme projeto (2 utilizações) | D113: und | E113: 1 | F113: 1806.99 | G113: 1806.99
A114: 020811 | B114: LABOR - 020811 - 2 | C114: Reservatório de poliestileno de 1000 L, inclusive suporte em madeira de 7x12cm e 5x7cm, elevado de 4m, conforme projeto (2 utilizações) | D114: und | E114: 1 | F114: 2070.3 | G114: 2070.3
A115: 020812 | B115: LABOR - 020812 - 1 | C115: Rede de água, com padrão de entrada d'água diâm. 3/4", conf. espec. CESAN, incl. tubos e conexões para alimentação, distribuição, extravasor e limpeza, cons. o padrão a 25m, conf. projeto (2 utilizações) | D115: m | E115: 1 | F115: 29.42 | G115: 29.42
A116: 03 | C116: MOVIMENTO DE TERRA
A117: 0301 | C117: ESCAVAÇÕES
A118: 030101 | B118: LABOR - 030101 - 1 | C118: Escavação manual em material de 1a. categoria, até 1.50 m de profundidade | D118: m3 | E118: 1 | F118: 45.66 | G118: 45.66
A119: 030102 | B119: LABOR - 030102 - 1 | C119: Escavação manual em material de 2a. categoria, até 1.50 m de profundidade | D119: m3 | E119: 1 | F119: 77.28 | G119: 77.28
A120: 030103 | B120: LABOR - 030103 - 1 | C120: Escavação mecânica em material de 1a. categoria | D120: m3 | E120: 1 | F120: 10.21 | G120: 10.21
A121: 030104 | B121: LABOR - 030104 - 1 | C121: Escavação mecânica em material de 2a. categoria | D121: m3 | E121: 1 | F121: 14.27 | G121: 14.27
A122: 030119 | B122: LABOR - 030119 - 1 | C122: Apiloamento do fundo de vala com maço de 30 a 60kg | D122: m2 | E122: 1 | F122: 23.89 | G122: 23.89
A123: 0302 | C123: REATERRO E COMPACTAÇÃO
A124: 030201 | B124: LABOR - 030201 - 1 | C124: Reaterro apiloado de cavas de fundação, em camadas de 20 cm | D124: m3 | E124: 1 | F124: 49.18 | G124: 49.18
A125: 030202 | B125: LABOR - 030202 - 2 | C125: Material para aterro - areia limpa (fornecimento já considerado 15% de empolamento) | D125: m3 | E125: 1 | F125: 107.33 | G125: 107.33
A126: 030203 | B126: LABOR - 030203 - 1 | C126: Lastro de brita 3 e 4, apiloado manualmente | D126: m3 | E126: 1 | F126: 158.32 | G126: 158.32
A127: 030204 | B127: LABOR - 030204 - 1 | C127: Lastro de areia | D127: m3 | E127: 1 | F127: 156.51 | G127: 156.51
A128: 030206 | B128: LABOR - 030206 - 2 | C128: Aterro manual para regularização do terreno em areia, inclusive adensamento hidráulico e fornecimento do material (máximo de 100m3) | D128: m3 | E128: 1 | F128: 137.35 | G128: 137.35
A129: 030208 | B129: LABOR - 030208 - 2 | C129: Aterro manual para regularização do terreno em argila, inclusive adensamento manual e fornecimento do material (máximo de 100m3) | D129: m3 | E129: 1 | F129: 139.06 | G129: 139.06
A130: 030209 | B130: LABOR - 030209 - 1 | C130: Aterro com areia em áreas de calçada, inclusive fornecimento e adensamento | D130: m3 | E130: 1 | F130: 116.02 | G130: 116.02
A131: 030210 | B131: LABOR - 030210 - 1 | C131: Aterro compactado utilizando compactador de placa vibratória com reaproveitamento do material | D131: m3 | E131: 1 | F131: 24.67 | G131: 24.67
A132: 030211 | B132: LABOR - 030211 - 1 | C132: Reaterro de valas, exclusive compactação | D132: m3 | E132: 1 | F132: 6.32 | G132: 6.32
A133: 0303 | C133: TRANSPORTES
A134: 030304 | B134: LABOR - 030304 - 2 | C134: Índice de preço para remoção de entulho decorrente da execução de obras (Classe A CONAMA - NBR 10.004 - Classe II-B), incluindo aluguel da caçamba, carga, transporte e descarga em área licenciada | D134: m3 | E134: 1 | F134: 48.85 | G134: 48.85
A135: 030305 | B135: LABOR - 030305 - 1 | C135: Transporte de material encosta acima, serviço inteiramente manual, a 10m de distância, considerados ao longo da encosta, inclusive carga e descarga (txdam) | D135: und | E135: 1 | F135: 21.08 | G135: 21.08
A136: 030306 | B136: LABOR - 030306 - 1 | C136: Transporte de material encosta abaixo, serviço inteiramente manual, a 10m de distância, considerados ao longo da encosta, inclusive carga e descarga (txdam) | D136: und | E136: 1 | F136: 14.05 | G136: 14.05
A137: 04 | C137: ESTRUTURAS
A138: 0402 | C138: INFRA-ESTRUTURA (FUNDAÇÃO)
A139: 040202 | B139: LABOR - 040202 - 2 | C139: Fornecimento, preparo e aplicação de concreto ciclópico Fck=15MPa com 30% de pedra de mão | D139: m3 | E139: 1 | F139: 521.59 | G139: 521.59
A140: 040206 | B140: LABOR - 040206 - 2 | C140: Fôrma de tábua de madeira de 2.5 x 30.0 cm para fundações, levando-se em conta a utilização 5 vezes (incluido o material, corte, montagem, escoramento e desforma) | D140: m2 | E140: 1 | F140: 69.35 | G140: 69.35
A141: 040224 | B141: LABOR - 040224 - 1 | C141: Fornecimento, preparo e aplicação de concreto Fck = 30 MPa (com brita 1 e 2) - (5% de perdas já incluído no custo) | D141: m3 | E141: 1 | F141: 596.82 | G141: 596.82
A142: 040231 | B142: LABOR - 040231 - 1 | C142: Fornecimento, preparo e aplicação de concreto magro com consumo mínimo de cimento de 250 kg/m3 (brita 1 e 2) - (5% de perdas já incluído no custo) | D142: m3 | E142: 1 | F142: 523.69 | G142: 523.69
A143: 040233 | B143: LABOR - 040233 - 1 | C143: Fornecimento, preparo e aplicação de concreto Fck=15 MPa (brita 1 e 2) - (5% de perdas já incluído no custo) | D143: m3 | E143: 1 | F143: 542.03 | G143: 542.03
A144: 040235 | B144: LABOR - 040235 - 1 | C144: Fornecimento, preparo e aplicação de concreto Fck=20 MPa (brita 1 e 2) - (5% de perdas já incluído no custo) | D144: m3 | E144: 1 | F144: 559.93 | G144: 559.93
A145: 040237 | B145: LABOR - 040237 - 1 | C145: Fornecimento, preparo e aplicação de concreto Fck=25 MPa (brita 1 e 2) - (5% de perdas já incluído no custo) | D145: m3 | E145: 1 | F145: 579.5 | G145: 579.5
A146: 040238 | B146: LABOR - 040238 - 2 | C146: Fôrma de chapa compensada resinada 12mm, levando-se em conta a utilização 3 vezes (incluido o material, corte, montagem, escoramento e desfôrma) | D146: m2 | E146: 1 | F146: 73.63 | G146: 73.63
A147: 040239 | B147: LABOR - 040239 - 1 | C147: Fornecimento e aplicação de concreto USINADO Fck=20 MPa - considerando lançamento MANUAL para INFRA-ESTRUTURA (5% de perdas já incluído no custo) | D147: m3 | E147: 1 | F147: 498.44 | G147: 498.44
A148: 040240 | B148: LABOR - 040240 - 1 | C148: Fornecimento e aplicação de concreto USINADO Fck=25 MPa - considerando lançamento MANUAL para INFRA-ESTRUTURA (5% de perdas já incluído no custo) | D148: m3 | E148: 1 | F148: 518.74 | G148: 518.74
A149: 040243 | B149: LABOR - 040243 - 1 | C149: Fornecimento, dobragem e colocação em fôrma, de armadura CA-50 A média, diâmetro de 6.3 a 10.0 mm | D149: kg | E149: 1 | F149: 13.56 | G149: 13.56
A150: 040245 | B150: LABOR - 040245 - 1 | C150: Fornecimento, dobragem e colocação em fôrma, de armadura CA-50 A grossa diâmetro de 12.5 a 25.0 mm (1/2 a 1") | D150: kg | E150: 1 | F150: 13.86 | G150: 13.86
A151: 040246 | B151: LABOR - 040246 - 1 | C151: Fornecimento, dobragem e colocação em fôrma, de armadura CA-60 B fina, diâmetro de 4.0 a 7.0mm | D151: kg | E151: 1 | F151: 17.66 | G151: 17.66
A152: 040249 | B152: LABOR - 040249 - 2 | C152: Fôrma de tábua de madeira de 2.5x30.0cm, levando-se em conta utilização 1 vez (incluindo o material, corte, montagem, escoramento e desforma) | D152: m2 | E152: 1 | F152: 114.36 | G152: 114.36
A153: 040250 | B153: LABOR - 040250 - 2 | C153: Fôrma de tábua de madeira de 2.5x30.0cm, levando-se em conta utilização 3 vezes (incluindo o material, corte, montagem, escoramento e desforma) | D153: m2 | E153: 1 | F153: 84.27 | G153: 84.27
A154: 040253 | B154: LABOR - 040253 - 1 | C154: Fornecimento e aplicação de concreto USINADO Fck=30 MPa - considerando lançamento MANUAL para INFRA-ESTRUTURA (5% de perdas já incluído no custo) | D154: m3 | E154: 1 | F154: 539.04 | G154: 539.04
A155: 0403 | C155: SUPER-ESTRUTURA
A156: 040315 | B156: LABOR - 040315 - 1 | C156: Fornecimento, preparo e aplicação de concreto Fck = 30 MPa (com brita 1 e 2) - (5% de perdas já incluído no custo) | D156: m3 | E156: 1 | F156: 686.56 | G156: 686.56
A157: 040320 | B157: LABOR - 040320 - 1 | C157: Fornecimento, preparo e aplicação de concreto Fck=15 MPa (brita 1 e 2) - (5% de perdas já incluído no custo) | D157: m3 | E157: 1 | F157: 631.77 | G157: 631.77
A158: 040322 | B158: LABOR - 040322 - 1 | C158: Fornecimento, preparo e aplicação de concreto Fck=20 MPa (brita 1 e 2) - (5% de perdas já incluído no custo) | D158: m3 | E158: 1 | F158: 649.67 | G158: 649.67
A159: 040324 | B159: LABOR - 040324 - 1 | C159: Fornecimento, preparo e aplicação de concreto Fck=25 MPa (brita 1 e 2) - (5% de perdas já incluído no custo) | D159: m3 | E159: 1 | F159: 669.24 | G159: 669.24
A160: 040328 | B160: LABOR - 040328 - 1 | C160: Fornecimento, dobragem e colocação em fôrma, de armadura CA-50 A média, diâmetro de 6.3 a 10.0 mm | D160: kg | E160: 1 | F160: 13.56 | G160: 13.56
A161: 040329 | B161: LABOR - 040329 - 1 | C161: Fornecimento e aplicação de concreto USINADO Fck=20 MPa - considerando BOMBEAMENTO (5% de perdas já incluído no custo) (6% de taxa p/concr.bombeavel) | D161: m3 | E161: 1 | F161: 436.58 | G161: 436.58
A162: 040330 | B162: LABOR - 040330 - 1 | C162: Fornecimento e aplicação de concreto USINADO Fck=25 MPa - considerando BOMBEAMENTO (5% de perdas já incluído no custo) (6% de taxa p/concr.bombeavel) | D162: m3 | E162: 1 | F162: 458.04 | G162: 458.04
A163: 040331 | B163: LABOR - 040331 - 1 | C163: Fornecimento e aplicação de concreto USINADO Fck=30 MPa - considerando BOMBEAMENTO (5% de perdas já incluído no custo) (6% de taxa p/ concr. bombeavel) | D163: m3 | E163: 1 | F163: 479.51 | G163: 479.51
A164: 040332 | B164: LABOR - 040332 - 1 | C164: Fornecimento, dobragem e colocação em fôrma, de armadura CA-50 A grossa, diâmetro de 12.5 a 25.0mm | D164: kg | E164: 1 | F164: 13.86 | G164: 13.86
A165: 040333 | B165: LABOR - 040333 - 1 | C165: Fornecimento, dobragem e colocação em fôrma, de armadura CA-60 B fina, diâmetro de 4.0 a 7.0mm | D165: kg | E165: 1 | F165: 17.66 | G165: 17.66
A166: 040337 | B166: LABOR - 040337 - 2 | C166: Fôrma em chapa de madeira compensada plastificada 12mm para estrutura em geral, 5 reaproveitamentos, reforçada com sarrafos de madeira 2.5x10cm (incl material, corte, montagem, escoras em eucalipto e desforma) | D166: m2 | E166: 1 | F166: 90.15 | G166: 90.15
A167: 040339 | B167: LABOR - 040339 - 2 | C167: Forma de chapas madeira compensada resinada, esp. 12mm, levando-se em conta a utilização 3 vezes, reforçadas com sarrafos de madeira de 2.5 x 10.0cm (incl material, corte, montagem, escoras em eucalipto e desforma) | D167: m2 | E167: 1 | F167: 105.88 | G167: 105.88
A168: 0404 | C168: ESTRUTURAS DE CONCRETO APARENTE
A169: 040405 | B169: LABOR - 040405 - 2 | C169: Fôrma com chapa compensada plastificada esp. 12mm, utização 5 vezes | D169: m2 | E169: 1 | F169: 99.8 | G169: 99.8
A170: 0406 | C170: LAJES PRÉ-MOLDADAS
A171: 040601 | B171: LABOR - 040601 - 3 | C171: Laje pré-fabricada treliçada para forro simples revestido, vão até 3.5m, capeamento 2cm, esp. 10cm, Fck = 150Kg/cm2 | D171: m2 | E171: 1 | F171: 99.04 | G171: 99.04
A172: 040602 | B172: LABOR - 040602 - 3 | C172: Laje pré-fabricada treliçada, sobrecarga 300 Kg/m2, vão de 3.5m a 4.3m, capeamento 4cm, esp. 12cm, Fck = 150 Kg/cm2 | D172: m2 | E172: 1 | F172: 109.36 | G172: 109.36
A173: 0407 | C173: DIVERSOS
A174: 040705 | B174: LABOR - 040705 - 1 | C174: Execução de junta de dilatação 2 x 2 cm considerando 1cm de aplicação de isopor e 1cm de aplicação de mastique elástico do tipo sikaflex 1a ou equivalente | D174: m | E174: 1 | F174: 65.53 | G174: 65.53
A175: 0408 | C175: RECUPERAÇÃO DE ESTRUTURAS
A176: 040801 | B176: LABOR - 040801 - 1 | C176: Remoção cuidadosa do concreto afetado, através de escarificação | D176: m3 | E176: 1 | F176: 2379.89 | G176: 2379.89
A177: 040802 | B177: LABOR - 040802 - 1 | C177: Remoção cuidadosa do concreto afetado, através de escarificação (considerando esp. escarificada de 5cm) | D177: m2 | E177: 1 | F177: 118.99 | G177: 118.99
A178: 040803 | B178: LABOR - 040803 - 2 | C178: Preparação do substrato para reparo em estrutura de concreto por apicoamento manual da superfície | D178: m2 | E178: 1 | F178: 70.25 | G178: 70.25
A179: 040806 | B179: LABOR - 040806 - 1 | C179: Limpeza de aço com lixamento e escovamento com escova de aço, até a completa remoção de partículas soltas, materiais indesejáveis e corrosão | D179: m2 | E179: 1 | F179: 21.08 | G179: 21.08
A180: 040807 | B180: LABOR - 040807 - 1 | C180: Aplicação de Sika Top 108 Armatec ou equivalente, nas ferragens a serem recuperadas | D180: m2 | E180: 1 | F180: 61.44 | G180: 61.44
A181: 040808 | B181: LABOR - 040808 - 1 | C181: Retirada de ferragem corroída | D181: kg | E181: 1 | F181: 4.23 | G181: 4.23
A182: 040809 | B182: LABOR - 040809 - 3 | C182: Recomposição de concreto danificado, com utilização de argamassa Sika Grout ou equivalente (considerando esp. 5cm) | D182: m2 | E182: 1 | F182: 363.11 | G182: 363.11
A183: 040810 | B183: LABOR - 040810 - 2 | C183: Recomposição de concreto danificado, com utilização de argamassa Sika Grout ou equivalente | D183: m3 | E183: 1 | F183: 6800.53 | G183: 6800.53
A184: 040813 | B184: LABOR - 040813 - 1 | C184: Impermeabilização de estrutura com Sika Top 107 ou equivalente | D184: m2 | E184: 1 | F184: 73.94 | G184: 73.94
A185: 040816 | B185: LABOR - 040816 - 1 | C185: Aplicação de Oxiprimer ou equivalente, nas ferragens a serem recuperadas | D185: m2 | E185: 1 | F185: 13.52 | G185: 13.52
A186: 040817 | B186: LABOR - 040817 - 1 | C186: Fornecimento e lançamento de concreto para grouteamento com adição de pedrisco (50% em peso), utilizando Sikagrout ou produto equivalente, exclusive forma | D186: m3 | E186: 1 | F186: 3106.23 | G186: 3106.23
A187: 040818 | B187: LABOR - 040818 - 1 | C187: Revestimento externo com argamassa corretiva tipo Sika Monotop 622 BR ou equivalente, esp. 5mm | D187: m2 | E187: 1 | F187: 74.32 | G187: 74.32
A188: 0409 | C188: MURO DE ARRIMO (Conc. ciclópico 15MPa c/ 30% de pedra de mão, c/ forn., preparo e aplicação de concreto, forma de tábua pinho-reap.5 vezes, exclusive escav. e reaterro) seções tipicas nas seguintes dimensões:
A189: 040901 | B189: LABOR - 040901 - 3 | C189: Muro de arrimo em Conc. ciclópico 15MPa c/ 30% de pedra de mão, c/ forn., preparo e aplicação de concreto, forma de tábua pinho-reap.5 vezes, exclusive escav. e reaterro, seções tipicas nas dimensões:b=0.40m; B=0.70m e H=1.00m | D189: m | E189: 1 | F189: 581.08 | G189: 581.08
A190: 040902 | B190: LABOR - 040902 - 3 | C190: Muro de arrimo em Conc. ciclópico 15MPa c/ 30% de pedra de mão, c/ forn., preparo e aplicação de concreto, forma de tábua pinho-reap.5 vezes, exclusive escav. e reaterro, seções tipicas nas dimensões:b=0.40m; B=0.90m e H=1,50m | D190: m | E190: 1 | F190: 913.9 | G190: 913.9
A191: 040903 | B191: LABOR - 040903 - 3 | C191: Muro de arrimo em Conc. ciclópico 15MPa c/ 30% de pedra de mão, c/ forn., preparo e aplicação de concreto, forma de tábua pinho-reap.5 vezes, exclusive escav. e reaterro, seções tipicas nas dimensões:b=0.40m; B=1.05m e H=2.00m | D191: m | E191: 1 | F191: 1288.35 | G191: 1288.35
A192: 040904 | B192: LABOR - 040904 - 3 | C192: Muro de arrimo em Conc. ciclópico 15MPa c/ 30% de pedra de mão, c/ forn., preparo e aplicação de concreto, forma de tábua pinho-reap.5 vezes, exclusive escav. e reaterro, seções tipicas nas dimensões:b=0.40m; B=1.23 e H=2.50m | D192: m | E192: 1 | F192: 1684.85 | G192: 1684.85
A193: 05 | C193: PAREDES E PAINÉIS
A194: 0501 | C194: ALVENARIA DE VEDAÇÃO
A195: 050112 | B195: LABOR - 050112 - 3 | C195: Cobogó de concreto 40 x 40 x 10 cm, tipo reto, assentados com argamassa de cimento e areia no traço 1:3, espessura das juntas 15 mm | D195: m2 | E195: 1 | F195: 131.51 | G195: 131.51
A196: 050115 | B196: LABOR - 050115 - 1 | C196: Alvenaria em bloco de pedra argamassada com cimento e areia no traço 1:3 | D196: m3 | E196: 1 | F196: 437.49 | G196: 437.49
A197: 050122 | B197: LABOR - 050122 - 1 | C197: Cobogó de concreto tipo cruzeta de 20 x 20 x 10 cm, assentado com argamassa de cimento, cal hidratada e areia no traço1:0,5:5, espessura das juntas de 10mm e espessura de parede 10cm | D197: m2 | E197: 1 | F197: 154.04 | G197: 154.04
A198: 0502 | C198: PLACAS E PAINÉIS DIVISÓRIOS
A199: 050202 | B199: LABOR - 050202 - 1 | C199: Fornecimento e instalação de divisórias novas com acabamento de chapa de fibra de madeira, sistema de montagem simplificado, espessura de 35mm e miolo em colméia no padrão painel/painel | D199: m2 | E199: 1 | F199: 98.24 | G199: 98.24
A200: 050203 | B200: LABOR - 050203 - 1 | C200: Fornecimento e instalação de porta para divisória de 80 X 210 cm incluindo dobradiças e fechadura interna | D200: und | E200: 1 | F200: 353.75 | G200: 353.75
... 1043 more rows

Sheet COMP.3_POÇO DE VISITA (hidden)
B3: =PLANILHA!B3 -> OBRA: RECONSTRUÇÃO GALPÃO DE DESTINAÇÃO DE LIXO
B4: =PLANILHA!B4 -> LOCAL: BAIRRO BANANEIRAS-VENDA NOVA DO IMIGRANTE/ES
B5: =PLANILHA!B5 -> PROPRIETÁRIO: PREFEITURA MUNICIPAL DE VENDA NOVA DO IMIGRANTE
B6: =PLANILHA!B6 -> DATA: 24/12/2021
B7: =PLANILHA!B7 -> REFERENCIAL DE PREÇOS: IOPES / SINAPI
B10: COMPOSIÇÃO 03
C12: COMP. 03 | D12: POÇO DE VISITA CIRCULAR PARA DRENAGEM, EM CONCRETO PRÉ-MOLDADO, DIÂMETRO INTERNO = 1,2 M, PROFUNDIDADE DE 1,50 A 2,00 M, INCLUINDO TAMPÃO DE FERRO FUNDIDO DIÂMETRO DE 60 CM. | E12: M3 | F12: 1
C13: Código | D13: Descrição | E13: Und | F13: Coeficiente | G13: Preço Unitário | H13: Preço Total
B14: MATERIAL
B15: SINAPI | C15: 102457 | D15: BASE PARA POÇO DE VISITA CIRCULAR PARA DRENAGEM, EM CONCRETO PRÉ-MOLDADO, DIÂMETRO INTERNO = 1,2 M, PROFUNDIDADE = 1,45 M, EXCLUINDO TAMPÃO. | E15: UN | F15: 0.5 | G15: 1124.41 | H15: =ROUND(F15*G15,2) -> 562.21
B16: SINAPI | C16: 99240 | D16: ACRÉSCIMO PARA POÇO DE VISITA CIRCULAR PARA DRENAGEM, EM CONCRETO PRÉ-MOLDADO, DIÂMETRO INTERNO = 1,2 M. | E16: M | F16: 1 | G16: 422.41 | H16: =ROUND(F16*G16,2) -> 422.41
B17: SINAPI | C17: 98114 | D17: TAMPA CIRCULAR PARA ESGOTO E DRENAGEM, EM FERRO FUNDIDO, DIÂMETRO INTERNO = 0,6 M. | E17: UN | F17: 1 | G17: 720.85 | H17: =ROUND(F17*G17,2) -> 720.85
G18: SUBTOTAL: | H18: =SUM(H15:H17) -> 1705.47
B19: TOTAL : | H19: =SUM(H15:H17) -> 1705.47
B23: _______________________________________________________________________
B24: MACIEL CASAGRANDE
B25: ENGENHEIRO CIVIL CREA ES 6698/D
